Workbook

Sheet AHSC Coverpage (hidden)
A1: AHSC Application NOFA Round 3
A3: Affordable Housing and Sustainable Communities Program (AHSC)
A22: State of California
A23: Governor Edmund G. Brown Jr.
A25: Alexis Podesta, Secretary
A26: Business, Consumer Services and Housing Agency
A28: Ben Metcalf, Director
A29: Department of Housing and Community Development (HCD)
A31: 2020 West El Camino Avenue, Suite 500, Sacramento, CA 95833
A32: Phone: (916) 263-2771
A33: email: ahsc@sgc.ca.gov
A34: http://www.hcd.ca.gov/grants-funding/nofas.shtml
A36: October 2017
A38: Rev: 10/2/17

Sheet Overview (hidden)
A1: Overview - Project and Applicant Information
A2: Affordable Housing & Sustainable Communities Program (AHSC) Project Information | AE2: FAAST PIN:
A3: Project Name: | T3: Area Type | AF3: Housing Type
A4: Eligible Capital Projects/Program Costs included in Project Area - §102(c)(3), (d)(3), (e) (check all boxes that apply): | X4: TRUE | Y4: Was this project awarded any funds in prior rounds of AHSC?
W5: TRUE | Y5: If yes, which round of AHSC was it awarded?
W6: TRUE | Y6: Is this project another phase of a previously awarded project?
W7: TRUE | Y7: Is Project in a metropolitan planning organization (MPO)?
W8: TRUE | Y8: If yes, identify the MPO:
A9: TOD Project Areas - §102(c)
A10: (1) Include at least one Transit Station/Stop served by High Quality Transit, as defined in Appendix A (x), at time of application submittal.
A11: (2) Include an AHD located no further than a half mile from a Transit Station/Stop served by High Quality Transit.
A12: (3) Include Capital Projects or Program Costs as indicated in §102(c)(3).
A13: ICP Project Areas - §102(d)(1)(2)(3)
A14: (1) Include at least one Transit Station/Stop.
A15: (2) Be served by at least one mode of Qualifying Transit that does not meet the requirements of High Quality Transit, as defined in Appendix A (x), at time of application submittal.
A16: (3) Include Capital Projects or Program Costs as indicated in §102(d)(3).
A17: If ICP Project proposes to fund an AHD with AHSC Program funds, that housing must be located within a half mile of a Transit Station/Stop.
A18: RIPA Project Areas - §102(e)
A19: (1) Include at least one Transit Station/Stop.
A20: (2) Be served by at least one mode of Qualifying Transit that does not meet the requirements of High Quality Transit, as defined in Appendix A (x), at time of application submittal.
A21: (3) Include Capital Projects or Program Costs as indicated in §102(d)(3).
A22: If RIPA Project proposes to fund an AHD with AHSC Program funds, that housing must be located within a half mile of a Transit Station/Stop.
A23: Must be located within a Rural Area as defined in H&S §50199.21 and meet all of the requirements in §102(d).
A24: Total Development Costs and Project Funding | AE24: Legislative Data
A25: Capital Project/Program: | G25: Total Development Costs | M25: AHSC Funds Request (Program Min $1M, Max $20M) | X25: Non-AHSC Funding Commitments
A26: Housing (AHD) | G26: ='AHD-HRI Budget'!R118 -> 0 | M26: ='AHD-HRI Budget'!D208 -> 0 | X26: ='AHD-HRI Dev Sources'!C40 -> 0 | AE26: State Assembly District:
A27: Housing (HRI) | G27: ='AHD-HRI Budget'!R206 -> 0 | M27: ='AHD-HRI Budget'!C208 -> 0
A28: Transportation (STI) | G28: ='STI Budget'!M207 -> 100000 | M28: ='STI Budget'!C207 -> 100000 | X28: =STI!A51 -> 0 | AE28: Senate District:
A29: Transportation (TRA) | G29: ='TRA Budget'!M216 -> 100000 | M29: ='TRA Budget'!C216 -> 100000 | X29: =TRA!B51 -> 0
A30: Programs (PGM) | G30: ='PGM Budget'!M86 -> 0 | M30: ='PGM Budget'!C86 -> 0 | X30: =PGM!B38 -> 0 | AE30: Congressional District:
A31: TOTALS: | G31: =SUM(G26:L30) -> 200000 | M31: =SUM(M26:W30) -> 200000 | X31: =SUM(X26:AD30) -> 0
A32: AB-1550 Low-Income & Disadvantaged Communities §106(b)
A33: Disadvantaged Community 10 digit census tract: | N33: Disadvantaged Community: | V33: Low-Income Community: | AD33: Low-Income Buffer Region:
A34: Step 1: Evaluate the project against each of the following criteria for a disadvantaged community, low-income community, or a low-income household. Select all that apply below:
A37: Step 2: Addresses an Important Need for a Community or Household. If a project meets the AB 1550 population criteria in Step 1, identify an important community or household need that the project will address. Select the approach used to identify an important community need as part of the project:
A39: Step 3: Project Benefits. If a project meets criteria in Step 1 and addresses an important need for a community or household in Step 2, evaluate the project against each of the following criteria to determine if it provides direct, meaningful, and assured benefits to residents of an AB 1550 community or low-income household. Select all that apply.
A44: FAAST File Name: | E44: AB1550 | L44: AB1550 document can be downloaded here. | AG44: File Uploaded?
A45: Project Area Definition §102(a)
A46: Description of geographical boundaries (defined by vicinity map, service area, etc.):
A48: FAAST File Name: | E48: *Project Area Map | L48: NOTE: Items marked with *(PAM) on the Quantitative Policy Scoring sheet with positive point scores, must be identified in the Project Area Map. This includes proposed and length of walkways and bikeways to be funded, gap closures and key destinations in the Project Area that active transportation improvements will connect to, and Operational Services. Projects incorporating Traffic Calming Measures or Activity Center Credit may incorporate these items onto the same map. | AG48: File Uploaded?
A49: Required Project Area Components §102(a):
A50: (1) | B50: Be a contiguous area included within a distinct planning area in a local or regional planning document(s) or transit service area**
A51: (2) | B51: Include at least one Transit Station/Stop consistent with the requirements set forth in the TOD, ICP and RIPA; and
A52: (3) | B52: Be of a defined size consistent with one of the following:
A53: (A) | B53: For Project Areas with fixed transit routes, the defined Project Area may not exceed a one (1) mile buffer around the identified Transit Station/Stop merged with a 1/2 mile buffer around all STI improvements. | AJ53: Select one
A54: (B) | B54: For Project Areas with Flexible Transit Service routes, the defined Project Area must be defined based on the identified service area of the transit line. | AJ54: Select one
A55: (C) | B55: For Project Areas which include a Transit Corridor, bicycle network or both, Project Area must be identified in a plan (i.e. General, Bicycle Master or Transit Corridor Implementation). | AJ55: Select one
U56: Plan name (if applicable): §102(a)(3)(C)
B57: §106(a)(15) | E57: We acknowledge that Qualifying Transit must be completed and offering service to the Transit Station/Stop of the Project Area by the time set forth in the Standard Agreement.
A58: FAAST File Name: | E58: Transit Service Map # and/or Transit Service Schedule # | L58: **Defined by transit service maps and schedules. Upload all documentation transit service map and schedule supporting the transit service area. All transit service maps should be uploaded to "Transit Service Map #" as one document. All transit service schedules should be uploaded to "Transit Service Schedule #" as one document. | AG58: Files Uploaded?
A59: Application Threshold Requirements - §106(a)
A60: (1) We certify the Project will achieve a reduction in GHG emissions through fewer vehicle miles travelled (VMT) pursuant to the Quantification Methodology in Appendix D.
A61: (2) We certify that this proposal supports implementation of the applicable Sustainable Community Strategy (SCS) or similar sustainable planning document in non- Metropolitan Planning Organization (MPO) regions and is consistent with activities or strategies identified in the regional SCS, or similar planning document that demonstrate a per capita reduction in VMT and GHG.
A62: Identify MPO or select "non-MPO area"
A63: FAAST File Name: | E63: Documentation of MPO Support | L63: Executed document from MPO (where applicable) confirming consistency with SCS or similar sustainable planning document in non-Metropolitan Planning Organization regions, per Section106 (a). | AG63: Files Uploaded?
A64: FAAST File Name: | E64: SCS or Equiv Regional Plan | L64: Applicants must indicate the applicable section or elements of the SCS or equivalent regional plan detailing regional government involvement. (Do not provide a duplicate document if provided in another FAAST upload) | AG64: File Uploaded?
A65: (3) We certify the Project is consistent with the State planning priorities established pursuant to §65041.1 of the Government Code.
A66: (6) We certify the Project will incorporate at least two Urban Greening feature as defined in Appendix A (select two features below and include costs in budget(s))
A68: (7) Must demonstrate a level of committed funding at time of application that is 0.90 or greater. | U68: §106(a)(7) calculation results= | AB68: =IF(Overview!G31=0,0,(Overview!M31+Overview!X31-'AHD-HRI Dev Sources'!H17)/(Overview!G31-'AHD-HRI Dev Sources'!H17)) -> 1 | AD68: If No, insufficient funding commitments. | AL68: =IF(AB68>=0.9,"Ok","No") -> Ok
A69: (10) Is application (including the Universal Application) sufficiently complete to assess feasibility of application and its compliance with AHSC Program and application requirements?
A70: (16) Does any Capital Project trigger State Relocation Assistance Law (CA Gov Code §7260-7277)? | T70: AHD | W70: HRI | Z70: STI | AC70: TRA
A71: If Yes, provide a narrative discussion on the number of impacted households and provided relocation assistance including what actions have or will be taken to comply with State Relocation Assistance Law? If No, provide documentation supporting relocation is not required.
A72: FAAST File Name: | E72: Reloc Plan | L72: Applicants must provide a Relocation Plan or documentation supporting no relocation. | AG72: File Uploaded?
A73: (17) Will the Housing Element for the jurisdiction in which the Project is located adopted by the jurisdiction's governing body and subsequently determined to be in substantial compliance with State housing element law pursuant to Gov Code §65585 by the date if the award recommendation?
A74: (18) Climate adaptation measures are integrated into the Project through the “Community Climate Resiliency” scoring criteria in §107(m) - Narrative-Based Policy worksheet
A75: (20)(A) We certify the AHD meets the underwriting standards in the 2010 Uniform Multifamily Regs, 25 CCR 8308 through 8316 and the Multifamily Housing Program Regulations, 25 CCR §7312.
A76: Applicant Information §105
A77: Will a Public Agency have a real property interest in the proposed Project §105(a)(2)? (if yes, your application must include one of the following below)
A79: Applicant #1
A80: Entity Name | N80: Eligible Applicant | AA80: Organization Type
A81: Address | V81: City | AC81: State | AH81: Zip
A82: Auth Rep Name | M82: Title | T82: Authorized Rep. Email | AF82: Phone
A83: Contact Name | M83: Title | U83: Contact Email | AE83: Contact Phone
A84: Address | V84: City | AC84: State | AH84: Zip
A85: FAAST File Name: | E85: App1 Cert & Legal Disclosure | L85: Certifications & Legal Disclosure (See Certifications & Legal Disclosure section below) | AC85: Hardcopy Included? | AH85: File Uploaded?
A86: FAAST File Name: | E86: App1 Reso | L86: Resolutions (see Resolution section below) | AC86: Hardcopy Included? | AH86: File Uploaded?
A87: FAAST File Name: | E87: App1 OrgDoc1, App1 OrgDoc2, etc. | L87: Organizational Documents (see Organizational Documents section below) | AG87: Files Uploaded?
A88: FAAST File Name: | E88: App1 OrgChart | L88: Organizational Chart (see Organizational Documents section below) | AG88: Files Uploaded?
A89: FAAST File Name: | E89: App1 Signature Block | L89: Signature Block (Upload in Microsoft Word Document) | AG89: File Uploaded?
A90: FAAST File Name: | E90: App1 Payee Data | L90: STD-204 Payee Data Record (See Payee Data Record section below) | AC90: Hardcopy Included? | AH90: File Uploaded?
A91: Applicant #2
A92: Entity Name | N92: Eligible Applicant | AA92: Organization Type
A93: Address | V93: City | AC93: State | AH93: Zip
A94: Auth Rep Name | M94: Title | T94: Authorized Rep. Email | AF94: Phone
A95: Contact Name | M95: Title | U95: Contact Email | AE95: Contact Phone
A96: Address | V96: City | AC96: State | AH96: Zip
A97: FAAST File Name: | E97: App2 Cert & Legal Disclosure | L97: Certifications & Legal Disclosure (See Certifications & Legal Disclosure section below) | AC97: Hardcopy Included? | AH97: File Uploaded?
A98: FAAST File Name: | E98: App2 Reso | L98: Resolutions (see Resolution section below) | AC98: Hardcopy Included? | AH98: File Uploaded?
A99: FAAST File Name: | E99: App2 OrgDoc1, App2 OrgDoc2, etc. | L99: Organizational Documents (see Organizational Documents section below) | AG99: Files Uploaded?
A100: FAAST File Name: | E100: App2 OrgChart | L100: Organizational Chart (see Organizational Documents section below) | AG100: Files Uploaded?
A101: FAAST File Name: | E101: App2 Signature Block | L101: Signature Block (Upload in Microsoft Word Document) | AG101: File Uploaded?
A102: FAAST File Name: | E102: App2 Payee Data | L102: STD-204 Payee Data Record (See Payee Data Record section below) | AC102: Hardcopy Included? | AH102: File Uploaded?
A103: Applicant #3 (if applicable)
A104: Entity Name | N104: Eligible Applicant | AA104: Organization Type
A105: Address | V105: City | AC105: State | AH105: Zip
A106: Auth Rep Name | M106: Title | T106: Authorized Rep. Email | AF106: Phone
A107: Contact Name | M107: Title | U107: Contact Email | AE107: Contact Phone
A108: Address | V108: City | AC108: State | AH108: Zip
A109: FAAST File Name: | E109: App3 Cert & Legal Disclosure | L109: Certifications & Legal Disclosure (See Certifications & Legal Disclosure section below) | AC109: Hardcopy Included? | AH109: File Uploaded?
A110: FAAST File Name: | E110: App3 Reso | L110: Resolutions (see Resolution section below) | AC110: Hardcopy Included? | AH110: File Uploaded?
A111: FAAST File Name: | E111: App3 OrgDoc1, App3 OrgDoc2, etc. | L111: Organizational Documents (see Organizational Documents section below) | AG111: Files Uploaded?
A112: FAAST File Name: | E112: App3 OrgChart | L112: Organizational Chart (see Organizational Documents section below) | AG112: Files Uploaded?
A113: FAAST File Name: | E113: App3 Signature Block | L113: Signature Block (Upload in Microsoft Word Document) | AG113: File Uploaded?
A114: FAAST File Name: | E114: App3 Payee Data | L114: STD-204 Payee Data Record (See Payee Data Record section below) | AC114: Hardcopy Included? | AH114: File Uploaded?
A115: Applicant #4 (if applicable)
A116: Entity Name | N116: Eligible Applicant | AA116: Organization Type
A117: Address | V117: City | AC117: State | AH117: Zip
A118: Auth Rep Name | M118: Title | T118: Authorized Rep. Email | AF118: Phone
A119: Contact Name | M119: Title | U119: Contact Email | AE119: Contact Phone
A120: Address | V120: City | AC120: State | AH120: Zip
A121: FAAST File Name: | E121: App4 Cert & Legal Disclosure | L121: Certifications & Legal Disclosure (See Certifications & Legal Disclosure section below) | AC121: Hardcopy Included? | AH121: File Uploaded?
A122: FAAST File Name: | E122: App4 Reso | L122: Resolutions (see Resolution section below) | AC122: Hardcopy Included? | AH122: File Uploaded?
A123: FAAST File Name: | E123: App4 OrgDoc1, App4 OrgDoc2, etc. | L123: Organizational Documents (see Organizational Documents section below) | AG123: Files Uploaded?
A124: FAAST File Name: | E124: App4 OrgChart | L124: Organizational Chart (see Organizational Documents section below) | AG124: Files Uploaded?
A125: FAAST File Name: | E125: App4 Signature Block | L125: Signature Block (Upload in Microsoft Word Document) | AG125: File Uploaded?
A126: FAAST File Name: | E126: App4 Payee Data | L126: STD-204 Payee Data Record (See Payee Data Record section below) | AC126: Hardcopy Included? | AH126: File Uploaded?
A127: Applicant #5 (if applicable)
A128: Entity Name | N128: Eligible Applicant | AA128: Organization Type
A129: Address | V129: City | AC129: State | AH129: Zip
A130: Auth Rep Name | M130: Title | T130: Authorized Rep. Email | AF130: Phone
A131: Contact Name | M131: Title | U131: Contact Email | AE131: Contact Phone
A132: Address | V132: City | AC132: State | AH132: Zip
A133: FAAST File Name: | E133: App5 Cert & Legal Disclosure | L133: Certifications & Legal Disclosure (See Certifications & Legal Disclosure section below) | AC133: Hardcopy Included? | AH133: File Uploaded?
A134: FAAST File Name: | E134: App5 Reso | L134: Resolutions (see Resolution section below) | AC134: Hardcopy Included? | AH134: File Uploaded?
A135: FAAST File Name: | E135: App5 OrgDoc1, App5 OrgDoc2, etc. | L135: Organizational Documents (see Organizational Documents section below) | AG135: Files Uploaded?
A136: FAAST File Name: | E136: App5 OrgChart | L136: Organizational Chart (see Organizational Documents section below) | AG136: Files Uploaded?
A137: FAAST File Name: | E137: App5 Signature Block | L137: Signature Block (Upload in Microsoft Word Document) | AG137: File Uploaded?
A138: FAAST File Name: | E138: App5 Payee Data | L138: STD-204 Payee Data Record (See Payee Data Record section below) | AC138: Hardcopy Included? | AH138: File Uploaded?
A139: Certifications & Legal Disclosure
A140: A completed and signed Certification is required for each Joint Applicant. Each Joint Applicant must sign an individual Certification form. A completed and signed Legal Disclosure is also required for each Joint Applicant. In addition, a wet signature original of each signed Certification & Legal Disclosure must be submitted to HCD. The hard copy Certifications & Legal Disclosure should be submitted with the application as detailed in the NOFA.
A141: A copy of the required Certification & Legal Disclosure can be downloaded by clicking here.
A142: Resolution
A143: A resolution is required of each Joint Applicant - both private and public entities. A sample resolution template is available by clicking here.
A144: The resolution template is intended to be a sample. Applicants may use their own format as long as it contains ALL of the authorizations contained in the template. ▪ The person attesting to the signing of the resolution cannot be the same person authorized to execute the documents in the name of the applicant. ▪ If more than one authorized signatory is identified in the resolution, specifically state whether both signatories are required (i.e. x and y) or only one signatory (i.e. x or y) is required to submit and execute the AHSC Program documents. ▪ If the application is being signed by a designee of the authorized signatory, the applicant must also submit a designee letter or other proof of signing authority.
A145: Organizational Documents
A146: Org Docs are required for all Applicants, except where a joint applicant is a governmental entity. Governmental entities are not required to submit organizational documents with the application.
A147: Submit Organizational Documents supporting the Resolution submitted with the application.
A148: Organizational Chart: The Organizational Chart must depict the Organizational Structure of the entities in relation to the applicant.
A149: Signature Block
A150: All Applicants must submit a Signature Block in a Microsoft Word Document that will be used in Department legal documents such as a Standard Agreement.
A151: Payee Data Record
A152: All Applicants must submit a Payee Data Record (STD-204). A wet signature original must be submitted to HCD and must be submitted with the hardcopy application as detailed in the NOFA.
A153: A copy of the required Payee Data Record (STD-204) can be downloaded by clicking here.
A154: Eligible Applicant: Federally Recognized Indian Tribe §105(a)(1)(C)
A155: All Federally recognized Indian Tribe Applicants must submit documentation to support requirements as described in Appendix B.
A156: FAAST File Name: | E156: Appendix B | L156: For all Federally recognized Indian Tribe Applicants, upload documentation to support requirements as described in Appendix B | AG156: Files Uploaded?

Sheet AHD-HRI (hidden)
A1: =CONCATENATE(Overview!D3," AHD and HRI Overview ","PIN ",Overview!AI2) -> AHD and HRI Overview PIN
A2: Affordable Housing Development (AHD) and Housing Related Infrastructure (HRI) Project Summary
B3: Project Name | G3: Brief Description | Q3: Address | W3: City | Z3: Zip | AB3: County | AE3: Lat. | AF3: Log. | AG3: Census Tracts | AJ3: APNs
A4: AHD
A12: HRI
A17: AHD Information: | F17: Area Calculations: | J17: Unit Count: | P17: Building Count: | U17: Elevator Count: | Z17: Project Design: | AD17: Density Project Type
A18: Land Area | F18: acres | J18: Units/Acre | N18: =IF(H18=0,0,'AHD Units & Max Funds'!I26/H18) -> 0
A19: Residential Rental | F19: sq. ft. | J19: # of Units | N19: ='AHD Units & Max Funds'!K26 -> 0 | P19: # of Buildings | U19: # of Elevators | AD19: =IF(OR(M34="Acquisition and Substantial Rehabilitation (including preservation of affordable housing at-risk of conversion to market rate)",M35="Acquisition and Substantial Rehabilitation (including preservation of affordable housing at-risk of conversion to market rate)",M36="Acquisition and Substantial Rehabilitation (including preservation of affordable housing at-risk of conversion to market rate)"),"Acquisition and Substantial Rehabilitation (including preservation of affordable housing at-risk of conversion to market rate) Project",IF(OR(H21>0,H23>0),"Mixed Use Project","Residential Only Project")) -> Residential Only Project | AL19: =IF(AD19="Acquisition and Substantial Rehabilitation (including preservation of affordable housing at-risk of conversion to market rate) Project","AR",IF(AD19="Mixed Use Project","MU","Res")) -> Res
A20: Homeownership | F20: sq. ft. | J20: # of Units | N20: ='AHD Units & Max Funds'!N26 -> 0 | P20: # of Buildings | U20: # of Elevators
A21: Commercial | F21: sq. ft. | J21: # of Units/Spaces | P21: # of Buildings | U21: # of Elevators
A22: Residential Non-Rental | F22: sq. ft. | J22: # of Units/Spaces | P22: # of Buildings
A23: Other (Mixed Use) | F23: sq. ft. | J23: # of Units/Spaces | P23: # of Buildings
A24: # of car share parking spaces: | I24: # of electric vehicle charging parking spaces: | Y24: # of uncovered guest parking spaces:
A25: Total # of car parking spaces: | I25: Parking Ratio: car spaces/total units | Q25: =IF('AHD Units & Max Funds'!I26=0,"",SUBSTITUTE(TEXT(G25/'AHD Units & Max Funds'!I26,"#/######"),"/",":")) -> 0:1 | S25: Total # of bicycle parking spaces: | AB25: Parking Ratio: bicycle spaces/total units | AK25: =IF('AHD Units & Max Funds'!I26=0,"",SUBSTITUTE(TEXT(Z25/'AHD Units & Max Funds'!I26,"#/######"),"/",":")) -> 0:1
A26: Is the AHD a scattered site project? | L26: If yes, complete the section below §103(a)(1)(B)(ii)
A27: Site Address | S27: Developer | AD27: Homeownership or Rental
A33: AHD Capital Projects MUST §103(a)(1)(A)
A34: (i) Consist of one or more of the following development types (see dropdowns to the right): | AL34: =IF(AND(M34="",M35="",M36=""),"No",IF(OR(M34="Conversion of one or more nonresidential structures to residential dwelling units",M34="New Construction",M34="Acquisition and Substantial Rehabilitation (including preservation of affordable housing at-risk of conversion to market rate)",M35="Conversion of one or more nonresidential structures to residential dwelling units",M35="New Construction",M35="Acquisition and Substantial Rehabilitation (including preservation of affordable housing at-risk of conversion to market rate)",M36="Conversion of one or more nonresidential structures to residential dwelling units",M36="New Construction",M36="Acquisition and Substantial Rehabilitation (including preservation of affordable housing at-risk of conversion to market rate)"),"Ok","No")) -> No
A37: (ii) Be located within (half mile from a Transit Station/Stop that meets Project Area transit requirements as defined in §102(c) or (d): | Z37: AHD distance from Transit Station/Stop: | AJ37: miles | AL37: =IF(AI37="","No",IF(AI37<=0.5,"Ok","No")) -> No
A38: (iii) Include at least 20 % of the total residential units as Affordable Units (must complete AHD Units worksheet) | AL38: =IF('AHD Units & Max Funds'!AD27>=0.2,"Ok","No") -> Ok
A39: =IF(AL19="AR","(iv)(1) - Not Applicable to Acquisition & Substantial Rehabilitation projects","(iv)(1) Have a minimum Net Density upon completion of the Affordable Housing Development, not less than guidelines:") -> (iv)(1) Have a minimum Net Density upon completion of the Affordable Housing Development, not less than guidelines: | AL39: =IF(AL19="AR","N/A",IF(AND(AL19="MU",OR(AI40="Ok",AI41="Ok")),"Ok",IF(AND(AL19="Res",AI41="Ok"),"Ok","No"))) -> No
A40: Total Site Area in Square Feet | J40: =H18*43560 -> 0 | O40: Total Buildings Floor Area in Square Feet | X40: =SUM(H19:I23) -> 0 | AA40: Calculated Floor Area: | AI40: =IF(AND(Overview!W3="Transit Oriented Development (TOD) - §102(c)",AJ40>2),"Ok",IF(AND(Overview!W3="Integrated Connectivitiy Project (ICP) - §102(d)",AJ40>1.5),"Ok",IF(AND(Overview!W3="Rural Innovation Project Area (RIPA) - §102(e)",AJ40>0.75),"Ok","No"))) -> No | AJ40: =IF(J47=0,0,X47/J47) -> 0
A41: (Less Qualified* Square Feet Deductions): | O41: (Less Excluded Areas in Square Feet): | AA41: Calculated Net Density: | AI41: =IF(AND(Overview!W3="Transit Oriented Development (TOD) - §102(c)",AJ41>=30),"Ok",IF(AND(Overview!W3="Integrated Connectivitiy Project (ICP) - §102(d)",AJ41>=20),"Ok",IF(AND(Overview!W3="Rural Innovation Project Area (RIPA) - §102(e)",AJ41>=15),"Ok","No"))) -> No | AJ41: =IF(E47=0,0,'AHD Units & Max Funds'!I26/E47) -> 0
A42: Dedicated streets | O42: Mechanical Space | AA42: *NOTE: The following are NOT qualified as site deductions: Utility Easements, Off-street parking, setbacks, private drives and walkways, Landscaping, Common Areas and Facilities, Drainage Facilities (exclusive to a development) and Other mitigation space required for development.
A43: Sidewalks | O43: Cellar space
A44: Parks | O44: Floor space in open balconies
A45: Open Space | O45: Enclosed parking
A46: Other | O46: Elevator or stair bulkheads
A47: Net Site Area-acres | E47: =J47/43560 -> 0 | G47: Net Site Sq Ft | J47: =J40-J42-J43-J44-J45-J46 -> 0 | O47: Net Building Square Feet | X47: =X40-X42-X43-X44-X45-X46 -> 0
A48: FAAST File Name: | E48: Net Density Verification | L48: Letter and sealed site map certified by a California State-licensed professional (e.g., an engineer, surveyor, or landscape architect) confirming the net density | AG48: File Uploaded?
A49: =IF(AL19<>"AR","(iv)(2) - Not Applicable to projects that are not Acquisition & Substantial Rehabilitation","(iv)(2) Acquisition & Substantial Rehab - does the AHD result in less units or lower % of affordability than currently exists?") -> (iv)(2) - Not Applicable to projects that are not Acquisition & Substantial Rehabilitation | X49: =IF(O50=0,"",IF(OR(I50>O50,AA50>AK50),"Yes","No")) -> No | Y49: If yes, are reductions to meet building code requirements? | AL49: =IF(AL19<>"AR","N/A",IF(X49="","No",IF(AND(X49="Yes",OR(AK49="No",AK49="N/A")),"No","Ok"))) -> N/A
A50: Prior to Rehab - existing number of units: | K50: AHD Project Units: | O50: ='AHD Units & Max Funds'!I26 -> 17 | Q50: Prior to Rehab - percentage of total affordable: | AC50: AHD percentage of total affordability | AK50: ='AHD Units & Max Funds'!AD27 -> 0.53
A51: (v) Must supply one Secure Overnight Bicycle Parking Spots per every two units (describe below, Secure Overnight Bicycle Parking proposed including a description of how bicycles are secured (i.e., bike locker, bike building, etc.) | Z51: # of Secure Overnight Bicycle Parking spots at AHD: | AL51: =IF(AK51="","No",IF(AK51>='AHD Units & Max Funds'!I26/2,"Ok","No")) -> No
A53: AHD Eligible Costs §103(a)(1)(C) and Ineligible Costs §103(c)
Z54: Budgeted | AD54: Cost Cap | AH54: Overage
A55: (ii) The total amount of eligible AHD soft costs cannot exceed 10% of the total AHSC Program award. | Z55: ='AHD-HRI Budget'!D7+'AHD-HRI Budget'!D9+'AHD-HRI Budget'!D10+'AHD-HRI Budget'!D40+'AHD-HRI Budget'!D43+'AHD-HRI Budget'!D51+'AHD-HRI Budget'!D53+'AHD-HRI Budget'!D56+'AHD-HRI Budget'!D75+'AHD-HRI Budget'!D91+'AHD-HRI Budget'!D100+'AHD-HRI Budget'!D101+'AHD-HRI Budget'!D109+'AHD-HRI Budget'!D110+'AHD-HRI Budget'!D111+'AHD-HRI Budget'!D45 -> 0 | AD55: =Overview!M31*0.1 -> 20000 | AH55: =IF(Z55-AD55>0,Z55-AD55,0) -> 0 | AL55: =IF(AH55>0,"No","OK") -> OK
A56: §103(c) We certify the AHSC AHD funded cost do not include any of the following ineligible costs: (1) Costs are not eligible if there is another feasible, available source of committed funding for the STI portion thereof to be funded by AHSC or if the cost is incurred prior to the AHSC award; (2) Routine maintenance of transportation infrastructure (including transit fleet); (3) In lieu fees for local inclusionary housing programs; (4) Ongoing operational costs beyond the term of the grant (3 years) for Program Costs; and (5) All costs associated with automobile or motorcycle parking (excluding electric vehicle charging infrastructure that may be located at a parking spot).
A57: HRI Eligible Costs §103(a)(2)(A) and Ineligible Costs §103(c)
A58: (i) Are capital improvements in the HRI budget required by a locality, transit agency, or special district? | V58: If Yes, are improvements a condition to the approval of the AHD?
A59: FAAST File Name: | E59: Cap Improvements Req | L59: Documentation from a Locality, transit agency, or special district that capital improvements are required | AG59: File Uploaded?
Z60: Budgeted | AD60: Cost Cap | AH60: Overage
A61: (ii) Total amount of eligible HRI soft costs cannot exceed 10% of the total AHSC Program award. | Z61: ='AHD-HRI Budget'!C120+'AHD-HRI Budget'!C202 -> 0 | AD61: =Overview!M31*0.1 -> 20000 | AH61: =IF(Z61-AD61>0,Z61-AD61,0) -> 0 | AL61: =IF(AH61>0,"No","Ok") -> Ok
A62: (iii) Total amount of eligible environmental remediation costs cannot exceed 50% of the total AHSC HRI grant funds. | Z62: ='AHD-HRI Budget'!C166 -> 0 | AD62: =Overview!M27*0.5 -> 0 | AH62: =IF(Z62-AD62>0,Z62-AD62,0) -> 0 | AL62: =IF(AH62>0,"No","Ok") -> Ok
A63: (iv) Total amount of eligible real property acquisition of the HRI project site and associated fees cannot exceed 10% of the AHSC Program award. | Z63: ='AHD-HRI Budget'!C120 -> 0 | AD63: =Overview!M31*0.1 -> 20000 | AH63: =IF(Z63-AD63>0,Z63-AD63,0) -> 0 | AL63: =IF(AH63>0,"No","Ok") -> Ok
A64: (v) Total amount of eligible impact fees cannot exceed 15% of the AHSC Program award up to $300,000. | Z64: ='AHD-HRI Budget'!C197 -> 0 | AD64: =IF(Overview!M31*0.15>300000,300000,Overview!M31*0.15) -> 30000 | AH64: =IF(Z64-AD64>0,Z64-AD64,0) -> 0 | AL64: =IF(AH64>0,"No","Ok") -> Ok
A65: §103(c) We certify the AHSC HRI funded cost do not include any of the following ineligible costs: (1) Costs are not eligible if there is another feasible, available source of committed funding for the STI portion thereof to be funded by AHSC or if the cost is incurred prior to the AHSC award; (2) Routine maintenance of transportation infrastructure (including transit fleet); (3) In lieu fees for local inclusionary housing programs; (4) Ongoing operational costs beyond the term of the grant (3 years) for Program Costs; and (5) All costs associated with automobile or motorcycle parking (excluding electric vehicle charging infrastructure that may be located at a parking spot).
A66: HRI Grant Terms §104(c)
A67: (1) We certify the HRI grant does not result in a profit that exceeds the commercially reasonable range for other improvements of similar size and level of risk.
A68: (2) We acknowledge that HRI grant funds will be disbursed as reimbursed progress payments for eligible costs incurred after the execution of the Standard Agreement in the amount not to exceed the AHSC Program award of funds.
A69: (3) We acknowledge if the HRI Project includes multiple phases or developments, all entitlements and construction funding commitments for the first phase must be received prior to disbursement. | AL69: No
A70: (4)(b) We acknowledge conditions precedent to the first disbursement of HRI funds shall include receipt of all required public agency entitlements and all construction funding commitments for the AHD supported by the HRI.
A71: AHD Threshold §106(a)
A72: (4) Describe how the AHD provides free transit passes, reloadable transit cards, or discounted passes priced at no more than half of retail cost (must describe how passes are provided at a discount no more than half of retail cost). Is there at least one pass per restricted unit? | AA72: Number of passes or cards will be provided: | AL72: =IF(AJ72<'AHD Units & Max Funds'!Q26,"No","Yes") -> No
AA73: Type of transit passes provided:
A75: (5) We certify the proposed AHD will be smoke free and demonstrate compliance prior to construction loan closing. | AL75: No
A76: FAAST File Name: | E76: SFH Lease Addendum | L76: Smoke Free Housing Lease Addendum is optional at time of application per §106(a)(5) | AG76: File Uploaded?
A77: (6) We certify the AHD will include adequate lighting in accordance with local, state or federal design standards and requirements for all publicly accessible components of the AHD including active transportation route and transit stations or stops.
A78: (7) AHD Enforceable Funding Commitments (EFC) - see Overview worksheet
A79: (8)(A) For the AHD, we have completion and approval or adoption of all necessary environmental clearances including those required under the CEQA and if applicable, NEPA, and all applicable time periods for filing appeals or lawsuits have lapsed.
A80: NEPA: | C80: Is Federal funding proposed that will trigger NEPA requirements? Describe any special circumstances below. | Z80: If Yes, enter date of "Authority to Use Grant Funds".
A82: CEQA: | C82: Project approved "by-right"? | J82: Is Project Categorically Exempt? | R82: Negative Declaration Date: | Z82: Final EIR Date: | AE82: Describe special circumstances below:
A84: FAAST File Name: | E84: AHD Environmental | J84: Provide a copy of all environmental clearances (e.g. Environmental Impact Report) or Notice of Exemption. (Do not provide a duplicate document if provided in another FAAST upload) | AG84: File Uploaded?
A85: FAAST File Name: | E85: AHD Auth to Use Grant Funds | J85: For NEPA only, provide a copy of the HUD 7015.16 "Authority To Use Grant Funds" or clarify the current status of the issuance of the HUD form. (Do not provide a duplicate document if provided in another FAAST upload) | AG85: File Uploaded?
A86: (9) If applicable, provide a listing and status of all discretionary local land use entitlements and permits, excluding design review, required to complete the AHD Project that have been granted, submitted or to be applied for to the appropriate local agencies, or consistent with local planning documents.
A87: Agency / Issuer | N87: Land Use Approval Date | S87: Approval Type | Z87: Comments
A93: (10) Market study submitted that demonstrates AHD Project is financially feasible? A market study that meets the requirements specified in TCAC Regs §10322(h)(10) will be accepted by HCD.
A94: FAAST File Name: | E94: Market Study | L94: Applicants must provide a completed market study prepared within one year of the application due date. (Do not provide a duplicate document if provided in another FAAST upload) | AG94: File Uploaded?
A95: (11a) Does applicant or Developer of Project have Site Control for the AHD Project? If yes, enter form of site control and the most recent execution date below (See Site Control in Appendix A)
A96: Form of site control (See Site Control in Appendix A): | Z96: Most recent document execution date:
A97: If leasehold estate, answer the following: | I97: Is rent based on restricted land value? | R97: Is acquisition cost $0 in Development Budget? | AB97: Prepaid lease loan used? If so answer below (a-c)
A98: (a) Funding amount based on the Present Value of lease payments? | O98: (b) Lender requesting Res. Receipts (not permissible) | AA98: (c) Has loan amount been entered as a finance cost?
A99: Describe any special circumstances.
A101: FAAST File Name: | E101: AHD Site Control | M101: Upload appropriate documentation to demonstrate the form of site control indicated above | AG101: Files Uploaded?
A102: (12) Applicants must demonstrate prior experience by providing evidence of two prior AHD projects similar to the proposed AHSC Project in scope and size, which have been completed by the applicant during the ten years preceding the application due date.
E103: AHD Past Project #1 | V103: AHD Past Project #2
A104: Project Name
A105: Development Entity
A106: Completion Date
A107: Project Tenure
A108: # of units
A109: Units per Acre
A110: Commercial (sq. ft.)
A111: Brief Description (e.g. number of units, population served, etc.)
A112: FAAST File Name: | E112: Past Exp AHD1, Past Exp AHD2 | L112: Applicants must upload Certificates of Occupancy for two recently completed affordable housing developments | AG112: File Uploaded?
A113: (13) We certify as of the application date, the applicants or the AHD real property is not party to or the subject of any claim or action in the state or federal courts.
A114: (14) We certify that construction of the AHD Project has not commenced as of the application deadline set forth in the NOFA.
A115: (19) The AHD Project will not result in the loss or conversion of agricultural or other working lands, or natural resource lands for other uses according the Dept. of Conservation's Farmland Mapping and Monitoring Program (FMMP) website?
A116: If "Yes", provide documentation the AHD Project site is not within land designated as agricultural land per the FMMP tool.
A117: FAAST File Name: | E117: AHD No Ag | L117: Applicants must demonstrate the AHD site is not within land designated as agricultural land per FMMP tool. | AG117: File Uploaded?
A118: If "No", demonstrate that the AHD Project site qualifies as an Infill Site (as defined in Appendix A):
A119: FAAST File Name: | E119: AHD Ag Infill | L119: Applicants seeking an exemption to the FMMP determination must demonstrate that the AHD Project site qualifies as an Infill Site (as defined in Appendix A) | AG119: File Uploaded?
A120: (20)(B) We certify the AHD is infeasible without AHSC Program funds, and other committed funds are not and will not be supplanted by AHSC Program funds.
A121: (20)(C) If the AHD Project involves demolition of existing units affordable to lower income households, the application must demonstrate the replacement of demolished units, comparable in size, of equal or greater affordability, and equal to or greater than the number of the demolished affordable units located within comparable access to transit and include first right of return to displaced residents. These no net loss requirements apply where an AHD Project is proposed on any property which includes a parcel or any portion of a parcel on which residential dwelling units affordable to lower income households currently exist or where there have been dwelling units restricted to lower-income households which have been vacated or demolished within the five year period preceding the application. Please explain below how this requirement is satisfied in the replacement affordable housing development. If the Project does not involve demolition or rehabilitation of existing affordable units, please indicate "N/A" below.
A123: (20)(D) We certify the proposed AHD is consistent with State and Federal Fair Housing requirements including duties to affirmatively further fair housing (explain below).
A125: HRI Threshold §106(a) (if applying for AHSC HRI funding)
A126: (6) We certify the HRI will incorporate more than one Urban Greening feature as defined in Appendix A, with dedicated maintenance for at least two years and include adequate lighting in accordance with local, state or federal design standards and requirements for all publicly accessible components of the HRI including active transportation route and transit stations or stops.
A127: (7) HRI Enforceable Funding Commitments (EFC) - see AHD-HRI Dev Sources worksheet
A128: (8)(A) For the HRI, we have completion and approval or adoption of all necessary environmental clearances including those required under the CEQA and if applicable, NEPA, and all applicable time periods for filing appeals or lawsuits have lapsed.
A129: NEPA: | C129: Is Federal funding proposed that will trigger NEPA requirements? Describe any special circumstances below. | Z129: If Yes, enter date of "Authority to Use Grant Funds".
A131: CEQA: | C131: Project approved "by-right"? | J131: Is Project Categorically Exempt? | R131: Negative Declaration Date: | Z131: Final EIR Date: | AE131: Describe special circumstances below:
A133: FAAST File Name: | E133: HRI Environmental | J133: Provide a copy of all environmental clearances (e.g. Environmental Impact Report) or Notice of Exemption. (Do not provide a duplicate document if provided in another FAAST upload) | AG133: File Uploaded?
A134: FAAST File Name: | E134: HRI Auth to Use Grant Funds | J134: For NEPA only, provide a copy of the HUD 7015.16 "Authority To Use Grant Funds" or clarify the current status of the issuance of the HUD form. (Do not provide a duplicate document if provided in another FAAST upload) | AG134: File Uploaded?
A135: (9) If applicable, provide a listing and status of all discretionary local land use entitlements and permits, excluding design review, required to complete the HRI Project that have been granted, submitted or to be applied for to the appropriate local agencies, or consistent with local planning documents.
A136: Agency / Issuer | N136: Land Use Approval Date | S136: Approval Type | Z136: Comments
A142: (10) Market study ((HRI requires a market study only if not using AHSC funds for AHD) submitted that demonstrates Project is financially feasible? A market study that meets the requirements specified in TCAC Regs §10322(h)(10) will be accepted by HCD.
A143: FAAST File Name: | E143: Market Study | L143: Applicants must provide a completed market study prepared within one year of the application due dat. (Do not provide a duplicate document if provided in another FAAST upload) | AG143: File Uploaded?
A144: (11) Does applicant or Developer of Project have Site Control for the HRI Project? If yes, enter form of site control and the most recent execution date below (See Site Control in Appendix A)
A145: Form of site control (See Site Control in Appendix A): | Z145: Most recent document execution date:
A146: If leasehold estate, answer the following: | I146: Is rent based on restricted land value? | R146: Is acquisition cost $0 in Development Budget? | AB146: Prepaid lease loan used? If so answer below (a-c)
A147: (a) Funding amount based on the Present Value of lease payments? | O147: (b) Lender requesting Res. Receipts (not permissible) | AA147: (c) Has loan amount been entered as a finance cost?
A148: Describe any special circumstances.
A150: FAAST File Name: | E150: HRI Site Control | M150: Upload appropriate documentation to demonstrate the form of site control indicated above | AG150: Files Uploaded?
A151: (12) Applicants must demonstrate prior experience by providing evidence of two prior HRI projects similar to the proposed AHSC Project in scope and size, which have been completed by the applicant during the ten years preceding the application due date.
E152: HRI Past Project #1 | V152: HRI Past Project #2
A153: Project Name
A154: Development Entity
A155: Completion Date
A156: # of units
A157: Units per Acre
A158: Commercial (sq. ft.)
A159: Brief description of infrastructure improvements completed as a condition of housing development approval.
A160: FAAST File Name: | E160: Past Exp HRI1, Past Exp HRI2 | L160: Applicants must upload either 1) Certificates of Occupancy for two recently completed affordable housing developments with required infastructure, or 2) a signed letter from a public agency certifying the satisfactory completion of the required infastructure improvements. | AG160: File Uploaded?
A161: (13) We certify as of the application date, the applicants or the HRI real property is not party to or the subject of any claim or action in the state or federal courts.
A162: (14) We certify that construction of the HRI Project has not commenced as of the application deadline set forth in the NOFA.
A163: (19) The HRI Project will not result in the loss or conversion of agricultural or other working lands, or natural resource lands for other uses according the Dept. of Conservation's Farmland Mapping and Monitoring Program (FMMP) website?
A164: If "Yes", provide documentation the HRI Project site is not within land designated as agricultural land per the FMMP tool.
A165: FAAST File Name: | E165: HRI No Ag | L165: Applicants must demonstrate the HRI site is not within land designated as agricultural land per FMMP tool. | AG165: File Uploaded?
A166: If "No", demonstrate that the HRI Project site qualifies as an Infill Site (as defined in Appendix A):
A167: FAAST File Name: | E167: HRI Ag Infill | L167: Applicants must demonstrate that the HRI Project site qualifies as an Infill Site (as defined in Appendix A) | AG167: File Uploaded?
A168: (20)(B) We certify the HRI is infeasible without AHSC Program funds, and other committed funds are not and will not be supplanted by AHSC Program funds.
A169: (20)(C) If the AHD Project involves demolition of existing units affordable to lower income households, the application must demonstrate the replacement of demolished units, comparable in size, of equal or greater affordability, and equal to or greater than the number of the demolished affordable units located within comparable access to transit and include first right of return to displaced residents. These no net loss requirements apply where an AHD Project is proposed on any property which includes a parcel or any portion of a parcel on which residential dwelling units affordable to lower income households currently exist or where there have been dwelling units restricted to lower-income households which have been vacated or demolished within the five year period preceding the application. Please explain below how this requirement is satisfied in the replacement affordable housing development. If the Project does not involve demolition or rehabilitation of existing affordable units, please indicate "N/A" below.
A171: (20)(D) We certify the proposed AHD is consistent with State and Federal Fair Housing requirements including duties to affirmatively further fair housing (explain below).
A173: (20)(E) If approval by a local public works department, or other responsible local agency is required for the Project, provide document below. I certify that the HRI improvements are consistent with all applicable local rules, regulations, codes, policies and plans enforced or implemented by that entity.
A174: FAAST File Name: | E174: HRI Local Approvals | M174: Statement from entity indicating the HRI Capital Project is consistent with all applicable local rules, regulations, codes, policies and plans enforced or implemented by that entity. | AG174: Files Uploaded?
A175: Article XXXIV Authority
A176: Article XXXIV opinion letters submitted to HCD must demonstrate that the applicant has considered both the legal requirements of Article XXXIV and the relevant facts of the project (e.g., the state public body lenders, the number of low income restricted units, and the general content of any regulatory restrictions). Any conclusion that a project is exempt from Article XXXIV must be supported by specific facts and a specific legal theory for exemption that itself is supported by the Constitution, statute, and/or case law. Prior to the execution of the HCD Standard Agreement, Applicant must deliver to HCD satisfactory evidence that the requirements of Article XXXIV of the California Constitution have been satisfied or are inapplicable.
A177: FAAST File Name: | E177: Article XXXIV Attorney Opinion | L177: Demonstrate legal requirements of Article XXXIV and relevant Project facts have been considered | AG177: File Uploaded?
A178: Does the locality have sufficient Article XXXIV Authority to accommodate the project? (If Project doesn't have Article XXXIV authority, AHSC may be limited to restricting no more than 49% of the total units.) | S178: If yes, document Article XXXIV authority for the Project. This may be done by providing info from an appropriate local government official that voters passed a specific project referendum or a blanket referendum has been passed and the locality has allocated sufficient Article XXXIV authority to the Project.
A179: FAAST File Name: | E179: Article XXXIV Authority | L179: Copy of document providing Authority | AG179: File Uploaded?
A180: Tax Credits
A181: Select appropriate entry for each item:
A182: Type (Select One): | I182: Federal: | M182: Proposed Equity Investor Contribution ($): | AA182: Anticipated Tax Credit Factor | AI182: App. Rate
I183: State: | M183: Proposed Equity Investor Contribution ($): | AA183: Anticipated Tax Credit Factor | AI183: App. Rate
A184: Timeframe for Applying for 4%Tax Credits | J184: Proposed Month: | R184: Proposed Year:
A185: Timeframe for Applying for 9%Tax Credits | J185: Proposed Round: | R185: Proposed Year:
A186: If already awarded, date of the Tax Credit Reservation:
A187: FAAST File Name: | E187: Tax Credit Reservation | L187: If this project has already received a tax credit reservation, upload documentation to FAAST | AG187: File Uploaded?
A188: Does or will the senior debt and loan agreement comply with HCD's Multifamily Housing Program financing as set forth in 25 CCR 7308, including the priority order of payments from cash flow?
A189: Does or will the junior debt and loan agreement comply with HCD's Multifamily Housing Program financing as set forth in 25 CCR 7308, including the priority order of payments from cash flow?
A190: Are there any cost sharing agreements? | J190: If there is commercial space not eligible to be funded by AHSC, is cost allocation based on total development cost? | AG190: If no, on what?
A191: What covenants or regulatory agreements are already on title?
A192: What covenants or regulatory agreements are anticipated?
A193: AHD MILESTONES
A194: Provide the actual or anticipated completion date for the following performance milestones for each applicable Capital Project. If a milestone is not applicable to a Capital Project, please enter "N/A"
A195: Note: It is acknowledged that some of the following milestones may have already been achieved. For those milestones which have previously been met, please enter the month and year completed. For those milestones not yet completed, please provide a projected completion date (MM/YY) for each of the applicable items below. If not applicable to the specific Capital Project, please indicate "NA" below.
A196: Capital Project Milestone Schedule | AK196: Date
A197: Execute binding agreement between the Recipient and developer of the proposed Capital Project detailing the terms and conditions of the Capital Project development.
A198: Secure all Enforceable Financing Commitments.
A199: Submission of Final Construction Drawings and Specifications to the appropriate local building department or permitting authority.
A200: Commencement of construction.
A201: Construction complete and the filing of the Notice of Completion.
A202: Permanent loan closing.
A203: Program funds fully disbursed.
A204: HRI MILESTONES
A205: Provide the actual or anticipated completion date for the following performance milestones for each applicable Capital Project. If a milestone is not applicable to a Capital Project, please enter "N/A"
A206: Note: It is acknowledged that some of the following milestones may have already been achieved. For those milestones which have previously been met, please enter the month and year completed. For those milestones not yet completed, please provide a projected completion date (MM/YY) for each of the applicable items below. If not applicable to the specific Capital Project, please indicate "NA" below.
A207: Capital Project Milestone Schedule | AK207: Date
A208: Execute binding agreement between the Awardee and developer of the proposed Capital Project detailing the terms and conditions of the Capital Project development.
A209: Secure all Enforceable Financing Commitments.
A210: Submission of Final Construction Drawings and Specifications to the appropriate local building department or permitting authority.
A211: Commencement of construction.
A212: Construction complete and the filing of the Notice of Completion.
A213: Program funds fully disbursed.

Sheet AHD Units & Max Funds (hidden)
A1: =CONCATENATE(Overview!D3," AHD Units and Maximum AHD-HRI Funds ","PIN ",Overview!AI2) -> AHD Units and Maximum AHD-HRI Funds PIN
A2: AHD Unit Mix
A3: (A) | C3: (B) | F3: (C) | I3: (D) | K3: (E) | N3: (F) | Q3: (G) | T3: (H) | W3: (I) | Z3: (J) | AC3: (K) | AE3: (L) | AG3: (M) | AI3: (N) | AK3: (O)
A4: # of Bdrms | C4: Unit Type | F4: % of Area Median Income | I4: Total Units | K4: Total Rental Units | N4: Total Homeowner Units | Q4: Total Restricted Units | T4: Total Unrestricted Units | W4: Total Restricted Affordable Rental Units | Z4: Total Restricted Affordable HO Units | AC4: Mgr. Units | AE4: Supportive Housing Units | AG4: AHSC Restricted Units | AI4: Veterans Units | AK4: Senior Units
AM5: Affordability Units
A6: 0 | I6: 2 | K6: =IF(C6="Rental",I6,"") ->  | N6: =IF(C6="Home Owner",I6,"") ->  | Q6: =IF(OR(F6="",F6="none"),"",I6) ->  | T6: =IF(OR(F6="",F6="none"),I6,"") -> 2 | W6: =IF(OR(C6="Home Owner",I6=0),"",IF(OR(F6="none",F6="",F6="HO Lower"),"",I6)) ->  | Z6: =IF(OR(C6="Rental",I6=0),"",IF(OR(F6="none",F6=""),"",IF(F6="HO Lower",I6,""))) ->  | AC6: 2 | AM6: =SUMIF($F$6:$H$25,"15% AMI",$Q$6:$S$25)*15 -> 135
T7: 0 | AM7: =SUMIF($F$6:$H$25,"20% AMI",$Q$6:$S$25)*20 -> 0
T8: 0 | AM8: =SUMIF($F$6:$H$25,"25% AMI",$Q$6:$S$25)*25 -> 0
A9: 1 | F9: 15% AMI | I9: 2 | Q9: 2 | W9: 2 | AM9: =SUMIF($F$6:$H$25,"30% AMI",$Q$6:$S$25)*30 -> 0
A10: 0 | F10: 15% AMI | I10: 2 | Q10: 2 | W10: 2 | AM10: =SUMIF($F$6:$H$25,"35% AMI",$Q$6:$S$25)*35 -> 0
T11: 0 | AM11: =SUMIF($F$6:$H$25,"40% AMI",$Q$6:$S$25)*40 -> 0
A12: 0 | F12: 15% AMI | I12: 5 | Q12: 5 | W12: 5 | AM12: =SUMIF($F$6:$H$25,"45% AMI",$Q$6:$S$25)*45 -> 0
T13: 0 | AM13: =SUMIF($F$6:$H$25,"50% AMI",$Q$6:$S$25)*50 -> 0
A14: 0 | F14: none | I14: 1 | T14: 1 | AM14: =SUMIF($F$6:$H$25,"55% AMI",$Q$6:$S$25)*55 -> 0
T15: 0 | AM15: =SUMIF($F$6:$H$25,"60% AMI",$Q$6:$S$25)*60 -> 0
T16: 0 | AM16: =SUM(AM6:AM15) -> 135
T17: 0
T18: 0
A19: 0 | I19: 5 | T19: 5
T20: 0
T21: 0
T22: 0
T23: 0
T24: 0
T25: 0
I26: =SUM(I6:I25) -> 17 | K26: =SUM(K6:K25) -> 0 | N26: =SUM(N6:N25) -> 0 | Q26: =SUM(Q6:S25) -> 9 | T26: =SUM(T6:V25) -> 8 | W26: =SUM(W6:Y25) -> 9 | Z26: =SUM(Z6:AB25) -> 0 | AC26: =SUM(AC6:AC25) -> 2 | AE26: =SUM(AE6:AE25) -> 0 | AG26: =SUM(AG6:AG25) -> 0 | AI26: =SUM(AI6:AI25) -> 0 | AK26: =SUM(AK6:AK25) -> 0
A27: Total Extremely Low Income (ELI) 15-30% AMI rental units | L27: =SUMIF(F6:H25,"15% AMI",I6:J25)+SUMIF(F6:H25,"20% AMI",I6:J25)+SUMIF(F6:H25,"25% AMI",I6:J25)+SUMIF(F6:H25,"30% AMI",I6:J25) -> 9 | M27: Total Very Low Income (VLI) 31-50% AMI rental units | W27: =SUMIF(F6:H25,"35% AMI",I6:J25)+SUMIF(F6:H25,"40% AMI",I6:J25)+SUMIF(F6:H25,"45% AMI",I6:J25)+SUMIF(F6:H25,"50% AMI",I6:J25) -> 0 | X27: % Affordability 103(a)(1)(A)(iii): | AD27: =IF(I26=0,0,ROUND((W26+Z26)/I26,2)) -> 0.53 | AF27: Avg. Affordability: | AJ27: =IF(W26=0,0,ROUND(AM16/W26/100,2)) -> 0.15
A28: FAAST File Name: | E28: Utility Allowance | L28: Documentation from the local housing authority substantiating the amount of the Utility Allowance used | AG28: File Uploaded?
A29: Maximum HRI Grant Amount
A30: =CONCATENATE(," ",T26," HRI unrestricted units at $35,000 per unit") -> 8 HRI unrestricted units at $35,000 per unit | H30: =T26*35000 -> 280000 | K30: =CONCATENATE(," ",Q26," HRI restricted units at $50,000 per unit") -> 9 HRI restricted units at $50,000 per unit | S30: =Q26*50000 -> 450000 | V30: Requested HRI Amt | Z30: =IF('AHD-HRI Budget'!C206="",0,'AHD-HRI Budget'!C206) -> 0 | AC30: Max AHSC HRI Grant | AI30: =MIN((H30+S30),Z30) -> 0
A31: =CONCATENATE("Maximum AHSC AHD Loan Amount for ",'AHD-HRI'!AB4," click here for base 2017 AHSC loan limits - (beginning on page 31).") -> Maximum AHSC AHD Loan Amount for click here for base 2017 AHSC loan limits - (beginning on page 31).
A32: # of Unrestricted Manager Units: | H32: =SUMIF(F6:H25,"",AC6:AD25)+SUMIF(F6:H25,"none",AC6:AD25) -> 2 | J32: Applying for 9% Tax Credits?: | P32: No | Q32: If no 9%, $80,000 per Restricted Unit added to Base amount: | AC32: =IF(P32="No",Q26*80000,0) -> 720000 | AF32: Request. AHD Amt | AJ32: =IF('AHD-HRI Budget'!D207="",0,'AHD-HRI Budget'!D207) -> 0
A33: A | C33: B | E33: C | G33: D | J33: E | L33: F | N33: G | Q33: H | S33: I | U33: J | X33: K | Z33: L | AB33: M | AE33: N | AG33: O | AI33: P
A34: AMI Level | C34: Per Unit Loan Limit for Efficiency Unit | E34: # of AHSC restricted units Efficiency Units | G34: Total Allowed for Efficiency Units (BxC) | J34: Per Unit Loan Limit for 1 Br. | L34: # of AHSC restricted units 1 Bedroom | N34: Total Allowed for 1 Br. (E x F) | Q34: Per Unit Loan Limit for 2 Br. | S34: # of AHSC restricted units 2 Bedrooms | U34: Total Allowed for 2 Br. (H x I) | X34: Per Unit Loan Limit for 3 Br. | Z34: # of AHSC restricted units 3 Bedrooms | AB34: Total Allowed for 3 Br. (K x L) | AE34: Per Unit Loan Limit for 4+ Br. | AG34: # of AHSC restricted units 4+ Bedrooms | AI34: Total Allowed for 4+ Br. (N x O)
A35: 0.6 | G35: =C35*E35 -> 0 | N35: =J35*L35 -> 0 | U35: =Q35*S35 -> 0 | AB35: =X35*Z35 -> 0 | AI35: =AE35*AG35 -> 0
A36: 0.55 | G36: 0 | N36: 0 | U36: 0 | AB36: 0 | AI36: 0
A37: 0.5 | G37: 0 | N37: 0 | U37: 0 | AB37: 0 | AI37: 0
A38: 0.45 | G38: 0 | N38: 0 | U38: 0 | AB38: 0 | AI38: 0
A39: 0.4 | G39: 0 | N39: 0 | U39: 0 | AB39: 0 | AI39: 0
A40: 0.35 | G40: 0 | N40: 0 | U40: 0 | AB40: 0 | AI40: 0
A41: 0.3 | G41: 0 | N41: 0 | U41: 0 | AB41: 0 | AI41: 0
A42: 0.25 | G42: 0 | N42: 0 | U42: 0 | AB42: 0 | AI42: 0
A43: 0.2 | G43: 0 | N43: 0 | U43: 0 | AB43: 0 | AI43: 0
A44: 0.15 | G44: 0 | N44: 0 | U44: 0 | AB44: 0 | AI44: 0
A45: Base Limits | D45: Mgr. Unrestricted | H45: D | L45: G | P45: J | T45: M | X45: P | AB45: Base Total Amt | AG45: Max AHSC AHD Loan
D46: =H32*30000 -> 60000 | H46: =SUM(G35:G44) -> 0 | L46: =SUM(N35:N44) -> 0 | P46: =SUM(U35:U44) -> 0 | T46: =SUM(AB35:AB44) -> 0 | X46: =SUM(AI35:AI44) -> 0 | AB46: =SUM(D46:Y46) -> 60000 | AG46: =MIN((AB46+AC32),AJ32) -> 0
A47: Commercial Space
A48: Type of Business (if Known) | H48: # of Total Units | K48: Sq. Footage of Each Space | N48: Expected Gross Rent per S.F. | Q48: Expected Gross Rent | W48: Other Revenue (Specify) | AA48: Other Revenue (Amount) | AE48: Garage and Parking Space Revenue | AI48: Miscellaneous Rent Revenue
A55: TOTAL: | H55: =SUM(H49:J54) -> 0 | K55: =SUM(K49:M54) -> 0 | N55: =SUM(N49:P54) -> 0 | Q55: =SUM(Q49:V54) -> 0 | W55: =SUM(W49:Z54) -> 0 | AA55: =SUM(AA49:AD54) -> 0 | AE55: =SUM(AE49:AH54) -> 0 | AI55: =SUM(AI49:AL54) -> 0
A56: AVERAGE: | H56: =IF(H55=0,0,AVERAGE(H49:J54)) -> 0 | K56: =IF(K55=0,0,AVERAGE(K49:M54)) -> 0 | N56: =IF(N55=0,0,AVERAGE(N49:P54)) -> 0 | Q56: =AVERAGE(Q49:V55) -> 0 | W56: =AVERAGE(W49:Z55) -> 0 | AA56: =AVERAGE(AA49:AD55) -> 0 | AE56: =AVERAGE(AE49:AH55) -> 0 | AI56: =AVERAGE(AI49:AL55) -> 0
A57: Describe the Proposed Commercial Use and Identify any Special Issues:

Sheet AHD-HRI Dev Sources (hidden)
A1: =CONCATENATE(Overview!D3," HRI and AHD Sources of Development Funds ","PIN ",Overview!AI2) -> HRI and AHD Sources of Development Funds PIN
A2: Construction Period Sources of Funds
B3: Committed by Application Due Date? | C3: AHD vs HRI Source | D3: Source Name (listed in order of lien priority) | F3: Source Type | G3: Lien No. | H3: Amount | I3: Interest Rate | J3: Required Payment | K3: Loan Term (months) | L3: Residential Amount | M3: Commercial Amount | O3: *Details of Deferred Costs
O4: Amount | P4: Description
A5: 1 | B5: Yes | C5: HRI | D5: AHSC HRI Grant | F5: State-HCD
A6: 2
A7: 3
A8: 4
A9: 5
A10: 6
A11: 7
A12: 8
A13: 9
A14: 10
A15: 11
A16: 12
A17: 13 | C17: AHD | D17: Deferred Costs (detail at right) | F17: Deferred Costs
A18: 14 | D18: Equity Investor | L18: =H18 -> 0
E19: TOTALS | H19: =SUM(H5:H18) -> 0 | L19: =SUM(L5:L18) -> 0 | M19: =SUM(M5:M17) -> 0 | O19: =SUM(O5:O18) -> 0
A21: Permanent Sources of Funds
A22: See AHSC Guidelines Appendix A - Definitions for an explanation of Enforceable Funding Commitments (EFC).
A23: EFC # | B23: Committed by Application Due Date? | C23: AHD vs HRI Source | D23: Source Name (listed in order of lien priority) | F23: Source Type | G23: Lien No. | H23: Amount | I23: Interest Rate | K23: Amortization Period (yrs.) | L23: Repayment Terms | N23: Required Residential Debt Service | O23: Required Commercial Debt Service | P23: Residential Amount | Q23: Commercial Amount | R23: Balloon?
I24: Rate | J24: Type | L24: Type | M24: Due in (yrs)
A25: 1 | B25: Yes | C25: HRI | D25: AHSC HRI Grant | F25: State-HCD | R25: N/A
A26: 2 | B26: Yes | C26: AHD | D26: AHSC AHD Loan | F26: State-HCD | K26: 55 | L26: MHP-Partial Interest Only | M26: 55 | Q26: 0 | R26: No
A27: 3
A28: 4
A29: 5
A30: 6
A31: 7
A32: 8
A33: 9
A34: 10
A35: 11
A36: 12
A37: 13
A38: 14
A39: 15 | C39: AHD | D39: Equity Investor | P39: =H39 -> 0 | R39: =COUNTIF(B27:B38,"Yes") -> 0
C40: =SUMIF(B27:B38,"Yes",H27:H38) -> 0 | D40: <Total Committed Non-AHSC AHD & HRI Funds | H40: =SUM(H25:H39) -> 0 | I40: TOTALS | N40: =SUM(N25:N39) -> 0 | O40: =SUM(O25:O39) -> 0 | P40: =SUM(P25:P39) -> 0 | Q40: =SUM(Q25:Q39) -> 0 | R40: =COUNTIF(B27:B38,"Yes") -> 0
A41: FAAST File Name: | E41: EFC AHD HRI1; EFC AHD HRI2; EFC AHD HRI3; etc. | J41: =CONCATENATE("Upload supporting documentation for the ",R40," non-AHSC AHD & HRI funding commitments.") -> Upload supporting documentation for the 0 non-AHSC AHD & HRI funding commitments. | O41: Files Uploaded?
A42: Applicant Comments: Include a description of unusual or extraordinary circumstances that have resulted in higher than expected project costs and provide a justification as to why these costs are reasonable.

Sheet AHD Dev Fee (hidden)
A1: =CONCATENATE(Overview!D3," AHD Developer Fee ","PIN ",Overview!AI2) -> AHD Developer Fee PIN
A2: 4% and 9% Low Income Housing Tax Credit Projects
A3: Net Developer Fee shall not exceed the amount allowed under UMR 8312.
A4: A. | B4: New construction and substantial rehab (with construction cost for rehab work excluding contractor profit and overhead greater than $36,000 per unit) projects 8312(a)(1)
A5: 1 | B5: Number of units (include manager's unit)
A6: 2 | B6: First 30 units at: | E6: 26000 | F6: per unit | I6: =IF(H5>29,E6*30,+H5*E6) -> 0
A7: 3 | B7: Units in excess of 30 at: | E7: 10500 | F7: per unit | I7: =IF(H5<30,0,(H5-30)*+E7) -> 0
A8: 4 | B8: Total (A2 + A3) | I8: =+I6+I7 -> 0
A9: B. | B9: Acquisition and rehab projects (with construction cost for rehab work excluding contractor profit and overhead between $10,500 - $36,000 per unit) 8312(a)(2)
A10: 1 | B10: Number of Rehab units (include manager's unit)
A11: 2 | B11: First 30 units at: | E11: 13000 | F11: per unit | I11: =IF(H10>29,E11*30,+H10*E11) -> 0
A12: 3 | B12: Units in excess of 30 at: | E12: 6500 | F12: per unit | I12: =IF(H10<30,0,(H10-30)*+E12) -> 0
A13: 4 | B13: Total (B2 + B3) | I13: =+I11+I12 -> 0
A14: C. | B14: All other projects 8312(a)(3)
A15: 1 | B15: Number of other units (include manager's unit)
A16: 2 | B16: Total at: | E16: 2000 | F16: per unit | I16: =+H15*E16 -> 0
A17: D. | B17: Developer Fee that TCAC would allow to be included in eligible basis
B18: Ask Applicant for calculation
A19: E. | B19: Lesser of $1,200,000 or D | I19: =IF(ISBLANK(I18),"COMPLETE D",MIN(I18,1200000)) -> COMPLETE D
A20: F. | B20: Sponsor capital contribution of funds or real property 8312(d)
A21: G. | B21: Maximum allowable Developer Fee payable from development funding sources
B22: A4 + B4 + C2, not to exceed E, plus F | I22: =IF(I8+I13+I16>I19,I19+I20,I8+I13+I16+I20) -> 0
A23: H. | B23: Developer Fee budgeted for payment from Development Funding Sources
B24: Cannot exceed line G
A25: I. | B25: Maximum Deferred Fee payable from cash flow
B26: Prior to Distributions and Residual Receipts loan payments (E+F-H) | I26: =IF(I19="COMPLETE D", 0,+I19+I20-I24) -> 0
A27: J. | B27: Deferred Developer Fee budgeted for payment from cash flow prior to Distributions &residual receipts loan payments
B28: Cannot exceed line I
A29: K. | B29: Deferred Development Fee budgeted for payment from Distributions
A30: L. | B30: Total Developer Fee, including Fee payable from Distributions (H+J+K) | I30: =I24+I28+I29 -> 0
A31: Non-Tax Credit Projects - UMR 8312(a)(1-3),(d)
A32: Net Developer Fee shall not exceed the amount allowed under UMR 8312.
A33: A. | B33: New construction and substantial rehab (with construction cost for rehab work excluding contractor profit and overhead greater than $36,000 per unit) projects 8312(a)(1)
A34: 1 | B34: Number of units (include manager's unit)
A35: 2 | B35: First 30 units at: | E35: 26000 | F35: per unit | I35: =IF(H34>29,E35*30,+H34*E35) -> 0
A36: 3 | B36: Units in excess of 30 at: | E36: 10500 | F36: per unit | I36: =IF(H34<30,0,(H34-30)*+E36) -> 0
A37: 4 | B37: Total (A2 + A3) | I37: =+I35+I36 -> 0
A38: B. | B38: Acquisition and rehab projects (with construction cost for rehab work excluding contractor profit and overhead between $10,500 - $36,000 per unit) 8312(a)(2)
A39: 1 | B39: Number of Rehab units (include manager's unit)
A40: 2 | B40: First 30 units at: | E40: 13000 | F40: per unit | I40: =IF(H39>29,E40*30,+H39*E40) -> 0
A41: 3 | B41: Units in excess of 30 at: | E41: 6500 | F41: per unit | I41: =IF(H39<30,0,(H39-30)*+E41) -> 0
A42: 4 | B42: Total (B2 + B3) | I42: =+I40+I41 -> 0
A43: C. | B43: All other projects 8312(a)(3)
A44: 1 | B44: Number of other units (include manager's unit)
A45: 2 | B45: Total at: | E45: 2000 | F45: per unit | I45: =+H44*E45 -> 0
A46: D. | B46: Sponsor capital contribution of funds or real property 8312(d)
A47: E. | B47: HCD Maximum Developer Fee | I47: =MIN((I37+I42+I45),1200000)+I46 -> 0
A48: Developer fees allowed by TCAC in excess of HCD maximum (E) must be paid from Borrower Distributions.

Sheet AHD-HRI Budget (hidden)
A1: =CONCATENATE(Overview!D3," AHD and HRI Permanent Sources and Uses ","PIN ",Overview!AI2) -> AHD and HRI Permanent Sources and Uses PIN
C2: AHD Residential and HRI Permanent Sources of Funds | T2: Commercial Sources | W2: Eligible Basis Costs
A3: USES OF FUNDS | C3: ='AHD-HRI Dev Sources'!$D$25 -> AHSC HRI Grant | D3: ='AHD-HRI Dev Sources'!$D$26 -> AHSC AHD Loan | E3: ='AHD-HRI Dev Sources'!$D$27 -> 0 | F3: ='AHD-HRI Dev Sources'!$D$28 -> 0 | G3: ='AHD-HRI Dev Sources'!$D$29 -> 0 | H3: ='AHD-HRI Dev Sources'!$D$30 -> 0 | I3: ='AHD-HRI Dev Sources'!$D$31 -> 0 | J3: ='AHD-HRI Dev Sources'!$D$32 -> 0 | K3: ='AHD-HRI Dev Sources'!$D$33 -> 0 | L3: ='AHD-HRI Dev Sources'!$D$34 -> 0 | M3: ='AHD-HRI Dev Sources'!$D$35 -> 0 | N3: ='AHD-HRI Dev Sources'!$D$36 -> 0 | O3: ='AHD-HRI Dev Sources'!$D$37 -> 0 | P3: ='AHD-HRI Dev Sources'!$D$38 -> 0 | Q3: Gross Tax Credit Equity | R3: Total Residential Sources/Costs | S3: Total Commercial Sources/Costs | T3: Source Name: | U3: Source Name: | V3: Total Costs (Residential & Commercial) | W3: 0.7 | X3: 0.3
A6: AFFORDABLE HOUSING DEVELPMENT (AHD)
A7: Lesser of Land Cost or Value | R7: =SUM(C7:Q7) -> 0 | S7: =T7+U7 -> 0 | V7: =R7+S7 -> 0 | W7: XXXXXXXXXX | X7: XXXXXXXXXX
A8: Demolition | R8: 0 | S8: =T8+U8 -> 0 | V8: 0 | W8: XXXXXXXXXX | X8: XXXXXXXXXX
A9: Legal & Closing Costs | R9: 0 | S9: 0 | V9: 0 | W9: XXXXXXXXXX | X9: XXXXXXXXXX
A10: Verifiable Carrying Costs | R10: 0 | V10: 0 | W10: XXXXXXXXXX | X10: XXXXXXXXXX
A11: Existing Improvements Cost | R11: 0 | S11: =T11+U11 -> 0 | V11: 0 | W11: XXXXXXXXXX | X11: =R11 -> 0
A12: Other: | R12: 0 | S12: 0 | V12: 0 | W12: XXXXXXXXXX | X12: =R12 -> 0
A13: Total Acquisition | C13: =SUM(C7:C12) -> 0 | D13: =SUM(D7:D12) -> 0 | E13: 0 | F13: 0 | G13: 0 | H13: 0 | I13: 0 | J13: 0 | K13: 0 | L13: 0 | M13: 0 | N13: 0 | O13: 0 | P13: 0 | Q13: 0 | R13: =SUM(R7:R12) -> 0 | S13: =SUM(S7:S12) -> 0 | T13: =SUM(T7:T12) -> 0 | U13: =SUM(U7:U12) -> 0 | V13: 0 | W13: =SUM(W7:W12) -> 0 | X13: 0
A14: Off-Site Improvements | R14: =SUM(C14:Q14) -> 0 | S14: =T14+U14 -> 0 | V14: 0 | W14: XXXXXXXXXX | X14: =R14 -> 0
A15: Environmental Remediation | R15: =SUM(C15:Q15) -> 0 | S15: 0 | V15: 0 | W15: =R15 -> 0 | X15: 0
A16: Site Work | R16: =SUM(C16:Q16) -> 0 | S16: 0 | V16: 0 | W16: 0 | X16: 0
A17: Structures | R17: 0 | S17: 0 | V17: 0 | W17: 0 | X17: 0
A18: General Requirements | R18: 0 | S18: 0 | V18: 0 | W18: 0 | X18: 0
A19: Contractor Overhead | R19: 0 | S19: 0 | V19: 0 | W19: 0 | X19: 0
A20: Contractor Profit | R20: 0 | S20: 0 | V20: 0 | W20: 0 | X20: 0
A21: General Liability Insurance | R21: =SUM(C21:Q21) -> 0 | S21: 0 | V21: 0 | W21: 0 | X21: 0
A22: Other: | R22: 0 | S22: 0 | V22: 0 | W22: 0 | X22: 0
A23: Total Rehabilitation Costs | C23: =SUM(C14:C22) -> 0 | D23: =SUM(D14:D22) -> 0 | E23: 0 | F23: 0 | G23: 0 | H23: 0 | I23: 0 | J23: 0 | K23: 0 | L23: 0 | M23: 0 | N23: 0 | O23: 0 | P23: 0 | Q23: 0 | R23: =SUM(R14:R22) -> 0 | S23: 0 | T23: 0 | U23: 0 | V23: 0 | W23: =SUM(W14:W22) -> 0 | X23: 0
A24: Temporary Relocation | R24: =SUM(C24:Q24) -> 0 | S24: =T24+U24 -> 0 | V24: 0 | W24: =R24 -> 0 | X24: =R24 -> 0
A25: Permanent Relocation | R25: =SUM(C25:Q25) -> 0 | S25: 0 | V25: 0 | W25: =R25 -> 0 | X25: =R25 -> 0
A26: Total Relocation | C26: =SUM(C24:C25) -> 0 | D26: =SUM(D24:D25) -> 0 | E26: 0 | F26: 0 | G26: 0 | H26: 0 | I26: 0 | J26: 0 | K26: 0 | L26: 0 | M26: 0 | N26: 0 | O26: 0 | P26: 0 | Q26: 0 | R26: =SUM(R24:R25) -> 0 | S26: 0 | T26: 0 | U26: 0 | V26: 0 | W26: =SUM(W24:W25) -> 0 | X26: 0
A27: Off-Site Improvements | R27: =SUM(C27:Q27) -> 0 | S27: =T27+U27 -> 0 | V27: 0 | W27: XXXXXXXXXX | X27: =R27 -> 0
A28: Environmental Remediation | R28: 0 | S28: 0 | V28: 0 | W28: =R28 -> 0 | X28: 0
A29: Site Work (hard costs) | R29: 0 | S29: 0 | V29: 0 | W29: 0 | X29: 0
A30: Urban Greening | R30: =SUM(C30:Q30) -> 0 | S30: =T30+U30 -> 0 | V30: =R30+S30 -> 0 | W30: =R30 -> 0 | X30: =R30 -> 0
A31: Structures (hard costs) | R31: 0 | S31: 0 | V31: 0 | W31: 0 | X31: 0
A32: General Requirements | R32: 0 | S32: 0 | V32: 0 | W32: 0 | X32: 0
A33: Contractor Overhead | R33: 0 | S33: 0 | V33: 0 | W33: 0 | X33: 0
A34: Contractor Profit | R34: 0 | S34: 0 | V34: 0 | W34: 0 | X34: 0
A35: General Liability Insurance | R35: 0 | S35: 0 | V35: 0 | W35: 0 | X35: 0
A36: Other: | R36: 0 | S36: 0 | V36: 0 | W36: 0 | X36: 0
A37: Total New Construction | C37: =SUM(C27:C36) -> 0 | D37: =SUM(D27:D36) -> 0 | E37: 0 | F37: 0 | G37: 0 | H37: 0 | I37: 0 | J37: 0 | K37: 0 | L37: 0 | M37: 0 | N37: 0 | O37: 0 | P37: 0 | Q37: 0 | R37: =SUM(R27:R36) -> 0 | S37: 0 | T37: 0 | U37: 0 | V37: 0 | W37: =SUM(W27:W36) -> 0 | X37: 0
A38: Design | R38: =SUM(C38:Q38) -> 0 | S38: =T38+U38 -> 0 | V38: 0 | W38: =R38 -> 0 | X38: =R38 -> 0
A39: Supervision | R39: =SUM(C39:Q39) -> 0 | S39: 0 | V39: 0 | W39: =R39 -> 0 | X39: =R39 -> 0
A40: Total Architectural Costs | C40: =SUM(C38:C39) -> 0 | D40: =SUM(D38:D39) -> 0 | E40: 0 | F40: 0 | G40: 0 | H40: 0 | I40: 0 | J40: 0 | K40: 0 | L40: 0 | M40: 0 | N40: 0 | O40: 0 | P40: 0 | Q40: =SUM(Q38:Q39) -> 0 | R40: =SUM(R38:R39) -> 0 | S40: 0 | T40: 0 | U40: 0 | V40: =R40+S40 -> 0 | W40: =U40+V40 -> 0 | X40: =SUM(X38:X39) -> 0
A41: Engineering | R41: =SUM(C41:Q41) -> 0 | S41: =T41+U41 -> 0 | V41: 0 | W41: =R41 -> 0 | X41: =R41 -> 0
A42: ALTA Land Survey | R42: =SUM(C42:Q42) -> 0 | S42: 0 | V42: 0 | W42: =R42 -> 0 | X42: =R42 -> 0
A43: Total Survey & Engineering | C43: =SUM(C41:C42) -> 0 | D43: =SUM(D41:D42) -> 0 | E43: 0 | F43: 0 | G43: 0 | H43: 0 | I43: 0 | J43: 0 | K43: 0 | L43: 0 | M43: 0 | N43: 0 | O43: 0 | P43: 0 | Q43: 0 | R43: =SUM(R41:R42) -> 0 | S43: 0 | T43: 0 | U43: 0 | V43: 0 | W43: =U43+V43 -> 0 | X43: =SUM(X41:X42) -> 0
A44: Hard Cost Contingency | R44: =SUM(C44:Q44) -> 0 | S44: =T44+U44 -> 0 | V44: 0 | W44: =R44 -> 0 | X44: =R44 -> 0
A45: Soft Cost Contingency | R45: =SUM(C45:Q45) -> 0 | S45: 0 | V45: 0 | W45: =R45 -> 0 | X45: =R45 -> 0
A46: Total Contingency Costs | C46: =SUM(C44:C45) -> 0 | D46: 0 | E46: 0 | F46: 0 | G46: 0 | H46: 0 | I46: 0 | J46: 0 | K46: 0 | L46: 0 | M46: 0 | N46: 0 | O46: 0 | P46: 0 | Q46: 0 | R46: =SUM(R44:R45) -> 0 | S46: 0 | T46: 0 | U46: 0 | V46: 0 | W46: =SUM(W44:W45) -> 0 | X46: 0
A47: Construction Loan Interest | R47: =SUM(C47:Q47) -> 0 | S47: =T47+U47 -> 0 | V47: 0 | W47: =R47 -> 0 | X47: =R47 -> 0
A48: Origination Fee | R48: 0 | S48: 0 | V48: 0 | W48: 0 | X48: 0
A49: Credit Enhancement & App. Fee | R49: 0 | S49: 0 | V49: 0 | W49: 0 | X49: 0
A50: Owner Paid Bonds/Insurance | R50: 0 | S50: 0 | V50: 0 | W50: 0 | X50: 0
A51: Lender Inspection Fees | R51: =SUM(C51:Q51) -> 0 | S51: 0 | V51: 0 | W51: 0 | X51: 0
A52: Taxes During Construction | R52: 0 | S52: 0 | V52: 0 | W52: 0 | X52: 0
A53: Prevailing Wage Monitor | R53: 0 | S53: 0 | V53: 0 | W53: 0 | X53: 0
A54: Insurance During Construction | R54: 0 | S54: 0 | V54: 0 | W54: 0 | X54: 0
A55: Title and Recording Fees | R55: 0 | S55: 0 | V55: 0 | W55: 0 | X55: 0
A56: Construction Mgmt. & Testing | R56: 0 | S56: 0 | V56: 0 | W56: 0 | X56: 0
A57: Predevelopment Interest Exp. | R57: 0 | S57: 0 | V57: 0 | W57: 0 | X57: 0
A58: Other: | R58: 0 | S58: 0 | V58: 0 | W58: 0 | X58: 0
A59: Other: | R59: 0 | S59: 0 | V59: 0 | W59: 0 | X59: 0
A60: Total Construction Expenses | C60: =SUM(C47:C59) -> 0 | D60: =SUM(D47:D59) -> 0 | E60: 0 | F60: 0 | G60: 0 | H60: 0 | I60: 0 | J60: 0 | K60: 0 | L60: 0 | M60: 0 | N60: 0 | O60: 0 | P60: 0 | Q60: 0 | R60: =SUM(R47:R59) -> 0 | S60: 0 | T60: 0 | U60: 0 | V60: 0 | W60: =SUM(W47:W59) -> 0 | X60: 0
A61: Loan Origination Fee(s) | R61: =SUM(C61:Q61) -> 0 | S61: =T61+U61 -> 0 | V61: 0 | W61: XXXXXXXXXX | X61: XXXXXXXXXX
A62: Credit Enhancement & App. Fee | R62: 0 | S62: 0 | V62: 0 | W62: XXXXXXXXXX | X62: XXXXXXXXXX
A63: Title and Recording | R63: 0 | S63: 0 | V63: 0 | W63: XXXXXXXXXX | X63: XXXXXXXXXX
A64: Property Taxes | R64: 0 | S64: 0 | V64: 0 | W64: XXXXXXXXXX | X64: XXXXXXXXXX
A65: Insurance | R65: 0 | S65: 0 | V65: 0 | W65: XXXXXXXXXX | X65: XXXXXXXXXX
A66: Other: | R66: 0 | S66: 0 | V66: 0 | W66: XXXXXXXXXX | X66: XXXXXXXXXX
A67: Other: | R67: 0 | S67: 0 | V67: 0 | W67: XXXXXXXXXX | X67: XXXXXXXXXX
A68: Total Permanent Financing | C68: =SUM(C61:C67) -> 0 | D68: =SUM(D61:D67) -> 0 | E68: 0 | F68: 0 | G68: 0 | H68: 0 | I68: 0 | J68: 0 | K68: 0 | L68: 0 | M68: 0 | N68: 0 | O68: 0 | P68: 0 | Q68: 0 | R68: =SUM(R61:R67) -> 0 | S68: 0 | T68: 0 | U68: 0 | V68: 0 | W68: =SUM(W61:W67) -> 0 | X68: 0
A69: Construction Lender Legal Expenses | R69: =SUM(C69:Q69) -> 0 | S69: =T69+U69 -> 0 | V69: 0 | W69: =R69 -> 0 | X69: =R69 -> 0
A70: Permanent Lender Legal Fees | R70: 0 | S70: 0 | V70: 0 | W70: =R70 -> 0 | X70: =R70 -> 0
A71: Sponsor Legal Fees | R71: 0 | S71: 0 | V71: 0 | W71: =R71 -> 0 | X71: =R71 -> 0
A72: Organizational Legal Fees | R72: 0 | S72: 0 | V72: =R72+S72 -> 0 | W72: =R72 -> 0 | X72: =R72 -> 0
A73: Syndication Legal Fees | R73: 0 | S73: 0 | V73: 0 | W73: XXXXXXXXXX | X73: XXXXXXXXXX
A74: Other: | R74: 0 | S74: 0 | V74: 0 | W74: =R74 -> 0 | X74: =R74 -> 0
A75: Total Legal Fees | C75: =SUM(C69:C74) -> 0 | D75: =SUM(D69:D74) -> 0 | E75: 0 | F75: 0 | G75: 0 | H75: 0 | I75: 0 | J75: 0 | K75: 0 | L75: 0 | M75: 0 | N75: 0 | O75: 0 | P75: 0 | Q75: 0 | R75: =SUM(R69:R74) -> 0 | S75: 0 | T75: 0 | U75: 0 | V75: 0 | W75: =SUM(W69:W74) -> 0 | X75: 0
A76: Operating Reserve | R76: =SUM(C76:Q76) -> 0 | S76: =T76+U76 -> 0 | V76: 0 | W76: XXXXXXXXXX | X76: XXXXXXXXXX
A77: Replacement Reserve | R77: 0 | S77: 0 | V77: 0 | W77: XXXXXXXXXX | X77: XXXXXXXXXX
A78: Rent-Up Reserve | R78: 0 | S78: 0 | V78: 0 | W78: XXXXXXXXXX | X78: XXXXXXXXXX
A79: Transition Reserve | R79: 0 | S79: 0 | V79: 0 | W79: XXXXXXXXXX | X79: XXXXXXXXXX
A80: Other: | R80: 0 | S80: 0 | V80: 0 | W80: XXXXXXXXXX | X80: XXXXXXXXXX
A81: Other: | R81: 0 | S81: 0 | V81: 0 | W81: XXXXXXXXXX | X81: XXXXXXXXXX
A82: Total Capitalized Reserves | C82: =SUM(C76:C81) -> 0 | D82: =SUM(D76:D81) -> 0 | E82: =SUM(E76:E81) -> 0 | F82: =SUM(F76:F81) -> 0 | G82: 0 | H82: 0 | I82: 0 | J82: 0 | K82: 0 | L82: 0 | M82: 0 | N82: 0 | O82: 0 | P82: 0 | Q82: 0 | R82: =SUM(R76:R81) -> 0 | S82: =SUM(S76:S81) -> 0 | T82: =SUM(T76:T81) -> 0 | U82: =SUM(U76:U81) -> 0 | V82: 0 | W82: =SUM(W76:W81) -> 0 | X82: =SUM(X76:X81) -> 0
A83: Appraisal(s) | R83: =SUM(C83:Q83) -> 0 | S83: =T83+U83 -> 0 | V83: 0 | W83: =R83 -> 0 | X83: =R83 -> 0
A84: Market Study | R84: 0 | S84: 0 | V84: 0 | W84: 0 | X84: 0
A85: Physical Needs Assessment | R85: 0 | S85: 0 | V85: 0 | W85: 0 | X85: 0
A86: Environmental Studies | R86: 0 | S86: 0 | V86: 0 | W86: 0 | X86: 0
A87: Other: | R87: 0 | S87: 0 | V87: 0 | W87: 0 | X87: 0
A88: Other: | R88: 0 | S88: 0 | V88: 0 | W88: 0 | X88: 0
A89: Other: | R89: 0 | S89: 100000 | T89: 100000 | V89: 100000 | W89: 0 | X89: 0
A90: Other: | R90: 0 | S90: 0 | V90: 0 | W90: 0 | X90: 0
A91: Total Reports & Studies | C91: =SUM(C83:C90) -> 0 | D91: =SUM(D83:D90) -> 0 | E91: 0 | F91: 0 | G91: 0 | H91: 0 | I91: 0 | J91: 0 | K91: 0 | L91: 0 | M91: 0 | N91: 0 | O91: 0 | P91: 0 | Q91: 0 | R91: =SUM(R83:R90) -> 0 | S91: 100000 | T91: 100000 | U91: 0 | V91: 100000 | W91: =SUM(W83:W90) -> 0 | X91: 0
A92: CTCAC App./Alloc./Monitor Fees | R92: =SUM(C92:Q92) -> 0 | S92: =T92+U92 -> 0 | V92: 0 | W92: XXXXXXXXXX | X92: XXXXXXXXXX
A93: CDLAC Fees | R93: =SUM(C93:Q93) -> 0 | S93: 0 | V93: 0 | W93: XXXXXXXXXX | X93: XXXXXXXXXX
A94: Local Permit Fees | R94: 0 | S94: 0 | V94: 0 | W94: =R94 -> 0 | X94: =R94 -> 0
A95: Local Development Impact Fees | R95: 0 | S95: 0 | V95: 0 | W95: =R95 -> 0 | X95: =R95 -> 0
A96: Other Costs of Bond Issuance | R96: 0 | S96: 0 | V96: 0 | W96: =R96 -> 0 | X96: =R96 -> 0
A97: Syndicator / Investor Fees & Expenses | R97: =SUM(C97:Q97) -> 0 | S97: 0 | V97: 0 | W97: XXXXXXXXXX | X97: XXXXXXXXXX
A98: Furnishings | R98: 0 | S98: 0 | V98: 0 | W98: =R98 -> 0 | X98: =R98 -> 0
A99: Final Cost Audit Expense | R99: 0 | S99: 0 | V99: 0 | W99: =R99 -> 0 | X99: =R99 -> 0
A100: Marketing | R100: 0 | S100: 0 | V100: 0 | W100: XXXXXXXXXX | X100: XXXXXXXXXX
A101: Financial Consulting | R101: 0 | S101: 0 | V101: 0 | W101: =R101 -> 0 | X101: =R101 -> 0
A102: Other: | R102: 0 | S102: 0 | V102: 0 | W102: =R102 -> 0 | X102: =R102 -> 0
A103: Other: | R103: 0 | S103: 0 | V103: 0 | W103: =R103 -> 0 | X103: =R103 -> 0
A104: Other: | R104: 0 | S104: 0 | V104: =R104+S104 -> 0 | W104: =R104 -> 0 | X104: =R104 -> 0
A105: Other: | R105: 0 | S105: 0 | V105: 0 | W105: =R105 -> 0 | X105: =R105 -> 0
A106: Total Other Costs | C106: =SUM(C92:C105) -> 0 | D106: =SUM(D92:D105) -> 0 | E106: 0 | F106: 0 | G106: 0 | H106: 0 | I106: 0 | J106: 0 | K106: 0 | L106: 0 | M106: 0 | N106: 0 | O106: 0 | P106: 0 | Q106: 0 | R106: =SUM(R92:R105) -> 0 | S106: 0 | T106: 0 | U106: 0 | V106: 0 | W106: =SUM(W92:W105) -> 0 | X106: 0
A107: SUBTOTAL | C107: =SUM(C13,C23,C26,C37,C40,C43,C46,C60,C68,C75,C82,C91,C106) -> 0 | D107: 0 | E107: 0 | F107: 0 | G107: 0 | H107: 0 | I107: 0 | J107: 0 | K107: 0 | L107: 0 | M107: 0 | N107: 0 | O107: 0 | P107: 0 | Q107: 0 | R107: 0 | S107: 100000 | T107: 100000 | U107: 0 | V107: 100000 | W107: =SUM(W13,W23,W26,W37,W40,W43,W46,W60,W68,W75,W82,W91,W106) -> 0 | X107: 0
A108: Developer Fee/Overhead/Profit | R108: =SUM(C108:Q108) -> 0 | S108: =T108+U108 -> 0 | V108: 0 | W108: =R108 -> 0 | X108: =R108 -> 0
A109: Consultant/Processing Agent | R109: 0 | S109: 0 | V109: 0 | W109: =R109 -> 0 | X109: =R109 -> 0
A110: Project Administration | R110: 0 | S110: 0 | V110: 0 | W110: =R110 -> 0 | X110: =R110 -> 0
A111: Syndicator Consultant Fees | R111: 0 | S111: 0 | V111: 0 | W111: XXXXXXXXXX | X111: XXXXXXXXXX
A112: Guarantee Fees | R112: 0 | S112: 0 | V112: 0 | W112: XXXXXXXXXX | X112: XXXXXXXXXX
A113: Broker Fees Paid to Related Party | R113: 0 | S113: 0 | V113: 0 | W113: =R113 -> 0 | X113: =R113 -> 0
A114: Construction Oversight & Mgmt. | R114: 0 | S114: 0 | V114: 0 | W114: =R114 -> 0 | X114: =R114 -> 0
A115: Other: | R115: 0 | S115: 0 | V115: 0 | W115: =R115 -> 0 | X115: =R115 -> 0
A116: Other: | R116: 0 | S116: 0 | V116: 0 | W116: =R116 -> 0 | X116: =R116 -> 0
A117: Total Developer Costs | C117: =SUM(C108:C116) -> 0 | D117: =SUM(D108:D116) -> 0 | E117: 0 | F117: 0 | G117: 0 | H117: 0 | I117: 0 | J117: 0 | K117: 0 | L117: 0 | M117: 0 | N117: 0 | O117: 0 | P117: 0 | Q117: 0 | R117: =SUM(R108:R116) -> 0 | S117: 0 | T117: 0 | U117: 0 | V117: 0 | W117: =SUM(W108:W116) -> 0 | X117: 0
A118: AHD TOTAL PROJECT COSTS | C118: =+C107+C117 -> 0 | D118: 0 | E118: 0 | F118: 0 | G118: 0 | H118: 0 | I118: 0 | J118: 0 | K118: 0 | L118: 0 | M118: 0 | N118: 0 | O118: 0 | P118: 0 | Q118: 0 | R118: 0 | S118: 100000 | T118: 100000 | U118: 0 | V118: 100000 | W118: =+W107+W117 -> 0 | X118: 0
A119: HOUSING RELATED-INFRASTRUCTURE (HRI) | V119: Bridge Loan Expense During Construction | W119: 0 | X119: 0
A120: Site acquisition of HRI including easements and right of ways | R120: =SUM(C120:Q120) -> 0 | V120: Less Total Ineligible Financing Amounts | W120: 0 | X120: 0
A121: Other: | R121: =SUM(C121:Q121) -> 0 | V121: ELIGIBLE BASIS | W121: =W118-W119-W120 -> 0 | X121: =X118-X119-X120 -> 0
A122: Total Site Acquisition (not parking) | C122: =SUM(C120:C121) -> 0 | D122: =SUM(D120:D121) -> 0 | E122: =SUM(E120:E121) -> 0 | F122: 0 | G122: 0 | H122: 0 | I122: 0 | J122: 0 | K122: 0 | L122: 0 | M122: 0 | N122: 0 | O122: 0 | P122: 0 | Q122: 0 | R122: 0
A123: Clearing and Grubbing | R123: =SUM(C123:Q123) -> 0
A124: Demolition | R124: 0
A125: Excavation | R125: 0
A126: Grading (not grading for housing & mixed use structural improvements) | R126: 0
A127: Soil Stabilization (Lime, etc.) | R127: 0
A128: Erosion/Weed Control | R128: 0
A129: Dewatering | R129: 0
A130: Other: | R130: 0
A131: Other: | R131: 0
A132: Total Site Preparation Costs | C132: =SUM(C123:C131) -> 0 | D132: 0 | E132: 0 | F132: 0 | G132: 0 | H132: 0 | I132: 0 | J132: 0 | K132: 0 | L132: 0 | M132: 0 | N132: 0 | O132: 0 | P132: 0 | Q132: 0 | R132: 0
A133: Sanitary Sewer | R133: =SUM(C133:Q133) -> 0
A134: Potable Water | R134: 0
A135: Non-Potable Water | R135: 0
A136: Storm Drain | R136: 0
A137: Detention Basin/Culverts | R137: 0
A138: Joint Trench: | R138: 0
A139: Other: | R139: 0
A140: Total Site Utilities Costs | C140: =SUM(C133:C139) -> 0 | D140: 0 | E140: 0 | F140: 0 | G140: 0 | H140: 0 | I140: 0 | J140: 0 | K140: 0 | L140: 0 | M140: 0 | N140: 0 | O140: 0 | P140: 0 | Q140: 0 | R140: 0
A141: Aggregate Base | R141: =SUM(C141:Q141) -> 0
A142: Asphalt Pavement | R142: 0
A143: Curb, Gutter, Sidewalk | R143: 0
A144: Street Lights | R144: 0
A145: Striping/Signage/Barricades | R145: 0
A146: Traffic Mitigation | R146: 0
A147: Other: | R147: 0
A148: Total Surface Improvements Costs | C148: =SUM(C141:C147) -> 0 | D148: 0 | E148: 0 | F148: 0 | G148: 0 | H148: 0 | I148: 0 | J148: 0 | K148: 0 | L148: 0 | M148: 0 | N148: 0 | O148: 0 | P148: 0 | Q148: 0 | R148: 0
A149: Irrigation | R149: =SUM(C149:Q149) -> 0
A150: Concrete Work | R150: 0
A151: Landscaping | R151: 0
A152: Urban Greening | R152: 0
A153: Playground Facilities and Tot Lots | R153: 0
A154: Walking/Bike Path | R154: 0
A155: Drinking Fountains | R155: 0
A156: Structures | R156: 0
A157: Lighting | R157: 0
A158: Open Space | R158: 0
A159: Other: | R159: 0
A160: Total Parks-Landscape and Amenities | C160: =SUM(C149:C159) -> 0 | D160: 0 | E160: 0 | F160: 0 | G160: 0 | H160: 0 | I160: 0 | J160: 0 | K160: 0 | L160: 0 | M160: 0 | N160: 0 | O160: 0 | P160: 0 | Q160: 0 | R160: 0
A161: Wetland Mitigation | R161: =SUM(C161:Q161) -> 0
A162: Endangered Species | R162: =SUM(C162:Q162) -> 0
A163: Tree Mitigation | R163: =SUM(C163:Q163) -> 0
A164: Environmental Remediation | R164: =SUM(C164:Q164) -> 0
A165: Other: | R165: =SUM(C165:Q165) -> 0
A166: Total Env. Mitigation/Remediation | C166: =SUM(C161:C165) -> 0 | D166: 0 | E166: 0 | F166: 0 | G166: 0 | H166: 0 | I166: 0 | J166: 0 | K166: 0 | L166: 0 | M166: 0 | N166: 0 | O166: 0 | P166: 0 | Q166: 0 | R166: 0
A167: Residential Parking Structures | R167: =SUM(C167:Q167) -> 0
A168: Grading | R168: 0
A169: Foundation Work | R169: 0
A170: Site Work | R170: 0
A171: Other: | R171: 0
A172: Other: | R172: 0
A173: Total Replacement Parking Costs | C173: =SUM(C167:C172) -> 0 | D173: 0 | E173: 0 | F173: 0 | G173: 0 | H173: 0 | I173: 0 | J173: 0 | K173: =SUM(K167:K172) -> 0 | L173: 0 | M173: 0 | N173: 0 | O173: 0 | P173: 0 | Q173: 0 | R173: 0
A174: Residential Parking Structures | R174: =SUM(C174:Q174) -> 0
A175: Grading | R175: 0
A176: Foundation Work | R176: 0
A177: Site Work | R177: 0
A178: Other: | R178: 0
A179: Other: | R179: 0
A180: Total Residential Parking Costs | C180: =SUM(C174:C179) -> 0 | D180: =SUM(D174:D179) -> 0 | E180: =SUM(E174:E179) -> 0 | F180: 0 | G180: 0 | H180: 0 | I180: 0 | J180: 0 | K180: 0 | L180: 0 | M180: 0 | N180: 0 | O180: 0 | P180: 0 | Q180: 0 | R180: 0
A181: Access Plazas | R181: =SUM(C181:Q181) -> 0
A182: Pathways | R182: 0
A183: Bus Shelters | R183: 0
A184: Transit Shelters | R184: 0
A185: Pedestrian Facilities | R185: 0
A186: Bicycle Facilities | R186: 0
A187: Other: | R187: 0
A188: Total Transit Costs | C188: =SUM(C181:C187) -> 0 | D188: 0 | E188: 0 | F188: 0 | G188: 0 | H188: 0 | I188: 0 | J188: 0 | K188: 0 | L188: 0 | M188: 0 | N188: 0 | O188: 0 | P188: 0 | Q188: 0 | R188: 0
A189: Drainage | R189: =SUM(C189:Q189) -> 0
A190: Parks & Recreation | R190: 0
A191: Streets/Signals | R191: 0
A192: Traffic Fees | R192: 0
A193: Waste Water | R193: 0
A194: Water Facility | R194: 0
A195: Other: | R195: =SUM(C195:Q195) -> 0
A196: Other Impact Fees (non-AHSC eligible) | R196: 0
A197: Total Impact Fees | C197: =SUM(C189:C196) -> 0 | D197: 0 | E197: 0 | F197: 0 | G197: 0 | H197: 0 | I197: 0 | J197: 0 | K197: 0 | L197: 0 | M197: 0 | N197: 0 | O197: 0 | P197: 0 | Q197: 0 | R197: 0
A198: Engineering | R198: =SUM(C198:Q198) -> 0
A199: Design | R199: =SUM(C199:Q199) -> 0
A200: Contractor Fee | R200: =SUM(C200:Q200) -> 0
A201: Other: | R201: =SUM(C201:Q201) -> 0
A202: Total Soft Costs | C202: =SUM(C198:C201) -> 0 | D202: 0 | E202: 0 | F202: 0 | G202: 0 | H202: 0 | I202: 0 | J202: 0 | K202: 0 | L202: 0 | M202: 0 | N202: 0 | O202: 0 | P202: 0 | Q202: 0 | R202: 0
... 6 more rows

Sheet STI (hidden)
A1: =CONCATENATE(Overview!D3," Sustainable Transportation Infrastructure (STI) ","PIN ",Overview!AI2) -> Sustainable Transportation Infrastructure (STI) PIN
A2: STI Project Summary
B3: Project Name | G3: Brief Description | Q3: Address | W3: City | Z3: Zip | AB3: County | AE3: Lat. | AF3: Log. | AG3: Census Tracts | AJ3: APNs
A4: STI #1
A9: STI #2
A14: STI #3
A19: =I19+U19+AG19 -> 0 | B19: Bike Facility (BF) 1 Linear Miles: | K19: BF1 Type: | O19: Bike Facility 2 Linear Miles: | W19: BF2 Type: | AA19: Bike Facility 3 Linear Miles: | AI19: BF3 Type:
A20: Safe and Accessible Walkways: | T20: # of Transit Routes Improved: | AB20: Added or Improved Transit Service:
A21: Enter # and Amount for each | D21: Crosswalks | H21: AHSC Funds | N21: Overcrossings | R21: AHSC Funds | X21: Undercrossings | AC21: AHSC Funds
D22: Rail Cars | G22: AHSC Funds | M22: Street Cars | Q22: AHSC Funds | W22: Buses | Z22: AHSC Funds
D23: Shuttles | H23: AHSC Funds | N23: Vans | Q23: AHSC Funds | W23: Total New Vehicles | AA23: =F22+P22+Y22+G23+P23 -> 0 | AC23: Total AHSC New Vehicle Funding | AJ23: =J22+T22+AC22+K23+T23 -> 0
A24: STI Eligible Costs §103(a)(3)(A) and Ineligible Costs §103(c)
A25: (i) We certify the capital improvements in the STI budget result in the improvement or addition of infrastructure that encourages mode-shift by enhancing: 1) public transit access; 2) pedestrian network; or 3) bicycle network (includes public bike-share infrastructure and fleet) within the defined Project Area meeting the transit requirements detailed in Section 102 (c) or (d).
Z26: Budgeted | AD26: Cost Cap | AH26: Overage
A27: (ii) Total amount of eligible STI soft costs cannot exceed 30% of the total AHSC Program award. | Z27: ='STI Budget'!C197+'STI Budget'!C198 -> 0 | AD27: =Overview!M31*0.3 -> 60000 | AH27: =IF(Z27-AD27>0,Z27-AD27,0) -> 0 | AL27: =IF(AH27>0,"No","Ok") -> Ok
A28: (iii) Total amount of Activity Delivery Costs associated with the implementation of the Capital Project cannot exceed 10% of the costs associated with the Capital Project. | Z28: ='STI Budget'!C205 -> 0 | AD28: ='STI Budget'!M207*0.1 -> 10000 | AH28: =IF(Z28-AD28>0,Z28-AD28,0) -> 0 | AL28: =IF(AH28>0,"No","Ok") -> Ok
A29: (iv) Capital Project costs in budget that are required as a condition of local approval for the Project? | V29: If Yes, upload documentation below
A30: §103(c) We certify the AHSC STI funded cost do not include any of the following ineligible costs: (1) Costs are not eligible if there is another feasible, available source of committed funding for the STI portion thereof to be funded by AHSC or if the cost is incurred prior to the AHSC award; (2) Routine maintenance of transportation infrastructure (including transit fleet); (3) In lieu fees for local inclusionary housing programs; (4) Ongoing operational costs beyond the term of the grant (3 years) for Program Costs; and (5) All costs associated with automobile or motorcycle parking (excluding electric vehicle charging infrastructure that may be located at a parking spot).
A31: FAAST File Name: | E31: STI Cap Project Costs | L31: Documentation showing Capital Project costs are required as a condition of local approval for Capital Project | AG31: File Uploaded?
A32: STI Grant Terms §104(c)
A33: (1) We certify the STI grant does not result in a profit that exceeds the commercially reasonable range for other improvements of similar size and level of risk.
A34: (2) We acknowledge that AHSC Program grant funds will be disbursed as reimbursed progress payments for eligible costs incurred after the execution of the Standard Agreement in the amount not to exceed the AHSC Program award of funds.
A35: (3) We acknowledge if the STI Project includes multiple phases or developments, all entitlements and construction funding commitments for the first phase must be received prior to disbursement.
A36: STI Threshold §106(a)
A37: (6) We certify the STI will include adequate lighting in accordance with local, state or federal design standards and requirements for all publicly accessible components of the STI including active transportation route and transit stations or stops.
A38: (7) STI Enforceable Funding Commitments (EFC) See AHSC Guidelines Appendix A - Definitions for an explanation of Enforceable Funding Commitments (EFC).
A39: EFC # | B39: Committed by Full App Deadline? | E39: Commitment Date | H39: Source Name (listed in order of lien priority) | P39: Source Type | T39: Lien No. | V39: Amount | Y39: Interest Rate | AF39: Term (# of mos.) | AH39: Required Debt Service | AK39: Balloon?
Y40: Rate | AA40: Type
A41: 1 | B41: Yes | H41: AHSC STI Grant | P41: State-HCD | V41: 100000
A42: 2
A43: 3
A44: 4
A45: 5
A46: 6
A47: 7
A48: 8
A49: 9
A50: 10
A51: =SUMIF(B42:D50,"Yes",V42:X50) -> 0 | D51: <Total Committed Non-AHSC STI Funds | M51: TOTAL (must equal STI Budget Amount | V51: =SUM(V41:X50) -> 100000 | AK51: =COUNTIF(B42:C50,"Yes") -> 0
A52: Provide a description of unusual or extraordinary circumstances that have resulted in higher than expected project costs and provide a justification as to why these costs are reasonable.
A54: FAAST File Name: | E54: EFC STI1; EFC STI2; EFC STI3; etc. | M54: =CONCATENATE("Upload supporting documentation for the ",AK51," non-AHSC STI funding commitments.") -> Upload supporting documentation for the 0 non-AHSC STI funding commitments. | AG54: Files Uploaded?
A55: (8)(A) We acknowledge that completion and approval or adoption of all necessary environmental clearances for transportation components must be attained by initial disbursement of grant funds.
A56: NEPA: | C56: Is Federal funding proposed that will trigger NEPA requirements? | Z56: If Yes, enter date of "Authority to Use Grant Funds".
A57: CEQA: | C57: Project approved "by-right"? | J57: Is Project Categorically Exempt? | R57: Negative Declaration Date: | Z57: Final EIR Date:
A58: Discuss below any special NEPA and/or CEQA Special Circumstances and provide estimated/actual completion dates of all necessary environmental clearances.
A60: FAAST File Name: | E60: STI Environmental | J60: Provide a copy of all environmental clearances (e.g. Environmental Impact Report) or Notice of Exemption. (Do not provide a duplicate document if provided in another FAAST upload) | AG60: File Uploaded?
A61: FAAST File Name: | E61: STI Auth to Use Grant Funds | J61: For NEPA only, provide a copy of the HUD 7015.16 "Authority To Use Grant Funds" or clarify the current status of the issuance of the HUD form. (Do not provide a duplicate document if provided in another FAAST upload) | AG61: File Uploaded?
A62: (9) If applicable, provide a listing and status of all discretionary local land use entitlements and permits, excluding design review, required to complete each STI Project that have been granted, submitted or to be applied for to the appropriate local agencies, or consistent with local planning documents.
A63: Agency / Issuer | N63: Land Use Approval Date | S63: Approval Type | Z63: Comments
A69: (11) Does the applicant or Developer of the Project have Site Control for each STI Project? If yes, enter form of site control and the most recent execution date below (See Site Control in Appendix A)
A70: Form of site control (See Site Control in Appendix A): | Z70: Most recent document execution date:
A71: If leasehold estate, answer the following: | I71: Is rent based on restricted land value? | R71: Is acquisition cost $0 in Development Budget? | AB71: Prepaid lease loan used? If so answer below (a-c)
A72: (a) Funding amount based on the Present Value of lease payments? | O72: (b) Lender requesting Res. Receipts (not permissible) | AA72: (c) Has loan amount been entered as a finance cost?
A73: Describe any special circumstances, e.g. if there are multiple STI projects provide site control information for each.
A75: FAAST File Name: | E75: STI Site Control | M75: Upload appropriate documentation to demonstrate the form of site control indicated above | AG75: Files Uploaded?
A76: (12) Applicants must demonstrate prior experience by providing evidence of two prior STI projects similar to the proposed AHSC Project in scope and size, which have been completed by the applicant during the ten years preceding the application due date. May demonstrate the requisite experience by using past experience of work completed of a Locality or Transportation Agency non-applicant so long as the applicant can provide an executed agreement with that specific Locality or Transportation Agency for the completion of the STI components of the AHSC Project for which funding is sought.
E77: STI Past Project #1 | V77: STI Past Project #2
A78: Project Name
A79: Development Entity
A80: Completion Date
A81: Brief Description
A82: FAAST File Name: | E82: Past Exp STI1, Past Exp STI2 | M82: Where the party making improvements funded by AHSC is not a public entity, an executed agreement from a public agency certifying the satisfactory completion of similar infrastructure improvements. | AG82: Files Uploaded?
A83: (13) We certify as of the application date, the applicants or the STI real property is not party to or the subject of any claim or action in the state or federal courts.
A84: (14) We certify that construction of the project has not commenced as of the application deadline set forth in the NOFA.
A85: (19) The STI Project will not result in the loss or conversion of agricultural or other working lands, or natural resource lands for other uses according the Dept. of Conservation's Farmland Mapping and Monitoring Program (FMMP) website?
A86: If "Yes", provide documentation the STI Project site is not within land designated as agricultural land per the FMMP tool.
A87: FAAST File Name: | E87: STI No Ag | L87: Applicants must demonstrate the STI site is not within land designated as agricultural land per FMMP tool. | AG87: File Uploaded?
A88: If "No", demonstrate that the AHD Project site qualifies as an Infill Site (as defined in Appendix A):
A89: FAAST File Name: | E89: STI Ag Infill | L89: Applicants seeking an exemption to the FMMP determination must demonstrate that the STI site qualifies as an Infill Site (as defined in Appendix A) | AG89: File Uploaded?
A90: (21)(A) If approval by a local public works department, or other responsible local agency is required for the Project, provide document below. I certify that the STI improvements are consistent with all applicable local rules, regulations, codes, policies and plans enforced or implemented by that entity.
A91: FAAST File Name: | E91: STI Local Approvals | M91: Statement from entity indicating the STI Capital Project is consistent with all applicable local rules, regulations, codes, policies and plans enforced or implemented by that entity. | AG91: Files Uploaded?
A92: (21)(B) If the STI Project involves demolition of existing units affordable to lower income households, the application must demonstrate the replacement of demolished units, comparable in size, of equal or greater affordability, and equal to or greater than the number of the demolished affordable units located within comparable access to transit and include first right of return to displaced residents. These no net loss requirements apply where a STI Project is proposed on any property which includes a parcel or any portion of a parcel on which residential dwelling units affordable to lower income households currently exist or where there have been dwelling units restricted to lower-income households which have been vacated or demolished within the five year period preceding the application. Please explain below how this requirement is satisfied in the replacement affordable housing development. If the Project does not involve demolition or rehabilitation of existing affordable units, please indicate "N/A" below.
A94: MILESTONES
A95: Please provide the actual or anticipated completion date for the following performance milestones for each applicable Capital Project. If a milestone is not applicable to a Capital Project, please enter "N/A"
A96: Note: It is acknowledged that some of the following milestones may have already been achieved. For those milestones which have previously been met, please enter the month and year completed. For those milestones not yet completed, please provide a projected completion date (MM/YY) for each of the applicable items below. If not applicable to the specific Capital Project, please indicate "NA" below.
A97: Capital Project Milestone Schedule | AK97: Date
A98: Executed binding agreement between the Recipient and developer of the proposed Capital Project detailing the terms and conditions of the Capital Project development.
A99: Submission of Final Construction Drawings and Specifications to the appropriate local building department or permitting authority.
A100: Commencement of construction.
A101: Construction complete and the filing of the Notice of Completion.
A102: Program funds fully disbursed.

Sheet STI Budget (hidden)
A1: =CONCATENATE(Overview!D3," Sustainable Transportation Infrastructure (STI) Budget ","PIN ",Overview!AI2) -> Sustainable Transportation Infrastructure (STI) Budget PIN
A2: If proposing multiple distinct STI Capital Projects, provide detail for each Project in separate budgets below. Amounts from each budget will autosum at the bottom. The sum will be used to determine the total STI funds requested and cost cap.
A3: Cost Category | C3: ALL FUNDING SOURCES | N3: Comments
C4: =STI!H41 -> AHSC STI Grant | D4: =STI!H42 -> 0 | E4: =STI!H43 -> 0 | F4: =STI!H44 -> 0 | G4: =STI!H45 -> 0 | H4: =STI!H46 -> 0 | I4: =STI!H47 -> 0 | J4: =STI!H48 -> 0 | K4: =STI!H49 -> 0 | L4: =STI!H50 -> 0 | M4: Sources Total
A7: =CONCATENATE("STI BUDGET #1"," - ",STI!B4) -> STI BUDGET #1 -
A8: PA & ED (Environmental) | M8: =SUM(C8:L8) -> 0
A9: Plan Specification and Estimates | M9: =SUM(C9:L9) -> 0
A10: Other: | M10: =SUM(C10:L10) -> 0
A11: Total Preliminary Engineering | C11: =SUM(C8:C10) -> 0 | D11: 0 | E11: =SUM(E8:E10) -> 0 | F11: =SUM(F8:F10) -> 0 | G11: 0 | H11: 0 | I11: 0 | J11: 0 | K11: 0 | L11: 0 | M11: 0
A12: Right of way support costs | M12: =SUM(C12:L12) -> 0
A13: Site or right of way acquisition for Cap. Improvement Project | M13: =SUM(C13:L13) -> 0
A14: Other: | M14: =SUM(C14:L14) -> 0
A15: Total Right of Way (not related to parking) | C15: =SUM(C12:C14) -> 0 | D15: 0 | E15: =SUM(E12:E14) -> 0 | F15: =SUM(F12:F14) -> 0 | G15: 0 | H15: 0 | I15: 0 | J15: 0 | K15: 0 | L15: 0 | M15: 0
A16: Clearing and Grubbing | M16: =SUM(C16:L16) -> 0
A17: Demolition | M17: 0
A18: Grading | M18: 0
A19: Soil Stabilization (Lime, etc.) | M19: 0
A20: Erosion/Weed Control | M20: 0
A21: Dewatering | M21: 0
A22: Other: | M22: 0
A23: Total Site Preparation | C23: =SUM(C16:C22) -> 0 | D23: 0 | E23: =SUM(E16:E22) -> 0 | F23: =SUM(F16:F22) -> 0 | G23: 0 | H23: 0 | I23: 0 | J23: 0 | K23: 0 | L23: 0 | M23: =SUM(M16:M22) -> 0
A24: Sanitary Sewer | M24: =SUM(C24:L24) -> 0
A25: Irrigation | M25: =SUM(C25:L25) -> 0
A26: Storm Drain | M26: =SUM(C26:L26) -> 0
A27: Detention Basin/Culverts | M27: =SUM(C27:L27) -> 0
A28: Other: | M28: =SUM(C28:L28) -> 0
A29: Total Site Utilities | C29: =SUM(C24:C28) -> 0 | D29: 0 | E29: =SUM(E24:E28) -> 0 | F29: =SUM(F24:F28) -> 0 | G29: 0 | H29: 0 | I29: 0 | J29: 0 | K29: 0 | L29: 0 | M29: =SUM(M24:M28) -> 0
A30: Aggregate Base | M30: =SUM(C30:L30) -> 0
A31: Asphalt Pavement | M31: 0
A32: Sidewalk, Curb and Gutter | M32: 0
A33: Street Lights | M33: 0
A34: Striping/Barricades (Bicycle Facilities) | M34: 0
A35: Signage | M35: 0
A36: Crossing and Traffic Signals | M36: 0
A37: Roundabouts, median islands or curb extensions | M37: 0
A38: Other traffic calming surface improvements | M38: 0
A39: Other: | M39: 0
A40: Other: | M40: 0
A41: Total Complete Streets Improvements - Construction | C41: =SUM(C30:C40) -> 0 | D41: 0 | E41: =SUM(E30:E40) -> 0 | F41: 0 | G41: 0 | H41: 0 | I41: 0 | J41: 0 | K41: 0 | L41: 0 | M41: 0
A42: Striping/Barricades (for dedicated bus lanes) | M42: =SUM(C42:L42) -> 0
A43: Sidewalk, Curb and Gutter | M43: 0
A44: Street Lights | M44: 0
A45: Signage | M45: 0
A46: Signaling Prioritization Technology | M46: 0
A47: Boarding infrastructure | M47: 0
A48: Seating/Benches | M48: 0
A49: Bus/Transit Shelters | M49: 0
A50: Vehicles | M50: 0
A51: Other ITS Technology | M51: 0
A52: Other: | M52: 0
A53: Other: | M53: 0
A54: Total Transit and Station Areas - Construction | C54: =SUM(C42:C53) -> 0 | D54: 0 | E54: =SUM(E42:E53) -> 0 | F54: =SUM(F42:F53) -> 0 | G54: 0 | H54: 0 | I54: 0 | J54: 0 | K54: 0 | L54: 0 | M54: =SUM(M42:M53) -> 0
A55: Urban Greening | M55: =SUM(C55:L55) -> 0
A56: Other: | M56: =SUM(C56:L56) -> 0
A57: Other: | M57: =SUM(C57:L57) -> 0
A58: Total Landscaping, Amenities, Green Infrastructure | C58: =SUM(C55:C57) -> 0 | D58: 0 | E58: =SUM(E55:E57) -> 0 | F58: 0 | G58: 0 | H58: 0 | I58: 0 | J58: 0 | K58: 0 | L58: 0 | M58: 0
A59: Applicant: Provide Name of Impact Fee | M59: =SUM(C59:L59) -> 0
A60: Applicant: Provide Name of Impact Fee | M60: =SUM(C60:L60) -> 0
A61: Total Impact Fees | C61: =SUM(C59:C60) -> 0 | D61: 0 | E61: =SUM(E59:E60) -> 0 | F61: =SUM(F59:F60) -> 0 | G61: 0 | H61: 0 | I61: 0 | J61: 0 | K61: 0 | L61: 0 | M61: =SUM(M59:M60) -> 0
A62: Other: | M62: =SUM(C62:L62) -> 0
A63: Other: | M63: =SUM(C63:L63) -> 0
A64: Total Activity Delivery Costs | C64: =SUM(C62:C63) -> 0 | D64: 0 | E64: =SUM(E62:E63) -> 0 | F64: =SUM(F62:F63) -> 0 | G64: 0 | H64: 0 | I64: 0 | J64: 0 | K64: 0 | L64: 0 | M64: =SUM(M62:M63) -> 0
A65: Other: | M65: =SUM(C65:L65) -> 0
A66: Other: | M66: =SUM(C66:L66) -> 0
A67: Total Other Capital Asset Costs | C67: =SUM(C65:C66) -> 0 | D67: 0 | E67: =SUM(E65:E66) -> 0 | F67: =SUM(F65:F66) -> 0 | G67: 0 | H67: 0 | I67: 0 | J67: 0 | K67: 0 | L67: 0 | M67: =SUM(M65:M66) -> 0
A68: Total STI #1 Budgeted Project Costs | C68: =SUM(C67,C64,C61,C58,C54,C41,C29,C23,C15,C11) -> 0 | D68: 0 | E68: =SUM(E67,E64,E61,E58,E54,E41,E29,E23,E15,E11) -> 0 | F68: 0 | G68: 0 | H68: 0 | I68: 0 | J68: 0 | K68: 0 | L68: 0 | M68: 0
A69: Explain here any unusual or extraordinary circumstances that have resulted in higher than expected project costs and provide a justification as to why these costs are reasonable.
A70: =CONCATENATE("STI BUDGET #2"," - ",STI!B9) -> STI BUDGET #2 -
A71: PA & ED (Environmental) | M71: =SUM(C71:L71) -> 0
A72: Plan Specification and Estimates | M72: =SUM(C72:L72) -> 0
A73: Other: | M73: =SUM(C73:L73) -> 0
A74: Total Preliminary Engineering | C74: =SUM(C71:C73) -> 0 | D74: 0 | E74: 0 | F74: 0 | G74: 0 | H74: 0 | I74: 0 | J74: 0 | K74: 0 | L74: 0 | M74: 0
A75: Right of way support costs | M75: =SUM(C75:L75) -> 0
A76: Site or right of way acquisition for Cap. Improvement Project | M76: =SUM(C76:L76) -> 0
A77: Other: | M77: =SUM(C77:L77) -> 0
A78: Total Right of Way (not related to parking) | C78: =SUM(C75:C77) -> 0 | D78: 0 | E78: 0 | F78: 0 | G78: 0 | H78: 0 | I78: 0 | J78: 0 | K78: 0 | L78: 0 | M78: 0
A79: Clearing and Grubbing | M79: =SUM(C79:L79) -> 0
A80: Demolition | M80: 0
A81: Grading | M81: 0
A82: Soil Stabilization (Lime, etc.) | M82: 0
A83: Erosion/Weed Control | C83: 100000 | M83: 100000
A84: Dewatering | M84: 0
A85: Other: | M85: 0
A86: Total Site Preparation | C86: =SUM(C79:C85) -> 100000 | D86: 0 | E86: 0 | F86: 0 | G86: 0 | H86: 0 | I86: 0 | J86: 0 | K86: 0 | L86: 0 | M86: =SUM(M79:M85) -> 100000
A87: Sanitary Sewer | M87: =SUM(C87:L87) -> 0
A88: Irrigation | M88: =SUM(C88:L88) -> 0
A89: Storm Drain | M89: =SUM(C89:L89) -> 0
A90: Detention Basin/Culverts | M90: =SUM(C90:L90) -> 0
A91: Other: | M91: =SUM(C91:L91) -> 0
A92: Total Site Utilities | C92: =SUM(C87:C91) -> 0 | D92: 0 | E92: 0 | F92: 0 | G92: 0 | H92: 0 | I92: 0 | J92: 0 | K92: 0 | L92: 0 | M92: =SUM(M87:M91) -> 0
A93: Aggregate Base | M93: =SUM(C93:L93) -> 0
A94: Asphalt Pavement | M94: 0
A95: Sidewalk, Curb and Gutter | M95: 0
A96: Street Lights | M96: 0
A97: Striping/Barricades (Bicycle Facilities) | M97: 0
A98: Signage | M98: 0
A99: Crossing and Traffic Signals | M99: 0
A100: Roundabouts, median islands or curb extensions | M100: 0
A101: Other traffic calming surface improvements | M101: 0
A102: Other: | M102: 0
A103: Other: | M103: 0
A104: Total Complete Streets Improvements - Construction | C104: =SUM(C93:C103) -> 0 | D104: 0 | E104: 0 | F104: 0 | G104: 0 | H104: 0 | I104: 0 | J104: 0 | K104: 0 | L104: 0 | M104: 0
A105: Striping/Barricades (for dedicated bus lanes) | M105: =SUM(C105:L105) -> 0
A106: Sidewalk, Curb and Gutter | M106: 0
A107: Street Lights | M107: 0
A108: Signage | M108: 0
A109: Signaling Prioritization Technology | M109: 0
A110: Boarding infrastructure | M110: 0
A111: Seating/Benches | M111: 0
A112: Bus/Transit Shelters | M112: 0
A113: Vehicles | M113: 0
A114: Other ITS Technology | M114: 0
A115: Other: | M115: 0
A116: Other: | M116: 0
A117: Total Transit and Station Areas - Construction | C117: =SUM(C105:C116) -> 0 | D117: 0 | E117: 0 | F117: 0 | G117: 0 | H117: 0 | I117: 0 | J117: 0 | K117: 0 | L117: 0 | M117: =SUM(M105:M116) -> 0
A118: Urban Greening | M118: =SUM(C118:L118) -> 0
A119: Other: | M119: =SUM(C119:L119) -> 0
A120: Other: | M120: =SUM(C120:L120) -> 0
A121: Total Landscaping, Amenities, Green Infrastructure | C121: =SUM(C118:C120) -> 0 | D121: 0 | E121: 0 | F121: 0 | G121: 0 | H121: 0 | I121: 0 | J121: 0 | K121: 0 | L121: 0 | M121: 0
A122: Applicant: Provide Name of Impact Fee | M122: =SUM(C122:L122) -> 0
A123: Applicant: Provide Name of Impact Fee | M123: =SUM(C123:L123) -> 0
A124: Total Impact Fees | C124: =SUM(C122:C123) -> 0 | D124: 0 | E124: 0 | F124: 0 | G124: 0 | H124: 0 | I124: 0 | J124: 0 | K124: 0 | L124: 0 | M124: =SUM(M122:M123) -> 0
A125: Other: | M125: =SUM(C125:L125) -> 0
A126: Other: | M126: =SUM(C126:L126) -> 0
A127: Total Activity Delivery Costs | C127: =SUM(C125:C126) -> 0 | D127: 0 | E127: 0 | F127: 0 | G127: 0 | H127: 0 | I127: 0 | J127: 0 | K127: 0 | L127: 0 | M127: =SUM(M125:M126) -> 0
A128: Other: | M128: =SUM(C128:L128) -> 0
A129: Other: | M129: =SUM(C129:L129) -> 0
A130: Total Other Capital Asset Costs | C130: =SUM(C128:C129) -> 0 | D130: 0 | E130: 0 | F130: 0 | G130: 0 | H130: 0 | I130: 0 | J130: 0 | K130: 0 | L130: 0 | M130: =SUM(M128:M129) -> 0
A131: Total STI #2 Budgeted Project Costs | C131: =SUM(C130,C127,C124,C121,C117,C104,C92,C86,C78,C74) -> 100000 | D131: 0 | E131: 0 | F131: 0 | G131: 0 | H131: 0 | I131: 0 | J131: 0 | K131: 0 | L131: 0 | M131: 100000
A132: Explain here any unusual or extraordinary circumstances that have resulted in higher than expected project costs and provide a justification as to why these costs are reasonable.
A133: =CONCATENATE("STI BUDGET #3"," - ",STI!B14) -> STI BUDGET #3 -
A134: PA & ED (Environmental) | M134: =SUM(C134:L134) -> 0
A135: Plan Specification and Estimates | M135: =SUM(C135:L135) -> 0
A136: Other: | M136: =SUM(C136:L136) -> 0
A137: Total Preliminary Engineering | C137: =SUM(C134:C136) -> 0 | D137: 0 | E137: 0 | F137: 0 | G137: 0 | H137: 0 | I137: 0 | J137: 0 | K137: 0 | L137: 0 | M137: 0
A138: Right of way support costs | M138: =SUM(C138:L138) -> 0
A139: Site or right of way acquisition for Cap. Improvement Project | M139: =SUM(C139:L139) -> 0
A140: Other: | M140: =SUM(C140:L140) -> 0
A141: Total Right of Way (not related to parking) | C141: =SUM(C138:C140) -> 0 | D141: 0 | E141: 0 | F141: 0 | G141: 0 | H141: 0 | I141: 0 | J141: 0 | K141: 0 | L141: 0 | M141: 0
A142: Clearing and Grubbing | M142: =SUM(C142:L142) -> 0
A143: Demolition | M143: 0
A144: Grading | M144: 0
A145: Soil Stabilization (Lime, etc.) | M145: 0
A146: Erosion/Weed Control | M146: 0
A147: Dewatering | M147: 0
A148: Other: | M148: 0
A149: Total Site Preparation | C149: =SUM(C142:C148) -> 0 | D149: 0 | E149: 0 | F149: 0 | G149: 0 | H149: 0 | I149: 0 | J149: 0 | K149: 0 | L149: 0 | M149: =SUM(M142:M148) -> 0
A150: Sanitary Sewer | M150: =SUM(C150:L150) -> 0
A151: Irrigation | M151: =SUM(C151:L151) -> 0
A152: Storm Drain | M152: =SUM(C152:L152) -> 0
A153: Detention Basin/Culverts | M153: =SUM(C153:L153) -> 0
A154: Other: | M154: =SUM(C154:L154) -> 0
A155: Total Site Utilities | C155: =SUM(C150:C154) -> 0 | D155: 0 | E155: 0 | F155: 0 | G155: 0 | H155: 0 | I155: 0 | J155: 0 | K155: 0 | L155: 0 | M155: =SUM(M150:M154) -> 0
A156: Aggregate Base | M156: =SUM(C156:L156) -> 0
A157: Asphalt Pavement | M157: 0
A158: Sidewalk, Curb and Gutter | M158: 0
A159: Street Lights | M159: 0
A160: Striping/Barricades (Bicycle Facilities) | M160: 0
A161: Signage | M161: 0
A162: Crossing and Traffic Signals | M162: 0
A163: Roundabouts, median islands or curb extensions | M163: 0
A164: Other traffic calming surface improvements | M164: 0
A165: Other: | M165: 0
A166: Other: | M166: 0
A167: Total Complete Streets Improvements - Construction | C167: =SUM(C156:C166) -> 0 | D167: 0 | E167: 0 | F167: 0 | G167: 0 | H167: 0 | I167: 0 | J167: 0 | K167: 0 | L167: 0 | M167: 0
A168: Striping/Barricades (for dedicated bus lanes) | M168: =SUM(C168:L168) -> 0
A169: Sidewalk, Curb and Gutter | M169: 0
A170: Street Lights | M170: 0
A171: Signage | M171: 0
A172: Signaling Prioritization Technology | M172: 0
A173: Boarding infrastructure | M173: 0
A174: Seating/Benches | M174: 0
A175: Bus/Transit Shelters | M175: 0
A176: Vehicles | M176: 0
A177: Other ITS Technology | M177: 0
A178: Other: | M178: 0
A179: Other: | M179: 0
A180: Total Transit and Station Areas - Construction | C180: =SUM(C168:C179) -> 0 | D180: 0 | E180: 0 | F180: 0 | G180: 0 | H180: 0 | I180: 0 | J180: 0 | K180: 0 | L180: 0 | M180: =SUM(M168:M179) -> 0
A181: Urban Greening | M181: =SUM(C181:L181) -> 0
A182: Other: | M182: =SUM(C182:L182) -> 0
A183: Other: | M183: =SUM(C183:L183) -> 0
A184: Total Landscaping, Amenities, Green Infrastructure | C184: =SUM(C181:C183) -> 0 | D184: 0 | E184: 0 | F184: 0 | G184: 0 | H184: 0 | I184: 0 | J184: 0 | K184: 0 | L184: 0 | M184: 0
A185: Applicant: Provide Name of Impact Fee | M185: =SUM(C185:L185) -> 0
A186: Applicant: Provide Name of Impact Fee | M186: =SUM(C186:L186) -> 0
A187: Total Impact Fees | C187: =SUM(C185:C186) -> 0 | D187: 0 | E187: 0 | F187: 0 | G187: 0 | H187: 0 | I187: 0 | J187: 0 | K187: 0 | L187: 0 | M187: =SUM(M185:M186) -> 0
A188: Other: | M188: =SUM(C188:L188) -> 0
A189: Other: | M189: =SUM(C189:L189) -> 0
A190: Total Activity Delivery Costs | C190: =SUM(C188:C189) -> 0 | D190: 0 | E190: 0 | F190: 0 | G190: 0 | H190: 0 | I190: 0 | J190: 0 | K190: 0 | L190: 0 | M190: =SUM(M188:M189) -> 0
A191: Other: | M191: =SUM(C191:L191) -> 0
A192: Other: | M192: =SUM(C192:L192) -> 0
A193: Total Other Capital Asset Costs | C193: =SUM(C191:C192) -> 0 | D193: 0 | E193: 0 | F193: 0 | G193: 0 | H193: 0 | I193: 0 | J193: 0 | K193: 0 | L193: 0 | M193: =SUM(M191:M192) -> 0
A194: Total STI #3 Budgeted Project Costs | C194: =SUM(C193,C190,C187,C184,C180,C167,C155,C149,C141,C137) -> 0 | D194: 0 | E194: 0 | F194: 0 | G194: 0 | H194: 0 | I194: 0 | J194: 0 | K194: 0 | L194: 0 | M194: 0
A195: Explain here any unusual or extraordinary circumstances that have resulted in higher than expected project costs and provide a justification as to why these costs are reasonable.
A196: TOTAL SUSTAINABLE TRANSPORTATION INFRASTRUCTURE (STI) BUDGET
A197: Total Preliminary Engineering | C197: =C11+C74+C137 -> 0 | D197: 0 | E197: =E11+E74+E137 -> 0 | F197: 0 | G197: 0 | H197: 0 | I197: 0 | J197: 0 | K197: 0 | L197: 0 | M197: 0
A198: Total Right of Way (not related to parking) | C198: =C15+C78+C141 -> 0 | D198: 0 | E198: =E15+E78+E141 -> 0 | F198: 0 | G198: 0 | H198: 0 | I198: 0 | J198: 0 | K198: 0 | L198: 0 | M198: 0
A199: Total Site Preparation | C199: =C23+C86+C149 -> 100000 | D199: 0 | E199: =E23+E86+E149 -> 0 | F199: 0 | G199: 0 | H199: 0 | I199: 0 | J199: 0 | K199: 0 | L199: 0 | M199: 100000
A200: Total Site Utilities | C200: =C29+C92+C155 -> 0 | D200: 0 | E200: =E29+E92+E155 -> 0 | F200: 0 | G200: 0 | H200: 0 | I200: 0 | J200: 0 | K200: 0 | L200: 0 | M200: 0
A201: Total Complete Streets Improvements - Construction | C201: =C41+C104+C167 -> 0 | D201: 0 | E201: =E41+E104+E167 -> 0 | F201: 0 | G201: 0 | H201: 0 | I201: 0 | J201: 0 | K201: 0 | L201: 0 | M201: 0
A202: Total Transit and Station Areas - Construction | C202: =C54+C117+C180 -> 0 | D202: 0 | E202: =E54+E117+E180 -> 0 | F202: 0 | G202: 0 | H202: 0 | I202: 0 | J202: 0 | K202: 0 | L202: 0 | M202: 0
... 5 more rows

Sheet TRA (hidden)
A1: =CONCATENATE(Overview!D3," Transportation Related Amenities (TRA) ","PIN ",Overview!AI2) -> Transportation Related Amenities (TRA) PIN
A2: TRA Project Summary
B3: Project Name | G3: Brief Description | Q3: Address | W3: City | Z3: Zip | AB3: County | AE3: Lat. | AF3: Log. | AG3: Census Tracts | AJ3: APNs
A4: TRA #1
A9: TRA #2
A14: TRA #3
A19: Enter # and Amt. of New | F19: Bus Shelters | J19: AHSC Funds | P19: Bicycle Parking At Transit | V19: AHSC Funds | AB19: Bus Stop Benches | AG19: AHSC Funds
A20: # of Transit Routes Improved | H20: Station Area or Transit Access Improvements | R20: Other (describe) | AA20: Pedestrian Paths (linear feet) | AI20: Type
A21: Identify all intended outcomes of the proposed active transportation component: | Q21: Improved compliance with traffic laws | Z21: Other barriers that may have existed on route (describe below)
A22: Improved sight distance/visibility | I22: Elimination of potential conflict points | R22: Reduced vehicular speed or volume
A23: TRA Eligible Costs §103(a)(4) and Ineligible Costs §103(c)
A24: (A) Are TRAs publicly accessible?
A25: (B)(i) We certify the capital improvements in the TRA budget are publicly accessible and provide supportive amenities to cyclists, pedestrians, and transit riders (i.e. bike parking, bus shelter, benches, street trees, etc.) within the defined Project Area meeting the transit requirements detailed in Section 102 (c) or (d)?
Z26: Budgeted | AD26: Cost Cap | AH26: Overage
A27: (B)(ii) Total amount of eligible TRA soft costs cannot exceed 10% of the total AHSC Program award. | Z27: ='TRA Budget'!C206+'TRA Budget'!C207 -> 100000 | AD27: =Overview!M31*0.1 -> 20000 | AH27: =IF(Z27-AD27>0,Z27-AD27,0) -> 80000 | AL27: =IF(AH27>0,"No","Ok") -> No
A28: (B)(iii) Total amount of Activity Delivery Costs associated with the implementation of the Capital Project cannot exceed 10% of the costs associated with the Capital Project. | Z28: ='TRA Budget'!C214 -> 0 | AD28: ='TRA Budget'!M216*0.1 -> 10000 | AH28: =IF(Z28-AD28>0,Z28-AD28,0) -> 0 | AL28: =IF(AH28>0,"No","Ok") -> Ok
A29: (B)(iv) Capital Project costs in budget that are required as a condition of local approval for the Project? | V29: If Yes, upload documentation below
A30: FAAST File Name: | E30: TRA Cap Project Costs | L30: Documentation showing Capital Project costs are required as a condition of local approval for Capital Project | AG30: File Uploaded?
A31: §103(c) We certify the AHSC TRA funded cost do not include any of the following ineligible costs: (1) Costs are not eligible if there is another feasible, available source of committed funding for the STI portion thereof to be funded by AHSC or if the cost is incurred prior to the AHSC award; (2) Routine maintenance of transportation infrastructure (including transit fleet); (3) In lieu fees for local inclusionary housing programs; (4) Ongoing operational costs beyond the term of the grant (3 years) for Program Costs; and (5) All costs associated with automobile or motorcycle parking (excluding electric vehicle charging infrastructure that may be located at a parking spot).
A32: TRA Grant Terms §104(c)
A33: (1) We certify that the grant does not result in a profit that exceeds the commercially reasonable range for other improvements of similar size and level of risk.
A34: (2) We acknowledge that AHSC Program grant funds will be disbursed as reimbursed progress payments for eligible costs incurred after the execution of the Standard Agreement in the amount not to exceed the AHSC Program award of funds.
A35: (3) We acknowledge if the TRA Project includes multiple phases or developments, all entitlements and construction funding commitments for the first phase must be received prior to disbursement.
A36: TRA Threshold §106(a)
A37: (6) We certify the TRA will include adequate lighting in accordance with local, state or federal design standards and requirements for all publicly accessible components of the TRA including active transportation route and transit stations or stops.
A38: (7) TRA Enforceable Funding Commitments (EFC) See AHSC Guidelines Appendix A - Definitions for an explanation of Enforceable Funding Commitments (EFC).
A39: EFC # | B39: Committed by Full App Deadline? | E39: Commitment Date | H39: Source Name (listed in order of lien priority) | P39: Source Type | T39: Lien No. | V39: Amount | Y39: Interest Rate | AF39: Term (# of mos.) | AH39: Required Debt Service | AK39: Balloon?
Y40: Rate | AA40: Type
A41: 1 | B41: Yes | H41: AHSC TRA Grant | P41: State-HCD | V41: 100000
A42: 2
A43: 3
A44: 4
A45: 5
A46: 6
A47: 7
A48: 8
A49: 9
A50: 10
B51: =SUMIF(B42:C50,"Yes",V42:X50) -> 0 | D51: <Total Committed Non-AHSC TRA Funds | M51: TOTAL (must equal TRA Budget Amount) | V51: =SUM(V41:X50) -> 100000 | AK51: =COUNTIF(B42:C50,"Yes") -> 0
A52: Provide a description of unusual or extraordinary circumstances that have resulted in higher than expected project costs and provide a justification as to why these costs are reasonable.
A54: FAAST File Name: | E54: EFC TRA1; EFC TRA2; EFC TRA3; etc. | M54: =CONCATENATE("Upload supporting documentation for the ",AK51," non-AHSC TRA funding commitments.") -> Upload supporting documentation for the 0 non-AHSC TRA funding commitments. | AG54: Files Uploaded?
A55: (8)(A) We acknowledge that completion and approval or adoption of all necessary environmental clearances for transportation components must be attained by initial disbursement of grant funds.
A56: NEPA: | C56: Is Federal funding proposed that will trigger NEPA requirements? | Z56: If Yes, enter date of "Authority to Use Grant Funds".
A57: CEQA: | C57: Project approved "by-right"? | J57: Is Project Categorically Exempt? | R57: Negative Declaration Date: | Z57: Final EIR Date:
A58: Discuss below any special NEPA and/or CEQA Special Circumstances and provide estimated/actual completion dates of all necessary environmental clearances.
A60: FAAST File Name: | E60: TRA Environmental | J60: Provide a copy of all environmental clearances (e.g. Environmental Impact Report) or Notice of Exemption. (Do not provide a duplicate document if provided in another FAAST upload) | AG60: File Uploaded?
A61: FAAST File Name: | E61: TRA Auth to Use Grant Funds | J61: For NEPA only, provide a copy of the HUD 7015.16 "Authority To Use Grant Funds" or clarify the current status of the issuance of the HUD form. (Do not provide a duplicate document if provided in another FAAST upload) | AG61: File Uploaded?
A62: (9) If applicable, provide a listing and status of all discretionary local land use entitlements and permits, excluding design review, required to complete each TRA Project that have been granted, submitted or to be applied for to the appropriate local agencies, or consistent with local planning documents.
A63: Agency / Issuer | N63: Land Use Approval Date | S63: Approval Type | Z63: Comments
A69: (11) Does the applicant or Developer of the Project have Site Control for each TRA Project? If yes, enter form of site control and the most recent execution date below (See Site Control in Appendix A)
A70: Form of site control (See Site Control in Appendix A): | Z70: Most recent document execution date:
A71: If leasehold estate, answer the following: | I71: Is rent based on restricted land value? | R71: Is acquisition cost $0 in Development Budget? | AB71: Prepaid lease loan used? If so answer below (a-c)
A72: (a) Funding amount based on the Present Value of lease payments? | O72: (b) Lender requesting Res. Receipts (not permissible) | AA72: (c) Has loan amount been entered as a finance cost?
A73: Describe any special circumstances, e.g. if there are multiple TRA projects provide site control information for each.
A75: FAAST File Name: | E75: TRA Site Control | M75: Upload appropriate documentation to demonstrate the form of site control indicated above | AG75: Files Uploaded?
A76: (12) Applicants must demonstrate prior experience by providing evidence of two prior TRA projects similar to the proposed AHSC Project in scope and size, which have been completed by the applicant during the ten years preceding the application due date. May demonstrate the requisite experience by using past experience of work completed of a Locality or Transportation Agency non-applicant so long as the applicant can provide an executed agreement with that specific Locality or Transportation Agency for the completion of the TRA components of the AHSC Project for which funding is sought.
E77: TRA Past Project #1 | V77: TRA Past Project #2
A78: Project Name
A79: Development Entity
A80: Completion Date
A81: Brief Description
A82: FAAST File Name: | E82: Past Exp TRA1, Past Exp TRA2 | M82: Where the party making improvements funded by AHSC in not a public entity, an executed agreement from a public agency certifying the satisfactory completion of similar infrastructure improvements. | AG82: Files Uploaded?
A83: (13) We certify as of the application date, the applicants or the TRA real property is not party to or the subject of any claim or action in the state or federal courts.
A84: (14) We certify that construction of the project has not commenced as of the application deadline set forth in the NOFA.
A85: (19) The TRA Project will not result in the loss or conversion of agricultural or other working lands, or natural resource lands for other uses according the Dept. of Conservation's Farmland Mapping and Monitoring Program (FMMP) website?
A86: If "Yes", provide documentation the TRA Project site is not within land designated as agricultural land per the FMMP tool.
A87: FAAST File Name: | E87: TRA No Ag | L87: Applicants must demonstrate the TRA site is not within land designated as agricultural land per FMMP tool. | AG87: File Uploaded?
A88: If "No", demonstrate that the AHD Project site qualifies as an Infill Site (as defined in Appendix A):
A89: FAAST File Name: | E89: TRA Ag Infill | L89: Applicants seeking an exemption to the FMMP determination must demonstrate that the TRA site qualifies as an Infill Site (as defined in Appendix A) | AG89: File Uploaded?
A90: (21)(A) If approval by a local public works department, or other responsible local agency is required for the Project, provide document below. I certify that the TRA improvements are consistent with all applicable local rules, regulations, codes, policies and plans enforced or implemented by that entity.
A91: FAAST File Name: | E91: TRA Local Approvals | M91: Statement from entity indicating the TRA Capital Project is consistent with all applicable local rules, regulations, codes, policies and plans enforced or implemented by that entity. | AG91: Files Uploaded?
A92: (21)(B) If the TRA Project involves demolition of existing units affordable to lower income households, the application must demonstrate the replacement of demolished units, comparable in size, of equal or greater affordability, and equal to or greater than the number of the demolished affordable units located within comparable access to transit and include first right of return to displaced residents. These no net loss requirements apply where a TRA Project is proposed on any property which includes a parcel or any portion of a parcel on which residential dwelling units affordable to lower income households currently exist or where there have been dwelling units restricted to lower-income households which have been vacated or demolished within the five year period preceding the application. Please explain below how this requirement is satisfied in the replacement affordable housing development. If the Project does not involve demolition or rehabilitation of existing affordable units, please indicate "N/A" below.
A94: MILESTONES
A95: Please provide the actual or anticipated completion date for the following performance milestones for each applicable Capital Project. If a milestone is not applicable to a Capital Project, please enter "N/A"
A96: Note: It is acknowledged that some of the following milestones may have already been achieved. For those milestones which have previously been met, please enter the month and year completed. For those milestones not yet completed, please provide a projected completion date (MM/YY) for each of the applicable items below. If not applicable to the specific Capital Project, please indicate "NA" below.
A97: Capital Project Milestone Schedule | AK97: Date
A98: Executed binding agreement between the Recipient and developer of the proposed Capital Project detailing the terms and conditions of the Capital Project development.
A99: Submission of Final Construction Drawings and Specifications to the appropriate local building department or permitting authority.
A100: Commencement of construction.
A101: Construction complete and the filing of the Notice of Completion.
A102: Program funds fully disbursed.

Sheet TRA Budget (hidden)
A1: =CONCATENATE(Overview!D3," Transportation Related Amenities (TRA) Budget ","PIN ",Overview!AI2) -> Transportation Related Amenities (TRA) Budget PIN
A2: If proposing multiple distinct TRA Capital Projects, provide detail for each Project in separate budgets below. Amounts from each budget will autosum at the bottom. The sum will be used to determine the total TRA funds requested and cost cap.
A3: Cost Category | C3: ALL FUNDING SOURCES | N3: Comments
C4: =TRA!H41 -> AHSC TRA Grant | D4: =TRA!H42 -> 0 | E4: =TRA!H43 -> 0 | F4: =TRA!H44 -> 0 | G4: =TRA!H45 -> 0 | H4: =TRA!H46 -> 0 | I4: =TRA!H47 -> 0 | J4: =TRA!H48 -> 0 | K4: =TRA!H49 -> 0 | L4: =TRA!H50 -> 0 | M4: Sources Total
A7: =CONCATENATE("TRA BUDGET #1"," - ",TRA!B4) -> TRA BUDGET #1 -
A8: PA & ED (Environmental) | C8: 100000 | M8: =SUM(C8:L8) -> 100000
A9: Plan Specification and Estimates | M9: =SUM(C9:L9) -> 0
A10: Other: | M10: =SUM(C10:L10) -> 0
A11: Total Preliminary Engineering | C11: =SUM(C8:C10) -> 100000 | D11: 0 | E11: 0 | F11: 0 | G11: 0 | H11: 0 | I11: 0 | J11: 0 | K11: 0 | L11: 0 | M11: 100000
A12: Right of way support costs | M12: =SUM(C12:L12) -> 0
A13: Site or right of way acquisition for Cap. Improvement Project | M13: =SUM(C13:L13) -> 0
A14: Other: | M14: =SUM(C14:L14) -> 0
A15: Total Right of Way (not related to parking) | C15: =SUM(C12:C14) -> 0 | D15: 0 | E15: 0 | F15: 0 | G15: 0 | H15: 0 | I15: 0 | J15: 0 | K15: 0 | L15: 0 | M15: 0
A16: Clearing and Grubbing | M16: =SUM(C16:L16) -> 0
A17: Demolition | M17: 0
A18: Grading | M18: 0
A19: Soil Stabilization (Lime, etc.) | M19: 0
A20: Erosion/Weed Control | M20: 0
A21: Dewatering | M21: 0
A22: Other: | M22: 0
A23: Total Site Preparation | C23: =SUM(C16:C22) -> 0 | D23: 0 | E23: 0 | F23: 0 | G23: 0 | H23: 0 | I23: 0 | J23: 0 | K23: 0 | L23: 0 | M23: =SUM(M16:M22) -> 0
A24: Sanitary Sewer | M24: =SUM(C24:L24) -> 0
A25: Irrigation | M25: =SUM(C25:L25) -> 0
A26: Storm Drain | M26: =SUM(C26:L26) -> 0
A27: Detention Basin/Culverts | M27: =SUM(C27:L27) -> 0
A28: Other: | M28: =SUM(C28:L28) -> 0
A29: Total Site Utilities | C29: =SUM(C24:C28) -> 0 | D29: 0 | E29: 0 | F29: 0 | G29: 0 | H29: 0 | I29: 0 | J29: 0 | K29: 0 | L29: 0 | M29: =SUM(M24:M28) -> 0
A30: Aggregate Base | M30: =SUM(C30:L30) -> 0
A31: Asphalt Pavement | M31: 0
A32: Sidewalk, Curb and Gutter | M32: 0
A33: Street Lights | M33: 0
A34: Striping/Barricades (Bicycle Facilities) | M34: 0
A35: Signage | M35: 0
A36: Crossing and Traffic Signals | M36: 0
A37: Roundabouts, median islands or curb extensions | M37: 0
A38: Other traffic calming surface improvements | M38: 0
A39: Other: | M39: 0
A40: Total Complete Streets Improvements - Construction | C40: =SUM(C30:C39) -> 0 | D40: 0 | E40: 0 | F40: 0 | G40: 0 | H40: 0 | I40: 0 | J40: 0 | K40: 0 | L40: 0 | M40: 0
A41: Striping/Barricades (for dedicated bus lanes) | M41: =SUM(C41:L41) -> 0
A42: Sidewalk, Curb, and Gutter | M42: 0
A43: Street Lights | M43: 0
A44: Signage | M44: 0
A45: Signaling Prioritization Technology | M45: 0
A46: Boarding infrastructure | M46: 0
A47: Seating/Benches | M47: 0
A48: Bus/Transit Shelters | M48: 0
A49: Other ITS Technology | M49: 0
A50: Other: | M50: 0
A51: Other: | M51: 0
A52: Total Transit Station or Stop - Construction | C52: =SUM(C41:C51) -> 0 | D52: 0 | E52: 0 | F52: 0 | G52: 0 | H52: 0 | I52: 0 | J52: 0 | K52: 0 | L52: 0 | M52: 0
A53: Street Furniture | M53: =SUM(C53:L53) -> 0
A54: Bicycle Repair Kiosks | M54: 0
A55: Bicycle Storage or Parking | M55: 0
A56: Urban Greening | M56: 0
A57: Landscaping | M57: 0
A58: Drinking Fountains | M58: 0
A59: Other: | M59: =SUM(C59:L59) -> 0
A60: Total Landscaping, Amenities, Green Infrastructure | C60: =SUM(C53:C59) -> 0 | D60: =SUM(D53:D59) -> 0 | E60: =SUM(E53:E59) -> 0 | F60: 0 | G60: 0 | H60: 0 | I60: 0 | J60: 0 | K60: 0 | L60: 0 | M60: 0
A61: Applicant: Provide Name of Impact Fee | M61: =SUM(C61:L61) -> 0
A62: Applicant: Provide Name of Impact Fee | M62: =SUM(C62:L62) -> 0
A63: Total Impact Fees | C63: =SUM(C61:C62) -> 0 | D63: 0 | E63: 0 | F63: 0 | G63: 0 | H63: 0 | I63: 0 | J63: 0 | K63: 0 | L63: 0 | M63: =SUM(M61:M62) -> 0
A64: Other: | M64: =SUM(C64:L64) -> 0
A65: Other: | M65: =SUM(C65:L65) -> 0
A66: Total Activity Delivery Costs | C66: =SUM(C64:C65) -> 0 | D66: 0 | E66: 0 | F66: 0 | G66: 0 | H66: 0 | I66: 0 | J66: 0 | K66: 0 | L66: 0 | M66: =SUM(M64:M65) -> 0
A67: Vehicles | M67: =SUM(C67:L67) -> 0
A68: Other: | M68: =SUM(C68:L68) -> 0
A69: Other: | M69: =SUM(C69:L69) -> 0
A70: Total Other Capital Asset Costs | C70: =SUM(C67:C69) -> 0 | D70: 0 | E70: 0 | F70: 0 | G70: 0 | H70: 0 | I70: 0 | J70: 0 | K70: 0 | L70: 0 | M70: =SUM(M67:M69) -> 0
A71: Total TRA #1 Budgeted Project Costs | C71: =SUM(C70,C66,C63,C60,C52,C40,C29,C23,C15,C11) -> 100000 | D71: 0 | E71: 0 | F71: 0 | G71: 0 | H71: 0 | I71: 0 | J71: 0 | K71: 0 | L71: 0 | M71: 100000
A72: Explain here any unusual or extraordinary circumstances that have resulted in higher than expected project costs and provide a justification as to why these costs are reasonable.
A73: =CONCATENATE("TRA BUDGET #2"," - ",TRA!B9) -> TRA BUDGET #2 -
A74: PA & ED (Environmental) | M74: =SUM(C74:L74) -> 0
A75: Plan Specification and Estimates | M75: =SUM(C75:L75) -> 0
A76: Other: | M76: =SUM(C76:L76) -> 0
A77: Total Preliminary Engineering | C77: =SUM(C74:C76) -> 0 | D77: 0 | E77: 0 | F77: 0 | G77: 0 | H77: 0 | I77: 0 | J77: 0 | K77: 0 | L77: 0 | M77: 0
A78: Right of way support costs | M78: =SUM(C78:L78) -> 0
A79: Site or right of way acquisition for Cap. Improvement Project | M79: =SUM(C79:L79) -> 0
A80: Other: | M80: =SUM(C80:L80) -> 0
A81: Total Right of Way (not related to parking) | C81: =SUM(C78:C80) -> 0 | D81: 0 | E81: 0 | F81: 0 | G81: 0 | H81: 0 | I81: 0 | J81: 0 | K81: 0 | L81: 0 | M81: 0
A82: Clearing and Grubbing | M82: =SUM(C82:L82) -> 0
A83: Demolition | M83: 0
A84: Grading | M84: 0
A85: Soil Stabilization (Lime, etc.) | M85: 0
A86: Erosion/Weed Control | M86: 0
A87: Dewatering | M87: 0
A88: Other: | M88: 0
A89: Total Site Preparation | C89: =SUM(C82:C88) -> 0 | D89: 0 | E89: 0 | F89: 0 | G89: 0 | H89: 0 | I89: 0 | J89: 0 | K89: 0 | L89: 0 | M89: =SUM(M82:M88) -> 0
A90: Sanitary Sewer | M90: =SUM(C90:L90) -> 0
A91: Irrigation | M91: =SUM(C91:L91) -> 0
A92: Storm Drain | M92: =SUM(C92:L92) -> 0
A93: Detention Basin/Culverts | M93: =SUM(C93:L93) -> 0
A94: Other: | M94: =SUM(C94:L94) -> 0
A95: Total Site Utilities | C95: =SUM(C90:C94) -> 0 | D95: 0 | E95: 0 | F95: 0 | G95: 0 | H95: 0 | I95: 0 | J95: 0 | K95: 0 | L95: 0 | M95: =SUM(M90:M94) -> 0
A96: Aggregate Base | M96: =SUM(C96:L96) -> 0
A97: Asphalt Pavement | M97: 0
A98: Sidewalk, Curb and Gutter | M98: 0
A99: Street Lights | M99: 0
A100: Striping/Barricades (Bicycle Facilities) | M100: 0
A101: Signage | M101: 0
A102: Crossing and Traffic Signals | M102: 0
A103: Roundabouts, median islands or curb extensions | M103: 0
A104: Other traffic calming surface improvements | M104: 0
A105: Other: | M105: 0
A106: Total Complete Streets Improvements - Construction | C106: =SUM(C96:C105) -> 0 | D106: 0 | E106: 0 | F106: 0 | G106: 0 | H106: 0 | I106: 0 | J106: 0 | K106: 0 | L106: 0 | M106: 0
A107: Striping/Barricades (for dedicated bus lanes) | M107: =SUM(C107:L107) -> 0
A108: Sidewalk, Curb, and Gutter | M108: 0
A109: Street Lights | M109: 0
A110: Signage | M110: 0
A111: Signaling Prioritization Technology | M111: 0
A112: Boarding infrastructure | M112: 0
A113: Seating/Benches | M113: 0
A114: Bus/Transit Shelters | M114: 0
A115: Other ITS Technology | M115: 0
A116: Other: | M116: 0
A117: Other: | M117: 0
A118: Total Transit Station or Stop - Construction | C118: =SUM(C107:C117) -> 0 | D118: 0 | E118: 0 | F118: 0 | G118: 0 | H118: 0 | I118: 0 | J118: 0 | K118: 0 | L118: 0 | M118: 0
A119: Street Furniture | M119: =SUM(C119:L119) -> 0
A120: Bicycle Repair Kiosks | M120: 0
A121: Bicycle Storage or Parking | M121: 0
A122: Urban Greening | M122: 0
A123: Landscaping | M123: 0
A124: Drinking Fountains | M124: 0
A125: Other: | M125: =SUM(C125:L125) -> 0
A126: Total Landscaping, Amenities, Green Infrastructure | C126: =SUM(C119:C125) -> 0 | D126: =SUM(D119:D125) -> 0 | E126: =SUM(E119:E125) -> 0 | F126: 0 | G126: 0 | H126: 0 | I126: 0 | J126: 0 | K126: 0 | L126: 0 | M126: 0
A127: Applicant: Provide Name of Impact Fee | M127: =SUM(C127:L127) -> 0
A128: Applicant: Provide Name of Impact Fee | M128: =SUM(C128:L128) -> 0
A129: Total Impact Fees | C129: =SUM(C127:C128) -> 0 | D129: 0 | E129: 0 | F129: 0 | G129: 0 | H129: 0 | I129: 0 | J129: 0 | K129: 0 | L129: 0 | M129: =SUM(M127:M128) -> 0
A130: Other: | M130: =SUM(C130:L130) -> 0
A131: Other: | M131: =SUM(C131:L131) -> 0
A132: Total Activity Delivery Costs | C132: =SUM(C130:C131) -> 0 | D132: 0 | E132: 0 | F132: 0 | G132: 0 | H132: 0 | I132: 0 | J132: 0 | K132: 0 | L132: 0 | M132: =SUM(M130:M131) -> 0
A133: Vehicles | M133: =SUM(C133:L133) -> 0
A134: Other: | M134: =SUM(C134:L134) -> 0
A135: Other: | M135: =SUM(C135:L135) -> 0
A136: Total Other Capital Asset Costs | C136: =SUM(C133:C135) -> 0 | D136: 0 | E136: 0 | F136: 0 | G136: 0 | H136: 0 | I136: 0 | J136: 0 | K136: 0 | L136: 0 | M136: =SUM(M133:M135) -> 0
A137: Total TRA #2 Budgeted Project Costs | C137: =SUM(C136,C132,C129,C126,C118,C106,C95,C89,C81,C77) -> 0 | D137: 0 | E137: 0 | F137: 0 | G137: 0 | H137: 0 | I137: 0 | J137: 0 | K137: 0 | L137: 0 | M137: 0
A138: Explain here any unusual or extraordinary circumstances that have resulted in higher than expected project costs and provide a justification as to why these costs are reasonable.
A139: =CONCATENATE("TRA BUDGET #3"," - ",TRA!B14) -> TRA BUDGET #3 -
A140: PA & ED (Environmental) | M140: =SUM(C140:L140) -> 0
A141: Plan Specification and Estimates | M141: =SUM(C141:L141) -> 0
A142: Other: | M142: =SUM(C142:L142) -> 0
A143: Total Preliminary Engineering | C143: =SUM(C140:C142) -> 0 | D143: 0 | E143: 0 | F143: 0 | G143: 0 | H143: 0 | I143: 0 | J143: 0 | K143: 0 | L143: 0 | M143: 0
A144: Right of way support costs | M144: =SUM(C144:L144) -> 0
A145: Site or right of way acquisition for Cap. Improvement Project | M145: =SUM(C145:L145) -> 0
A146: Other: | M146: =SUM(C146:L146) -> 0
A147: Total Right of Way (not related to parking) | C147: =SUM(C144:C146) -> 0 | D147: 0 | E147: 0 | F147: 0 | G147: 0 | H147: 0 | I147: 0 | J147: 0 | K147: 0 | L147: 0 | M147: 0
A148: Clearing and Grubbing | M148: =SUM(C148:L148) -> 0
A149: Demolition | M149: 0
A150: Grading | M150: 0
A151: Soil Stabilization (Lime, etc.) | M151: 0
A152: Erosion/Weed Control | M152: 0
A153: Dewatering | M153: 0
A154: Other: | M154: 0
A155: Total Site Preparation | C155: =SUM(C148:C154) -> 0 | D155: 0 | E155: 0 | F155: 0 | G155: 0 | H155: 0 | I155: 0 | J155: 0 | K155: 0 | L155: 0 | M155: =SUM(M148:M154) -> 0
A156: Sanitary Sewer | M156: =SUM(C156:L156) -> 0
A157: Irrigation | M157: =SUM(C157:L157) -> 0
A158: Storm Drain | M158: =SUM(C158:L158) -> 0
A159: Detention Basin/Culverts | M159: =SUM(C159:L159) -> 0
A160: Other: | M160: =SUM(C160:L160) -> 0
A161: Total Site Utilities | C161: =SUM(C156:C160) -> 0 | D161: 0 | E161: 0 | F161: 0 | G161: 0 | H161: 0 | I161: 0 | J161: 0 | K161: 0 | L161: 0 | M161: =SUM(M156:M160) -> 0
A162: Aggregate Base | M162: =SUM(C162:L162) -> 0
A163: Asphalt Pavement | M163: 0
A164: Sidewalk, Curb and Gutter | M164: 0
A165: Street Lights | M165: 0
A166: Striping/Barricades (Bicycle Facilities) | M166: 0
A167: Signage | M167: 0
A168: Crossing and Traffic Signals | M168: 0
A169: Roundabouts, median islands or curb extensions | M169: 0
A170: Other traffic calming surface improvements | M170: 0
A171: Other: | M171: 0
A172: Total Complete Streets Improvements - Construction | C172: =SUM(C162:C171) -> 0 | D172: 0 | E172: 0 | F172: 0 | G172: 0 | H172: 0 | I172: 0 | J172: 0 | K172: 0 | L172: 0 | M172: 0
A173: Striping/Barricades (for dedicated bus lanes) | M173: =SUM(C173:L173) -> 0
A174: Sidewalk, Curb, and Gutter | M174: 0
A175: Street Lights | M175: 0
A176: Signage | M176: 0
A177: Signaling Prioritization Technology | M177: 0
A178: Boarding infrastructure | M178: 0
A179: Seating/Benches | M179: 0
A180: Bus/Transit Shelters | M180: 0
A181: Other ITS Technology | M181: 0
A182: Other: | M182: 0
A183: Other: | M183: 0
A184: Total Transit Station or Stop - Construction | C184: =SUM(C173:C183) -> 0 | D184: 0 | E184: 0 | F184: 0 | G184: 0 | H184: 0 | I184: 0 | J184: 0 | K184: 0 | L184: 0 | M184: 0
A185: Street Furniture | M185: =SUM(C185:L185) -> 0
A186: Bicycle Repair Kiosks | M186: 0
A187: Bicycle Storage or Parking | M187: 0
A188: Urban Greening | M188: 0
A189: Landscaping | M189: 0
A190: Drinking Fountains | M190: 0
A191: Other: | M191: =SUM(C191:L191) -> 0
A192: Total Landscaping, Amenities, Green Infrastructure | C192: =SUM(C185:C191) -> 0 | D192: =SUM(D185:D191) -> 0 | E192: =SUM(E185:E191) -> 0 | F192: =SUM(F185:F191) -> 0 | G192: =SUM(G185:G191) -> 0 | H192: =SUM(H185:H191) -> 0 | I192: =SUM(I185:I191) -> 0 | J192: =SUM(J185:J191) -> 0 | K192: =SUM(K185:K191) -> 0 | L192: =SUM(L185:L191) -> 0 | M192: =SUM(M185:M191) -> 0
A193: Applicant: Provide Name of Impact Fee | M193: =SUM(C193:L193) -> 0
A194: Applicant: Provide Name of Impact Fee | M194: =SUM(C194:L194) -> 0
A195: Total Impact Fees | C195: =SUM(C193:C194) -> 0 | D195: 0 | E195: 0 | F195: 0 | G195: 0 | H195: 0 | I195: 0 | J195: 0 | K195: 0 | L195: 0 | M195: =SUM(M193:M194) -> 0
A196: Other: | M196: =SUM(C196:L196) -> 0
A197: Other: | M197: =SUM(C197:L197) -> 0
A198: Total Activity Delivery Costs | C198: =SUM(C196:C197) -> 0 | D198: 0 | E198: 0 | F198: 0 | G198: 0 | H198: 0 | I198: 0 | J198: 0 | K198: 0 | L198: 0 | M198: =SUM(M196:M197) -> 0
A199: Vehicles | M199: =SUM(C199:L199) -> 0
A200: Other: | M200: =SUM(C200:L200) -> 0
A201: Other: | M201: =SUM(C201:L201) -> 0
A202: Total Other Capital Asset Costs | C202: =SUM(C199:C201) -> 0 | D202: 0 | E202: 0 | F202: 0 | G202: 0 | H202: 0 | I202: 0 | J202: 0 | K202: 0 | L202: 0 | M202: =SUM(M199:M201) -> 0
... 14 more rows

Sheet PGM (hidden)
A1: =CONCATENATE(Overview!D3," Programs (PGM) ","PIN ",Overview!AI2) -> Programs (PGM) PIN
A2: PGM Project Summary (§103(b) Programs include education, outreach and training programs for Active Transportation or Transit Ridership - see §103 Figure 3 for other examples)
B3: PGM & Operator Name | G3: Brief Description | Q3: Address | W3: City | Z3: Zip | AB3: County | AE3: Lat. | AF3: Log. | AG3: Census Tracts | AJ3: APNs
A4: PGM #1
A9: PGM #2
A14: PGM #3
A19: PGM Eligible Costs §103(b) and Ineligible Costs §103(c) - eligible costs may include operational costs for programs for the term of the grant (3 years)
A20: (1) Program Costs in Project include:
Z21: Budgeted | AD21: Cost Cap | AH21: Overage
A22: (2) Total grant amount for Program Costs within a Project Area cannot exceed 30% of the funding request for the overall Project up to $500,000. | Z22: =Overview!M30 -> 0 | AD22: =IF(Overview!M31*0.3>500000,500000,Overview!M31*0.3) -> 60000 | AH22: =IF(Z22-AD22>0,Z22-AD22,0) -> 0 | AL22: =IF(AH22>0,"No","Ok") -> Ok
A23: §103(c) We certify the AHSC PGM funded costs do not include any of the following ineligible costs: (1) Costs are not eligible if there is another feasible, available source of committed funding for the STI portion thereof to be funded by AHSC or if the cost is incurred prior to the AHSC award; (2) Routine maintenance of transportation infrastructure (including transit fleet); (3) In lieu fees for local inclusionary housing programs; (4) Ongoing operational costs beyond the term of the grant (3 years) for Program Costs; and (5) All costs associated with automobile or motorcycle parking (excluding electric vehicle charging infrastructure that may be located at a parking spot).
A24: PGM Threshold §106(a)
A25: (7) PGM Enforceable Funding Commitments (EFC) See AHSC Guidelines Appendix A - Definitions for an explanation of Enforceable Funding Commitments (EFC).
A26: EFC # | B26: Committed by Full App Deadline? | E26: Commitment Date | H26: Source Name (listed in order of lien priority) | P26: Source Type | T26: Lien No. | V26: Amount | Y26: Interest Rate | AF26: Term (# of mos.) | AH26: Required Debt Service | AK26: Balloon?
Y27: Rate | AA27: Type
A28: 1 | B28: Yes | H28: AHSC PGM Grant | P28: State-HCD
A29: 2
A30: 3
A31: 4
A32: 5
A33: 6
A34: 7
A35: 8
A36: 9
A37: 10
B38: =SUMIF(B29:C37,"Yes",V29:X37) -> 0 | D38: <Total Committed Non-AHSC PGM Funds | M38: TOTAL (must equal PGM Budget Amount | V38: =SUM(V28:X37) -> 0 | AK38: =COUNTIF(B29:C37,"Yes") -> 0
A39: Provide a description of unusual or extraordinary circumstances that have resulted in higher than expected project costs and provide a justification as to why these costs are reasonable.
A41: FAAST File Name: | E41: EFC PGM1, EFC PGM2, EFC PGM3, etc. | M41: =CONCATENATE("Upload supporting documentation for the ",AK38," non-AHSC PGM funding commitments.") -> Upload supporting documentation for the 0 non-AHSC PGM funding commitments. | AG41: Files Uploaded?
A42: (12) Demonstrate prior experience by providing evidence of two prior PGM projects similar to the proposed AHSC Project in scope and size, which have been completed by the applicant during the ten years preceding the application due date.
E43: PGM Past Project #1 | V43: PGM Past Project #2
A44: Project Name
A45: Operating Entity
A46: Brief Description
A47: Describe the prior experience of the Program Operator with operating similar successful programs.
A48: Please briefly describe how the Program Operator will sustain the Program beyond the term of the AHSC standard agreement and funds.
A50: (22) We certify the PGM is infeasible without AHSC Program funds, and other committed funds are not and will not be supplanted by AHSC Program funds.
A51: Program Need and Readiness
A52: Please briefly describe the proposed Program(s) Activity
A54: Who are the targeted users for the Program(s)?
A56: What is the issue or need that the Program(s) is attempting to address, and how will it successfully address this issue or need?
A58: Describe additional design challenges and development costs incurred to meet the requirements of the Program.
A60: MILESTONES
A61: Please provide the actual or anticipated completion date for the following performance milestones for each. If a milestone is not applicable, select "N/A"
A62: Program Milestone Schedule | AK62: Date
A63: Program designed
A64: Program operator identified
A65: Obtaining all enforceable funding commitments
A66: Program operations start
A67: Program funds fully disbursed

Sheet PGM Budget (hidden)
A1: =CONCATENATE(Overview!D3," Programs (PGM) Budget ","PIN ",Overview!AI2) -> Programs (PGM) Budget PIN
A2: If proposing multiple distinct Programs, provide detail for each Program in separate budgets below. Amounts from each budget will autosum at the bottom. The sum will be used to determine the total PGM funds requested.
A3: Cost Category | C3: ALL FUNDING SOURCES | N3: Comments
C4: =PGM!H28 -> AHSC PGM Grant | D4: =PGM!H29 -> 0 | E4: =PGM!H30 -> 0 | F4: =PGM!H31 -> 0 | G4: =PGM!H32 -> 0 | H4: =PGM!H33 -> 0 | I4: =PGM!H34 -> 0 | J4: =PGM!H35 -> 0 | K4: =PGM!H36 -> 0 | L4: =PGM!H37 -> 0 | M4: Sources Total
A7: =CONCATENATE("PGM BUDGET #1"," - ",PGM!B4) -> PGM BUDGET #1 -
A8: Party 1 (specify) | M8: =SUM(C8:L8) -> 0
A9: Party 2 (specify) | M9: =SUM(C9:L9) -> 0
A10: Party 3 (specify) | M10: =SUM(C10:L10) -> 0
A11: Party 4 (specify) | M11: =SUM(C11:L11) -> 0
A12: Party 5 (specify) | M12: =SUM(C12:L12) -> 0
A13: Total Direct Costs | C13: =SUM(C8:C12) -> 0 | D13: 0 | E13: 0 | F13: 0 | G13: 0 | H13: 0 | I13: 0 | J13: 0 | K13: 0 | L13: 0 | M13: 0
A14: Other (specify) | M14: =SUM(C14:L14) -> 0
A15: Other (specify) | M15: =SUM(C15:L15) -> 0
A16: Other (specify) | M16: =SUM(C16:L16) -> 0
A17: Total Indirect Costs | C17: =SUM(C14:C16) -> 0 | D17: 0 | E17: 0 | F17: 0 | G17: 0 | H17: 0 | I17: 0 | J17: 0 | K17: 0 | L17: 0 | M17: 0
A18: Total Staff Costs | C18: =C13+C17 -> 0 | D18: 0 | E18: 0 | F18: 0 | G18: 0 | H18: 0 | I18: 0 | J18: 0 | K18: 0 | L18: 0 | M18: 0
A19: Travel | M19: =SUM(C19:L19) -> 0
A20: Equipment | M20: =SUM(C20:L20) -> 0
A21: Supplies (specify) | M21: =SUM(C21:L21) -> 0
A22: Supplies (specify) | M22: 0
A23: Supplies (specify) | M23: 0
A24: Other (specify) | M24: 0
A25: Other (specify) | M25: 0
A26: Other (specify) | M26: 0
A27: Other (specify) | M27: 0
A28: Other (specify) | M28: 0
A29: Other (specify) | M29: 0
A30: Total Other Costs | C30: =SUM(C19:C29) -> 0 | D30: 0 | E30: 0 | F30: 0 | G30: 0 | H30: 0 | I30: 0 | J30: 0 | K30: 0 | L30: 0 | M30: 0
A31: Total PGM #1 Budgeted Project Costs | C31: =C18+C30 -> 0 | D31: 0 | E31: 0 | F31: 0 | G31: 0 | H31: 0 | I31: 0 | J31: 0 | K31: 0 | L31: 0 | M31: 0
A32: =CONCATENATE("PGM BUDGET #2"," - ",PGM!B9) -> PGM BUDGET #2 -
A33: Party 1 (specify) | M33: =SUM(C33:L33) -> 0
A34: Party 2 (specify) | M34: =SUM(C34:L34) -> 0
A35: Party 3 (specify) | M35: =SUM(C35:L35) -> 0
A36: Party 4 (specify) | M36: =SUM(C36:L36) -> 0
A37: Party 5 (specify) | M37: =SUM(C37:L37) -> 0
A38: Total Direct Costs | C38: =SUM(C33:C37) -> 0 | D38: 0 | E38: 0 | F38: 0 | G38: 0 | H38: 0 | I38: 0 | J38: 0 | K38: 0 | L38: 0 | M38: 0
A39: Other (specify) | M39: =SUM(C39:L39) -> 0
A40: Other (specify) | M40: =SUM(C40:L40) -> 0
A41: Other (specify) | M41: =SUM(C41:L41) -> 0
A42: Total Indirect Costs | C42: =SUM(C39:C41) -> 0 | D42: 0 | E42: 0 | F42: 0 | G42: 0 | H42: 0 | I42: 0 | J42: 0 | K42: 0 | L42: 0 | M42: 0
A43: Total Staff Costs | C43: =C38+C42 -> 0 | D43: 0 | E43: 0 | F43: 0 | G43: 0 | H43: 0 | I43: 0 | J43: 0 | K43: 0 | L43: 0 | M43: 0
A44: Travel | M44: =SUM(C44:L44) -> 0
A45: Equipment | M45: =SUM(C45:L45) -> 0
A46: Supplies (specify) | M46: =SUM(C46:L46) -> 0
A47: Supplies (specify) | M47: 0
A48: Supplies (specify) | M48: 0
A49: Other (specify) | M49: 0
A50: Other (specify) | M50: 0
A51: Other (specify) | M51: 0
A52: Other (specify) | M52: 0
A53: Other (specify) | M53: 0
A54: Other (specify) | M54: 0
A55: Total Other Costs | C55: =SUM(C44:C54) -> 0 | D55: 0 | E55: 0 | F55: 0 | G55: 0 | H55: 0 | I55: 0 | J55: 0 | K55: 0 | L55: 0 | M55: 0
A56: Total PGM #2 Budgeted Project Costs | C56: =C43+C55 -> 0 | D56: 0 | E56: 0 | F56: 0 | G56: 0 | H56: 0 | I56: 0 | J56: 0 | K56: 0 | L56: 0 | M56: 0
A57: =CONCATENATE("PGM BUDGET #3"," - ",PGM!B14) -> PGM BUDGET #3 -
A58: Party 1 (specify) | M58: =SUM(C58:L58) -> 0
A59: Party 2 (specify) | M59: =SUM(C59:L59) -> 0
A60: Party 3 (specify) | M60: =SUM(C60:L60) -> 0
A61: Party 4 (specify) | M61: =SUM(C61:L61) -> 0
A62: Party 5 (specify) | M62: =SUM(C62:L62) -> 0
A63: Total Direct Costs | C63: =SUM(C58:C62) -> 0 | D63: 0 | E63: 0 | F63: 0 | G63: 0 | H63: 0 | I63: 0 | J63: 0 | K63: 0 | L63: 0 | M63: 0
A64: Other (specify) | M64: =SUM(C64:L64) -> 0
A65: Other (specify) | M65: =SUM(C65:L65) -> 0
A66: Other (specify) | M66: =SUM(C66:L66) -> 0
A67: Total Indirect Costs | C67: =SUM(C64:C66) -> 0 | D67: 0 | E67: 0 | F67: 0 | G67: 0 | H67: 0 | I67: 0 | J67: 0 | K67: 0 | L67: 0 | M67: 0
A68: Total Staff Costs | C68: =C63+C67 -> 0 | D68: 0 | E68: 0 | F68: 0 | G68: 0 | H68: 0 | I68: 0 | J68: 0 | K68: 0 | L68: 0 | M68: 0
A69: Travel | M69: =SUM(C69:L69) -> 0
A70: Equipment | M70: =SUM(C70:L70) -> 0
A71: Supplies (specify) | M71: =SUM(C71:L71) -> 0
A72: Supplies (specify) | M72: 0
A73: Supplies (specify) | M73: 0
A74: Other (specify) | M74: 0
A75: Other (specify) | M75: 0
A76: Other (specify) | M76: 0
A77: Other (specify) | M77: 0
A78: Other (specify) | M78: 0
A79: Other (specify) | M79: 0
A80: Total Other Costs | C80: =SUM(C69:C79) -> 0 | D80: 0 | E80: 0 | F80: 0 | G80: 0 | H80: 0 | I80: 0 | J80: 0 | K80: 0 | L80: 0 | M80: 0
A81: Total PGM #3 Budgeted Project Costs | C81: =C68+C80 -> 0 | D81: 0 | E81: 0 | F81: 0 | G81: 0 | H81: 0 | I81: 0 | J81: 0 | K81: 0 | L81: 0 | M81: 0
A82: TOTAL PROGRAM (PGM) BUDGET
A83: Total Direct Staff Costs | C83: =C13+C38+C63 -> 0 | D83: 0 | E83: 0 | F83: 0 | G83: 0 | H83: 0 | I83: 0 | J83: 0 | K83: 0 | L83: 0 | M83: 0
A84: Total Indirect Staff Costs | C84: =C17+C42+C67 -> 0 | D84: 0 | E84: 0 | F84: 0 | G84: 0 | H84: 0 | I84: 0 | J84: 0 | K84: 0 | L84: 0 | M84: 0
A85: Total Other Costs | C85: =C30+C55+C80 -> 0 | D85: 0 | E85: 0 | F85: 0 | G85: 0 | H85: 0 | I85: 0 | J85: 0 | K85: 0 | L85: 0 | M85: 0
A86: Total PGM Budgeted Project Costs | C86: =SUM(C83:C85) -> 0 | D86: 0 | E86: 0 | F86: 0 | G86: 0 | H86: 0 | I86: 0 | J86: 0 | K86: 0 | L86: 0 | M86: 0

Sheet GHG Methodology (hidden)
A1: =CONCATENATE(Overview!D3," GHG Quantification Methodology §107(a) ","PIN ",Overview!AI2) -> GHG Quantification Methodology §107(a) PIN
A2: Estimated GHG Emissions Reductions - 30 Points Max
A3: FAAST File Name: | E3: GHG Calculator Tool | L3: All projects must submit a completed AHSC GHG Calculator tool (.xlsm) | AG3: File Uploaded?
A4: FAAST File Name: | E4: Project Area Map | L4: As discussed in the "Overview" worksheet, items marked with*(PAM) on the Quantitative Policy Scoring sheet with positive point scores, must be identified in the PAM. This includes proposed and length of walkways and bikeways to be funded, gap closures and key destinations in the Project Area that active transportation improvements will connect to, and Operational Services. Projects incorporating Traffic Calming Measures or Activity Center Credit may incorporate these items onto the same map. | AG4: As Discussed in Overview worksheet | AK4: =IF(Overview!AK48="","",Overview!AK48) -> 
A5: FAAST File Name: | E5: CalEEMod IO | L5: Documentation must be provided to demonstrate all included CalEEMod Measures, except where noted below. | AG5: File Uploaded?
A6: FAAST File Name: | E6: TAC MeasureXX | L6: Documentation must be provided to demonstrate all included TAC Measures, except where noted below | AG6: File Uploaded?
A7: Total Project Reductions and Cost Efficiency
A8: Total Project GHG Reductions (from GHG Summary Tab in Calculator) : | T8: Total AHSC funds requested: | Z8: =Overview!M31 -> 200000 | AC8: Cost efficiency of GHG reductions: | AJ8: =IF(Z8=0,0,O8/Z8) -> 0
A9: Required CalEEMod Inputs Checklist
A10: NOTE: Inputs selected in CalEEMod must match the application information and accurately reflect the proposed project.
A11: Required CalEEMod Inputs | I11: Description
A12: Project Location | I12: County selected must match application/project | AG12: Completed?
A13: Land Use Setting | I13: Select Rural for RIPA, Urban for TOD/ICP | AG13: Completed?
A14: Operational Year | I14: The first year of occupancy | AG14: Completed?
A15: Verified Project Setting | I15: Urban for TOD, Urban Center for ICP, Low Density Suburban for RIPA | AG15: Completed?
A16: CalEEMod Input/Output Files Uploaded into FAAST? (see required naming convention above)
A17: Optional CalEEMod Inputs (Measures)
A18: Measures | I18: Use This Measure if… | P18: Project Specific Data Inputs Required by CalEEMod | V18: Documentation Provided?
A19: LUT-3 Increase Diversity | I19: Multiple land use types in project | P19: Select for mixed-use developments (no additional data required) | V19: Provided in Housing Tab. Demonstrates the proposed project is a mixed-use development (e.g., project plans) | AG19: File Uploaded?
A20: LUT-4 Improve Destination Accessibility | I20: Project is within 12 miles of a CBD | P20: Enter the distance of CBD1(>12) | V20: FAAST File Name: Distance to CBD Map | AG20: File Uploaded?
A21: LUT-6 Integrate Below Market Rate Housing | I21: Project incorporates affordable housing | P21: Enter percentage of units (not # of Units) that are affordable (0-100) | V21: Provided in Housing Tab. Demonstrates the percentage of units that are affordable housing (e.g., project plans) | AG21: File Uploaded?
A22: PDT-1 Limit Parking Supply | I22: Project parking requirements are reduced or eliminated | P22: % reduction in residential spaces below ITE avg weekday parking generation rate 2 (0-25%) | V22: FAAST File Name: Limit Parking Supply | AG22: File Uploaded?
A23: PDT-2 Unbundle Parking Costs | I23: Project parking and property costs are separate | P23: Monthly parking cost ($0 - $200) | V23: FAAST File Name: Unbundle Parking Costs | AG23: File Uploaded?
A24: PDT-3 On-Street Market Pricing | I24: On-Street parking utilizes market-rate pricing (such as meters) | P24: % increase in price (0 - 50%) | V24: FAAST File Name: Market-rate Parking Pricing | AG24: File Uploaded?
A25: 1 Applicants must estimate the Distance to CBD using the CARB tool available at: http://www.arb.ca.gov/cc/capandtrade/auctionproceeds/kml/jobcentermap.html
A26: 2 See Appendix B of the CARB Quantification Methodology for AHSC FY 2016-17 for default ITE parking rates.
A27: 3 Must show half-mile around include housing-related components as well as a half-mile and quarter-mile around transportation-related components with identified activity centers.
A28: AHSC FAAST GHG Calculator Tool
A29: Complete Appropriate Tabs of the GHG Calculator
A30: All projects must complete the "READ ME" tab of the GHG Calculator Tool | AG30: Completed?
A31: Projects that include housing-related components, must complete the "CalEEMod Steps 4-6" tab | AG31: Completed?
A32: Projects that include transportation-related components, must complete the "TAC Inputs" tab of the GHG Calculator Tool | AG32: Completed?
A33: All projects must complete the "GHG Summary Tab" | AG33: Completed?
A34: Inputs entered into the TAC Inputs tab must align with the AHSC applications where applicable (e.g., county, Yr1, etc.) | AG34: Completed?
A35: CalEEMod Steps 4-6 tab of GHG Calculator Tool Checklist
A36: Required Inputs | K36: Description
A37: Project County | K37: County name must match application and CalEEMod | AG37: Completed?
A38: Unmitigated VMY from the CalEEMod Report | K38: VMT entered must match the CalEEMod Report | AG38: Completed?
A39: Mitigated VMT from the CalEEMod Report | K39: VMT entered must match the CalEEMod Report | AG39: Completed?
A40: Project Area Type | K40: TOD / ICP / RIPA (must match application) | AG40: Completed?
A41: Year 1 (first operational year) | K41: The first year of occupancy must match applications and CalEEMod Operational Year | AG41: Completed?
A42: Optional using CalEEMod Steps 4-6 tab (Measures) of GHG Calculator Tool Checklist
A43: Measures | I43: Use This Measure if… | P43: Project Specific Data Inputs Required by CalEEMod | V43: Documentation Provided?
A44: LUT-1 Increase Density | I44: Housing development density is greater than the minimum required dwelling units per acre | P44: Dwelling units per acre of project | V44: Demonstrates DU/acre calc is greater than minimum requirement by AHSC Program (e.g., project plans) FAAST File Name: Increase Density | AG44: File Uploaded?
A45: SDT-2 Provide Traffic Calming Measures4 | I45: Project's streets and intersections feature traffic calming features (Complete Street features)5 | P45: Yes/No | V45: Project Area Map identifying traffic calming measures within half-mile FAAST File Name: Traffic Calming Measure | AG45: File Uploaded?
A46: TRT-4 Transit Subsidy | I46: Project proponent will be providing transit subsidy for residents | P46: Subsidy per eligible resident per Year ($) | V46: Justification how project proponent determined each variable (e.g., development agreement or similar) FAAST File Name: Transit Subsidy | AG46: File Uploaded?
P47: % of residents eligible (0-100)
P48: Years subsidy is funded (0-30)
A49: 4 Must show half-mile area around include housing-related components and half-mile around transportation-related components.
A50: 5 The CAPCOA Quantification Report lists the following as acceptable traffic calming measures: marked crosswalks, count-down signal timers, curb extensions, speed tables, raised crosswalks, raised intersections, median islands, tight corner radii, roundabouts or mini-circles, on-street parking, planter strips with street trees and chicanes/chokers. Applicants will be required to document which traffic calming feature(s) will be implemented in order to take credit for this measure.
A51: TAC Inputs
A52: Service Type: | M52: Add'l Service Type: | Z52: Add'l Service Type:
A53: Optional using "TAC Inputs" Tab Checklist
A54: Based on selection of service type, applicant must provide documentation for each of the applicable components identified below for each new service proposed (must match application description):
A55: Requirements for Transit Projects
A56: Ridership | G56: Demonstrates how ridership increase as a result of the project where developed as well as transit agency concurrence via letter of support | W56: FAAST File Name: Ridership Estimate | AG56: File Uploaded?
A57: Adjustment (A) and Length (L) | G57: Demonstrates how these inputs where developed as well as transit agency concurrence via letter of support | W57: FAAST File Name: Adjustment and Length Estimate | AG57: File Uploaded?
A58: GHGs of New Service | G58: Inputs entered into the TAC Inputs tab align with the documentation submitted (e.g., Electric bus purchase proposed, Electric fuel type entered) | W58: FAAST File Name: New Service Info | AG58: File Uploaded?
A59: Requirements for Pedestrian and Bike Projects
A60: Average Daily Traffic (ADT) | G60: Demonstrates how project proponent determined ADT | W60: FAAST File Name: Average Daily Traffic | AG60: File Uploaded?
A61: Year 1 Trips | G61: For projects where default values are not available, due to high variability, applicants are required to document how these inputs were derived | W61: FAAST File Name: Bikeshare Yr1 Trips | AG61: File Uploaded?
A62: Activity Center Credit ( C) | G62: Project Plan/Area Map that must show half-mile area around include housing-related components and half-mile around transportation-related components with identified activity centers | W62: FAAST File Name: Activity Center Credit Map | AG62: File Uploaded?

Sheet Quantitative Policy (hidden)
A1: =CONCATENATE(Overview!D3," Quantitative Policy Scoring §107 ","PIN ",Overview!AI2) -> Quantitative Policy Scoring §107 PIN
A2: 55 Points Max (points in blue shaded cells) | Z2: Total Quantitative Self Score | AK2: =AK6+AK8+AK10+AK13+AK15+AK17+AK20+AK24+AK28+AK30+AK32+AK35+AK39+AK41+AK43+AK45+AK54+AK59+AK65+AK68+AK70 -> 6
A3: Active Transportation (AT) Improvements §107(b) - 10 Points Max
A4: FAAST File Name: | E4: *Project Area Map | I4: NOTE: As discussed in the "Overview" tab, items marked with *(PAM) below with positive point scores, must be identified in the PAM. This includes proposed and length of walkways and bikeways to be funded, gap closures and key destinations in the Project Area that active transportation improvements will connect to, and Operational Services. Projects incorporating Traffic Calming Measures or Activity Center Credit may incorporate these items onto the same map. | AG4: As Discussed in Overview worksheet | AK4: =IF(Overview!AK48="","",Overview!AK48) -> 
A5: (1) Length of Context Sensitive Bikeways*(PAM) - 3 points max
A6: Total length (in linear miles) of AHSC Funded Context Sensitive Bikeways (from STI Worksheet): | U6: Miles: | W6: =STI!A19 -> 0 | Y6: =IF(STI!A19>=2,"Over 2 Miles",IF(STI!A19>=0.5,"Over half a mile but less than 2 miles",IF(STI!A19>0,"Less than half a mile","none"))) -> none | AK6: =IF(Y6="Over 2 miles",3,IF(Y6="Over half a mile but less than 2 miles",2,IF(Y6="Less than half a mile",1,0))) -> 0
A7: (2) Key Destinations linked by Bikeways*(PAM) - 1 point
A8: Key Destination within the Project Area that will be linked to the AHD or Transit Station or Stop by bikeways funded by AHSC: | AK8: =IF(OR(Y8="Medical Center",Y8="School",Y8="Grocery Store",Y8="Child Care Center"),1,0) -> 0
A9: (3) Bicycle Network Gap Closure - 1 point
A10: Key bicycle network gap closure the Project will provide in an attempt to increase bicycle safety and access: | AK10: =IF(OR(V10="none",V10=""),0,1) -> 0
A11: FAAST File Name: | E11: =IF(AK10=0,"not applicable","Bicycle Network Gap Closure") -> not applicable | L11: =IF(AK10=0,"not applicable",CONCATENATE("Document the Project will ",V10)) -> not applicable | AG11: File Uploaded?
A12: (4) Safe and Accessible Walkways*(PAM) - 3 points max
A13: Total length (in linear miles) of AHSC Funded Safe and Accessible Walkways (from STI Worksheet): | V13: =STI!H20 -> 0 | AK13: =IF(V13="Greater than half a mile",3,IF(V13="More than an entire block (all 4 sides) but less than half a mile",2,IF(V13="An entire block (all 4 sides) of context sensitive walkway",1,0))) -> 0
A14: (5) Key Destinations linked by Walkways*(PAM) - 1 point
A15: Key Destination within the Project Area that will be linked to the AHD or Transit Station or Stop by walkways funded by AHSC: | AK15: =IF(OR(Y15="Medical Center",Y15="School",Y15="Grocery Store",Y15="Child Care Center"),1,0) -> 0
A16: (6) Pedestrian Network Gap Closure - 1 point
A17: Key pedestrian network gap closure Project will provide in an attempt to increase pedestrian safety and access: | AK17: =IF(OR(W17="none",W17=""),0,1) -> 0
A18: FAAST File Name: | E18: =IF(AK17=0,"not applicable","Pedestrian Network Gap Closure") -> not applicable | L18: =IF(AK17=0,"not applicable",CONCATENATE("Document the Project will ",W17)) -> not applicable | AG18: File Uploaded?
A19: Green Buildings and Renewable Energy §107(c) - 10 Points Max
A20: (1) Green Building Status-5 points max | I20: Construction Type (select type that gives max pts): | AK20: =IF(AND(S20="Residential Construction",(OR(O21="CalGreen Tier 2",O21="LEED Gold",O21="Green Point Rated 125 for New Construction",O21="Green Point Rated 120 for Rehabilitation",O21="ENERGY STAR Certified Home"))),5,IF(AND(S20="Residential Construction",(OR(O21="CalGreen Tier 1",O21="LEED Silver",O21="Green Point Rated 100 for New Construction",O21="Green Point Rated 95 for Rehabilitation"))),3,IF(AND(S20="Non-Residential Construction",(OR(O21="CalGreen Tier 2",O21="LEED Gold"))),5,IF(AND(S20="Non-Residential Construction",(OR(O21="CalGreen Tier 1",O21="LEED Silver"))),3,0)))) -> 0
A21: Green building status beyond mandatory green building requirements:
A22: FAAST File Name: | E22: =IF(AK20=0,"not applicable","Green Building Status") -> not applicable | L22: =IF(AK20=0,"not applicable",CONCATENATE("Document the Project will achieve green building status of: ",O21)) -> not applicable | AG22: File Uploaded?
A23: (2) Energy Grid Use Reductions - 5 points max
A24: Energy grid use reduction level: | AK24: =IF(OR(I24="none",I24=""),0,IF(I24="Energy Producer-at least one-third (or 33%) of the building energy is produced by on site renewable sources",2,IF(I24="Zero Net Energy-produces as much energy as it consumes over the course of a year, when accounted for at the energy generation source",5,0))) -> 0
A25: FAAST File Name: | E25: =IF(AK24=0,"not applicable","Energy Grid Reductions") -> not applicable | L25: =IF(AK24=0,"not applicable",CONCATENATE("Document the Project will achieve energy grid reductions based on: ",I24)) -> not applicable | AG25: File Uploaded?
A26: Housing and Transportation Collaboration §107(d) - 10 Points Max
A27: (1) STI Funds Requested as percentage of Total AHSC Requested - 6 points max
A28: AHD Requested: | E28: ='AHD-HRI Budget'!D208 -> 0 | H28: STI Requested: | L28: ='STI Budget'!C207 -> 100000 | O28: Total AHSC Funds Requested: | U28: ='AHD-HRI Budget'!C208+'AHD-HRI Budget'!D208+'STI Budget'!C207+'TRA Budget'!C216+'PGM Budget'!C86 -> 200000 | X28: STI Funds Requested as % of Total AHSC Requested: | AI28: =IF(OR(L28=0,U28=0),0,ROUND(L28/U28,2)) -> 0.5 | AK28: =IF(E28<1000000,0,IF(AI28>=0.25,6,IF(AI28>=0.15,4,IF(AI28>=0.1,2,0)))) -> 0
A29: (2) TRA Funds Requested (at or not at Transit Station or Stop) as percentage of Total AHSC Requested - 2 points max
A30: TRA Req: | C30: ='TRA Budget'!C216 -> 100000 | F30: TRA (Transit Station or Stop) Requested: | J30: ='TRA Budget'!C211 -> 0 | M30: Total AHSC Funds Requested: | Q30: ='AHD-HRI Budget'!C208+'AHD-HRI Budget'!D208+'STI Budget'!C207+'TRA Budget'!C216+'PGM Budget'!C86 -> 200000 | T30: TRA Funds Requested as % of Total AHSC Requested: | Z30: =IF(OR(C30=0,Q30=0),0,ROUND(C30/Q30,2)) -> 0.5 | AB30: TRA (Transit Station/Stop) Funds Req as % of Total AHSC Req: | AI30: =IF(OR(J30=0,Q30=0),0,ROUND(J30/Q30,2)) -> 0 | AK30: =IF(AI30>=0.05,2,IF(Z30>=0.05,1,0)) -> 1
A31: (3) Funding From Other Greenhouse Gas Reduction Fund (GGRF) Programs, which directly benefit or contribute to the development of the proposed Project - 1 point max
A32: GGRF Program that Project has received funding from: | AD32: Funding Amount: | AK32: =IF(AND(L32<>"",AH32>0),1,0) -> 0
A33: FAAST File Name: | E33: =IF(AK32=0,"not applicable","GGRF Fund Evidence") -> not applicable | J33: =IF(AK32=0,"not applicable",CONCATENATE("Document Project's reception of funding from ",L32)) -> not applicable | AG33: File Uploaded?
A34: (4) Within environmentally cleared High Speed Rail Station Planning Area - 1 point max
A35: Is Project within environmentally cleared High Speed Rail Station Planning Area? | AK35: =IF(AH35="Yes",1,0) -> 0
A36: FAAST File Name: | E36: =IF(AK35=0,"not applicable","High Speed Rail Area") -> not applicable | J36: =IF(AK35=0,"not applicable","Document Project's location within environmentally cleared High Speed Rail Station Planning Area") -> not applicable | AG36: File Uploaded?
A37: Location Efficiency and Access to Destinations – §107(e) - 5 Points Max
A38: (1) Location Efficiency - Walkability - 3 points max | K38: Using the US EPA Walkability Index, enter Project address (or the center most point of Project if no specific address exists) to determine Walkability.
A39: Provide Project address or corridor: | AA39: Walkability Index: | AK39: =IF(AE39="Most Walkable",3,IF(AE39="Above Average Walkable",2,IF(AE39="Below Average Walkable",1,0))) -> 0
A40: (2) Location Efficiency - Operational Services*(PAM) - 2 points max (for each item below, answer Yes or No as to if these operational services are within the Project Area) | AJ40: =(COUNTIF(J41,"Yes")+(COUNTIF(T41,"Yes")+(COUNTIF(AC41,"Yes")+(COUNTIF(AJ41,"Yes"))))) -> 0
A41: Grocery store - meets CalFresh requirements: | K41: Medical clinic - accepts Medi-Cal payments: | U41: Public elementary, middle or high school | AD41: Licensed child care facility | AK41: =IF(AJ40=4,2,IF(AJ40=3,1.5,IF(AJ40=2,1,IF(AJ40=1,0.5,0)))) -> 0
A42: Funds Leveraged – §107(f) - 5 Points Max
A43: Non-AHSC Enforceable Funding Commitments (EFC): | L43: =Overview!X31 -> 0 | O43: AHSC Funds Requested: | T43: =Overview!M31 -> 200000 | W43: Non-AHSC EFCs as a % of AHSC Requested: | AI43: =IF(T43=0,0,L43/T43) -> 0 | AK43: =IF(AI43>=2,5,IF(AI43>=1.5,4,IF(AI43>=1,3,IF(AI43>=0.5,2,IF(AI43>=0.25,1,0))))) -> 0
A44: Anti-Displacement Strategies – §107(g) - 5 Points Max
A45: (1) Projects that either implement strategies or programs, or are located in jurisdictions with policies, strategies or programs that currently exist to prevent the displacement of local community residents from the area surrounding the Project - 1 point per strategy - 3 points max | AF45: Number of Strategies | AI45: =COUNTIF(A46:C53,"In Jurisdiction")+COUNTIF(T46:V53,"In Jurisdiction")+COUNTIF(A46:C53,"Implement")+COUNTIF(T46:V53,"Implement") -> 0 | AK45: =IF(AI45>=3,3,AI45) -> 0
D46: Just cause eviction or tenant anti-harassment policies | W46: Inclusionary zoning ordinances
D47: Density bonus ordinances that expand on state requirements | W47: Job-housing linkage fee
D48: Affordable housing linkage fee | W48: First right of return ordinance
D49: Source of income non-discrimination ordinances | W49: Policies to preserve SRO units and/or mobile home parks
D50: Condominium Conversion Restrictions | W50: Required and/or incentives for contributions to local community land trusts
D51: Land banking programs | W51: Community benefit zoning and/or other land value recapture strategy
D52: Affirmative marketing strategies or plans targeting a Disadvantaged or Low-Income Community | W52: Residency Preference Plan prioritizing occupancy for Disadvantaged Community or Low-Income Community residents
D53: Providing the sale of discounted transit passes available for low-income individuals who live in the Project Area (not just for residents of the AHD).
A54: (2) Projects demonstrating policies, strategies or programs that either currently exist or will be implemented through this Project to prevent the displacement of locally-owned businesses from the area surrounding the Project - 1 point per strategy - 2 points max | AF54: Number of Strategies | AI54: =COUNTIF(A55:C57,"Currently Exist")+COUNTIF(T55:V57,"Currently Exist")+COUNTIF(A55:C57,"Will be Implemented")+COUNTIF(T55:V57,"Will be Implemented") -> 0 | AK54: =IF(AI54>=2,2,AI54) -> 0
D55: Implementation of an overlay zone to protect and assist small businesses | W55: Establishment of a small business advocate office and single point of contact for every small business owner
D56: Creation and maintenance of a small business alliance | W56: Increased visibility of the jurisdiction’s small business assistance programs
D57: Formal program to ensure that some fraction of a jurisdiction’s purchases of goods and services come from local businesses | W57: Prioritization of Minority and Women Business Enterprises (MWBE) for public contracting
A58: Local Workforce Development & Hiring Practices – §107(h) - 2 Points Max
A59: (1) Projects that implement at least one workforce development strategy - 2 points max, Note: These items are not eligible for AHSC funding, but must be incorporated directly into the AHSC project to be eligible for points in this category, such as being involved in the development of the Project or ongoing operation of the Project. Projects in which every AHSC project component cannot legally implement local hire or workforce development strategies must include an explanation detailing these barriers in order to receive full points. | AK59: =IF(COUNTIF(AK60:AL63,"Yes")>1,2,IF(COUNTIF(AK60:AL63,"Yes")=1,1,0)) -> 0
A60: Establishing a partnership with a community-based workforce development and job training entities that have a track record of success serving disadvantaged populations and/or have demonstrated a high job placement rate among trainees from disadvantaged communities
A61: Partnerships with pre-apprenticeship programs, state certified community conservation corps programs, “earn-while-you-learn” programs, Youth Build programs, and/or registered apprenticeship programs that lead to industry recognized credentials, certifications and/or references for long term employment
A62: Partnerships with local Workforce Investment Board programs serving disadvantaged populations
A63: Projects that have developed project labor, community workforce, or high-road agreements with targeted local hire specifications OR that are located in jurisdictions with local hire ordinances that directly apply to the proposed project
A64: Housing Affordability – §107(i) - 5 Points Max
A65: Total AHD Units Restricted to Extremely Low Income (ELI) Households: | O65: ='AHD Units & Max Funds'!L27 -> 9 | Q65: Total AHD Units: | V65: ='AHD Units & Max Funds'!I26 -> 17 | X65: ELI Restricted AHD Units as a % of Total AHD Units: | AI65: =IF(V65=0,0,O65/V65) -> 0.5294117647 | AK65: =IF(AI65>0.2,5,IF(AI65>0.15,4,IF(AI65>0.1,3,IF(AI65>0.05,2,IF(AI65=0.05,1,0))))) -> 5
A66: Programs – §107(j) - 3 Points Max
A67: (1) AHSC Funded Eligible Program Use - 2 points
A68: Proposed Eligible Program Use: | AK68: =IF(OR(I68="none",I68="",I68="Transit Pass Program as part of an AHSC AHD funding request"),0,2) -> 0
A69: (2) Applicant Provided Program Documentation - 1 point max (if Yes to either question below, attach FAAST documentation)
A70: Program Operator has prior experience operating successful programs? | P70: Will Program Operator sustain program beyond term of AHSC standard agreement and funds? | AK70: =IF(AND(O70="Yes",AJ70="Yes"),1,IF(OR(O70="Yes",AJ70="Yes"),0.5,0)) -> 0
A71: FAAST File Name: | E71: =IF(AND(OR(O70="No",O70=""),(OR(O70="No",O70=""))),"not applicable","Program Operator Exp") -> not applicable | J71: =IF(AND(OR(O70="No",O70=""),(OR(O70="No",O70=""))),"not applicable","Document prior experience operating similar successful programs and/or plan for program sustainability") -> not applicable | AG71: File Uploaded?

Sheet Narrative-Based Policy (hidden)
A1: =CONCATENATE(Overview!D3," Narrative-Based Scoring §107(k),(l),(m) ","PIN ",Overview!AI2) -> Narrative-Based Scoring §107(k),(l),(m) PIN
A2: Collaboration & Planning - Sec. 107(k) - 6 Points
A3: FAAST File Name: | E3: SCS or Equiv Regional Plan | L3: Applicants must indicate the applicable section or elements of the SCS or equivalent regional plan the Project will implement. (Do not provide a duplicate document if provided in another FAAST upload) | AG3: File Uploaded?
A4: FAAST File Name: | E4: Local Planning Efforts | L4: Applicants must indicate the applicable section or elements of the local planning document the Project will implement. | AG4: File Uploaded?
A5: FAAST File Name: | E5: Site Plan & Project Map | L5: Applicants must provide a site plan and project area map (or context plan) detailing housing and transportation collaboration. (If this collaboration was clearly demonstrated on the previously uploaded Project Area Map, do not upload a duplicate document) | AG5: File Uploaded?
A6: FAAST File Name: | E6: Narrative | L6: Applicants must provide a response to each prompt listed below. Each prompt is designated by *Narrative. The responses must be uploaded as a PDF and must not exceed 4 pages. | AG6: File Uploaded?
A7: (1) Regional Government Involvement *Narrative
A8: Describe how the proposed project implements the region's Sustainable Communities' Strategy (SCS) or equivalent regional sustainability plan, and the extent to which the candidate project aligns with regional priorities. If applicable, please also describe collaboration with the local metropolitan planning organization (MPO) or similar regional planning entity.
A9: (2) Local Planning Efforts *Narrative
A10: Identify what local planning efforts the project implements, and if applicable, describe what particular components of the project are derived from a local plan. Explain how local government agencies were involved in the process of creating the project. Refer to Section 107(k) for examples of local planning efforts.
A11: (3) Housing and Transportation Collaboration *Narrative
A12: Describe the relationship between the joint-applicants or partners that worked together to create the proposed AHSC project. Explain the process involved in coming together to create a larger version for the Project Area. Describe how housing, transportation, and urban greening infrastructure components of the project are integrated to make a cohesive project.
A13: Community Benefits & Engagement - Sec. 107(l) - 6 Points
A14: FAAST File Name: | E14: Community Benefits & Engagement | L14: Letter of support from local community-based, grassroots organization describing the community engagement process and how feedback from local residents was incorporated into the project. | AG14: File Uploaded?
A15: (1) Community Engagement and Leadership *Narrative
A16: Describe how community-based organizations and local residents have been meaningfully involved in the visioning and development of this project. Explain on which stage(s) of the process community members and CBOs have been and will be engaged.
A17: (2) Addressing Community Needs *Narrative
A18: Demonstrate how the proposed AHSC project meets one or more identified community needs, articulating how these needs were identified (e.g. through the community engagement process, a local needs assessment, as part of a local health department plan or other city/county plan, etc.). Address community needs beyond the provisions of housing and transportation. For projects located in a Disadvantaged Community or Low-Income Community, applicants are also encouraged to cite top burdens from their CalEnviroScreen 3.0 score as community needs that their projects will address.
A19: Community Climate Resiliency - Sec. 107(m) - 3 Points
A20: (1) Climate Adaptation *Narrative
A21: Consider if the surrounding community is experiencing any specific climate vulnerabilities and how this project aims to address specific concerns. Describe how potential climate impacts are taken into consideration in the design of the proposed project, such as the incorporation of Natural Infrastructure, and, if applicable, how the project conforms with the local implementation of SB 379, Government Code Section 65302(g)(4), where cities and counties are required to address climate adaptation and resiliency strategies in the safety element component of their general plan.

Sheet Read Me
B2: DISCLAIMER: The data in this document are extracted from Round 3 AHSC Application Workbooks and HCD Universal Application Workbooks. AHSC Program staff has not verified the data and the information in this document may vary from the proposed awards.

Sheet Round 3 Data for Public Release
A1: FAAST PIN | B1: PROJECT NAME | C1: APPLICANT #1 | D1: APPLICANT #2 | E1: APPLICANT #3 | F1: APPLICANT #4 | G1: METROPOLITAN PLANNING ORGANIZATION | H1: STATE ASSEMBLY DISTRICT | I1: SENATE DISTRICT | J1: US CONGRESSIONAL DISTRICT | K1: PROJECT CITY | L1: PROJECT COUNTY | M1: PROJECT AREA TYPE | N1: THRESHOLD | O1: AWARDED | P1: TOTAL POINTS EARNED | Q1: TOTAL AMOUNT REQUESTED | R1: AHD | S1: HRI | T1: STI | U1: TRA | V1: PGM | W1: AFFORDABLE HOUSING | X1: WITHIN DISADVANTAGED COMMUNITY | Y1: CENSUS TRACT | Z1: DISADVANTAGED COMMUNITY ELIGIBILITY CRITERIA MET | AA1: CES 3.0 / DISADVANTAGED COMMUNITY PERCENTAGE | AB1: AB 1550 COMMUNITY | AC1: WITHIN LOW INCOME COMMUNITY | AD1: WITHIN DISADVANTAGED COMMUNITY AND LOW INCOME COMMUNNITY | AE1: PROVIDES JOBS TO LOW INCOME COMMUNITY | AF1: GHG REPORTED BY APPLICANT | AG1: CARB Verified GHG Emission Reductions | AH1: CARB Verified Cost Effectiveness | AI1: TOTAL UNITS | AJ1: TOTAL ASSISTED UNITS | AK1: PERCENTAGE OF AFORDABLE UNITS | AL1: ELI UNITS | AM1: VLI UNITS | AN1: AVERAGE AFFORDABILITY PERCENTAGE | AO1: SENIOR UNITS | AP1: SUPPORTIVE HOUSING UNITS | AQ1: VETERAN UNITS | AR1: COMMERCIAL SQUARE FEET | AS1: HOUSING DENSITY (units per acre) | AT1: TYPE OF LHITC | AU1: TRANSIT PASSES PROVIDED | AV1: CAR PARKING SPACES | AW1: PARKING RATIO (spaces per unit) | AX1: CAR SHARING SPACES | AY1: ELECTRIC VEHICLE CHARGING SPACES | AZ1: BICYCLE PARKING SPACES PER UNIT | BA1: BIKE FACILITIES FUNDED (linear miles) | BB1: TYPE OF BIKE FACILITIES | BC1: SAFE & ACCESSIBLE WALKWAY | BD1: IMPROVED CROSSINGS FUNDED | BE1: IMPROVED CROSSINGS TYPE | BF1: NEW TRANSIT VEHICLES FUNDED | BG1: TRANSIT VEHICLES: RAIL CARS | BH1: TRANSIT VEHICLES: BUSES | BI1: TRANSIT VEHICLES: VANS | BJ1: BUS SHELTERS | BK1: BUS STOP BENCHES | BL1: BIKE PARKING AT TRANSIT | BM1: NUMBER OF TRANSIT ROUTES IMPROVED | BN1: ADDED OR IMPROVED TRANSIT SERVICE | BO1: STATION AREA OR TRANSIT ACCESS IMPROVEMENTS | BP1: STI COMPLETE STREETS COST | BQ1: STI TRANSIT AND STATION AREAS COST | BR1: TRA COMPLETE STREETS COST | BS1: TRA TRANSIT AND STATION AREAS COST | BT1: Program #1 | BU1: Program #2 | BV1: Program #3
A2: 40963 | B2: Sequoia Commons | C2: Self-Help Enterprises | G2: Tulare County Association of Governments (TCAG) | H2: 26 | I2: 14 | J2: 22 | K2: Goshen | L2: Tulare | M2: RIPA | N2: Pass | O2: Yes | P2: 91.5 | Q2: 12088276 | R2: 8340236 | S2: 0 | T2: 3035000 | U2: 608000 | V2: 105040 | W2: Yes | X2: Yes | Y2: 6107000900 | Z2: Yes | AA2: 86-90% | AB2: Yes | AC2: Yes | AD2: Yes | AE2: Yes | AF2: 12511.53 | AG2: 13607 | AH2: 0.00112563 | AI2: 66 | AJ2: 65 | AK2: 0.98 | AL2: 14 | AM2: 51 | AN2: 0.43 | AO2: 0 | AP2: 0 | AQ2: 0 | AS2: 20 | AT2: 0.04 | AU2: 2376 | AV2: 76 | AW2: 38:33 | AX2: 2 | AY2: 2 | AZ2: 8:11 | BA2: 0.64 | BB2: Class IV & II | BC2: Greater than half a mile | BO2: Yes | BP2: 2910000 | BQ2: 0 | BR2: 0 | BS2: 583000 | BT2: Marketing expansion of existing vanpool program to purchase/operate 20 vans; Vans will be avaiable to residents of Sequoia Commons, then the community of Goshen and Tulare County; Program funds are being requested for marketing and outreach. | BU2: Provide one free monthly transit pass to each unit at Sequoia Commons for a period of three years; marketing for the program in partnership with the MPO and the County
A3: 40983 | B3: 2060 Folsom Street Affordable Housing | C3: 2060 Folsom Housing, L.P. | D3: Chinatown Community Development Center | E3: Mission Economic Development Agency | F3: City and County of San Francisco - MOHCD | G3: Metropolitan Transportation Commission (MTC) | H3: 17 | I3: 11 | J3: 12 | K3: San Francisco | L3: San Francisco | M3: TOD | N3: Pass | O3: Yes | P3: 79 | Q3: 14000000 | R3: 9300000 | S3: 0 | T3: 3500000 | U3: 700000 | V3: 500000 | W3: Yes | X3: No | Y3: 6075017700 | Z3: No | AA3: 61-65% | AB3: Yes | AC3: Yes | AD3: No | AE3: No | AF3: 18496.92 | AG3: 18564 | AH3: 0.001326 | AI3: 127 | AJ3: 126 | AK3: 0.99 | AL3: 29 | AM3: 11 | AN3: 0.5 | AO3: 0 | AP3: 29 | AQ3: 0 | AR3: 12191 | AS3: 189.5522388 | AT3: 0.04 | AU3: 127 | AV3: 0 | AW3: 0:1 | AX3: 0 | AY3: 0 | AZ3: 120:127 | BA3: 0.8 | BB3: Class IV | BC3: Greater than half a mile | BP3: 3065000 | BQ3: 0 | BR3: 358377 | BS3: 0 | BT3: Bicis Del Pueblo (BDP) offers culturally appropriate and inclusive bicycle riding and repair programming to disadvantaged low-income families and youth in order to reduce ecological footprints, building community, and support resilient communities. | BU3: Affordable Housing Development will provide free transit passes to residents for 3 years.
A4: 41084 | B4: Keeler Court/Southcrest AHSC | C4: Community HousingWorks | G4: San Diego Association of Governments (SANDAG) | H4: 80 | I4: 40 | J4: 51 | K4: San Diego | L4: San Diego | M4: ICP | N4: Pass | O4: Yes | P4: 79 | Q4: 9934273 | R4: 7188481 | S4: 0 | T4: 2503642 | U4: 0 | V4: 242150 | W4: Yes | X4: Yes | Y4: 6073003602 | Z4: Yes | AA4: 86-90% | AB4: Yes | AC4: No | AD4: No | AE4: Yes | AF4: 5895.65 | AG4: 5580 | AH4: 0.00056167 | AI4: 71 | AJ4: 70 | AK4: 0.99 | AL4: 15 | AM4: 35 | AN4: 0.48 | AO4: 0 | AP4: 0 | AQ4: 0 | AS4: 44.65408805 | AT4: 0.04 | AU4: 71 | AV4: 86 | AW4: 86:71 | AY4: 2 | AZ4: 36:71 | BA4: 6 | BB4: Class IV | BC4: Greater than half a mile | BD4: 6 | BE4: Crosswalks | BF4: 2 | BG4: 0 | BH4: 2 | BI4: 0 | BJ4: 0 | BK4: 0 | BL4: 0 | BM4: 0 | BN4: Yes | BP4: 253209 | BQ4: 1147988 | BR4: 0 | BS4: 0 | BT4: Programs to engage residents and target groups such as young families and seniors around transportation safety in the neighborhood. Programs would focus on providing pedestrian and bicycle safety programs to different age groups, and to conduct walk audits with residents to identify safety concerns and work with stakeholders to address them. | BU4: Programs to educate residents about how to use and access transit. Activities include a training session on local services and how to use them, and a field trip including various stops to explore local businesses and entertainment venues around the neighborhood. | BV4: Programs to educate and engage residents and local groups around TOD, what it is, what are its advantages and how to work together to improve access to active and public transportation. Includes TOD seminars, Placemaking Workshops, Information materials, community assessments and trainings on advocacy.
A5: 41085 | B5: Stonegate Village | C5: Self-Help Enterprises | G5: Stanislaus Council of Governments (StanCOG) | H5: 21 | I5: 12 | J5: 10 | K5: Patterson | L5: Stanislaus | M5: RIPA | N5: Pass | O5: Yes | P5: 81 | Q5: 12075537 | R5: 10248722 | S5: 0 | T5: 1375000 | U5: 125000 | V5: 326815 | W5: Yes | X5: Yes | Y5: 6099003201 | Z5: Yes | AA5: 81-85% | AB5: Yes | AC5: Yes | AD5: Yes | AE5: No | AF5: 12040.04 | AG5: 11478 | AH5: 0.00095048 | AI5: 66 | AJ5: 65 | AK5: 0.98 | AL5: 14 | AM5: 51 | AN5: 0.43 | AO5: 0 | AP5: 0 | AQ5: 0 | AR5: 0 | AS5: 20.37037037 | AT5: 0.04 | AU5: 2376 | AV5: 101 | AW5: 101:66 | AX5: 2 | AY5: 2 | AZ5: 8:11 | BA5: 0.55 | BB5: Class II | BC5: Greater than half a mile | BD5: 1 | BE5: Crosswalks | BF5: 20 | BG5: 0 | BH5: 0 | BI5: 20 | BJ5: 0 | BK5: 0 | BL5: 8 | BM5: 3 | BN5: Yes | BO5: Yes | BP5: 450000 | BQ5: 850000 | BR5: 0 | BS5: 115000 | BT5: Provide transit pass to residents. One pass per unit for period of 3 years per program threshold requirements. | BU5: Provide subsidy for CalVans operation of 20 vans and marketing of program in the County of Stanislaus. | BV5: Marketing program for transit services in Stanislaus County.
A6: 41105 | B6: Blackstone & McKinley Transit Oriented Development (BMTOD) | C6: 1501 N. Blackstone Ave., L.P. | G6: Fresno Council of Governments (FresnoCOG) | H6: 31 | I6: 14 | J6: 16 | K6: Fresno | L6: Fresno | M6: ICP | N6: Pass | O6: Yes | P6: 80 | Q6: 16039962 | R6: 12600000 | S6: 0 | T6: 2390549 | U6: 1022413 | V6: 27000 | W6: Yes | X6: Yes | Y6: 6019002400 | Z6: Yes | AA6: 96-100% | AB6: Yes | AC6: Yes | AD6: Yes | AE6: No | AF6: 8833.52 | AG6: 7629 | AH6: 0.00047561 | AI6: 88 | AJ6: 87 | AK6: 0.99 | AL6: 18 | AM6: 35 | AN6: 0.5 | AO6: 0 | AP6: 0 | AQ6: 0 | AR6: 7500 | AS6: 30.34482759 | AT6: 0.04 | AU6: 88 | AV6: 96 | AW6: 12:11 | AX6: 16 | AY6: 2 | AZ6: 15:22 | BA6: 2.15 | BC6: Greater than half a mile | BD6: 0 | BF6: 0 | BG6: 0 | BH6: 0 | BI6: 0 | BJ6: 0 | BK6: 0 | BL6: 0 | BM6: 0 | BN6: No | BO6: Yes | BP6: 1207400 | BQ6: 0 | BR6: 680850 | BS6: 0 | BT6: Project Sponsor with LifeSTEPS, will create a program focusing on pedestrian & biycle safety, walking & biking maps/travel plans, education regarding BRT & will provide mobility services through its partner Envoy Technologies (see below). | BU6: These classes and services will be made available to the BMTOD residents and to the residents living in the surrounding area. | BV6: Envoy Technologies will provide mobility services, electric car share, electric bike share and electric scooter sharing to the residents. This will include, two electric vehicles, six eBikes and six eScooters.
A7: 41052 | B7: PATH Villas Hollywood (partially funded) | C7: PATH Ventures | D7: City of Los Angeles | G7: Southern California Association of Governments (SCAG) | H7: 43 | I7: 24 | J7: 28 | K7: Los Angeles | L7: Los Angeles | M7: TOD | N7: Pass | O7: Yes | P7: 75 | Q7: 10855124.21 | R7: 7381763 | S7: 0 | T7: 2754747.21 | U7: 542260 | V7: 176354 | W7: Yes | X7: Yes | Y7: 6037190901 | Z7: Yes | AA7: 91-95% | AB7: Yes | AC7: Yes | AD7: Yes | AE7: No | AF7: 10754.46 | AG7: 6748 | AH7: 0.0006216 | AI7: 60 | AJ7: 59 | AK7: 0.98 | AL7: 25 | AM7: 34 | AN7: 0.41 | AO7: 0 | AP7: 59 | AQ7: 0 | AS7: 181.8181818 | AT7: 0.04 | AU7: 60 | AV7: 14 | AW7: 7:30 | AY7: 1 | AZ7: 11:10 | BA7: 2.6 | BB7: Class III & II | BC7: Greater than half a mile | BD7: 36 | BE7: Crosswalks | BF7: 0 | BG7: 0 | BH7: 0 | BI7: 0 | BJ7: 2 | BK7: 3 | BL7: 0 | BM7: 0 | BN7: No | BP7: 586870.37 | BQ7: 1266515.8 | BR7: 175500 | BS7: 96850 | BT7: In partnership with SCAG, the Applicant will purchase ad space at ten bus shelters in our project area and run Go Human advertising for four weeks per year, for 3 years. This campaign is focused on respecting pedestrians and bikers on our roads. | BU7: The applicant will purchase one unlimited Metro pass per unit per month for thirty six months and distribute to every unit.
A8: 41119 | B8: Mountain View Village | C8: Housing Authority of the County of Kern | D8: County of Kern Public Works Department | G8: Kern Council of Governments (KCOG) | H8: 32 | I8: 14 | J8: 21 | K8: Lamont | L8: Kern | M8: RIPA | N8: Pass | O8: Yes | P8: 80 | Q8: 8226250 | R8: 6053997 | S8: 0 | T8: 2065688 | U8: 20000 | V8: 86565 | W8: Yes | X8: Yes | Y8: 6029006404 | Z8: Yes | AA8: 61-65% | AB8: Yes | AC8: Yes | AD8: Yes | AE8: No | AF8: 6907.79 | AG8: 6544 | AH8: 0.00079554 | AI8: 40 | AJ8: 40 | AK8: 1 | AL8: 9 | AM8: 31 | AN8: 0.44 | AO8: 0 | AP8: 0 | AQ8: 0 | AS8: 21.50537634 | AT8: 0.04 | AU8: 40 | AV8: 51 | AW8: 51:40 | AX8: 8 | AY8: 2 | AZ8: 21:40 | BA8: 21 | BB8: Class I & II | BC8: Greater than half a mile | BD8: 12 | BE8: Crosswalks | BF8: 0 | BG8: 0 | BH8: 0 | BI8: 0 | BJ8: 1 | BK8: 0 | BL8: 2 | BM8: 2 | BN8: Yes | BO8: Yes | BP8: 781392 | BQ8: 17600 | BR8: 0 | BS8: 20000 | BT8: Mountain View Village residents and other Lamont residents will receive bicycle education and safety services with the objective of increasing bicycle utilization and safety | BU8: Residents of Mountain View Village will receive subsidized transit passes for Kern Regional Transit. The subsidy is equal to 50% of the cost of the monthly pass and will be provided for at least three years | BV8: CalVans will provide 5 vans to be utilized by Mountain View Village residents to vanpool to employment centers and other key destinations. This program is expected to be ongoing with no anticipated end date. Riders pay an average of $2 per day with costs offset by SJAPCD voucher program, AHSC program funding the first three years, and then subsidized from a project capitalized services reserve for the remaining years (until year 30).
A9: 41203 | B9: Coliseum Area - International Boulevard TOD Partnership | C9: Resources for Community Development | D9: City of Oakland | E9: Alameda Contra Costa Transit District | G9: Metropolitan Transportation Commission (MTC) | H9: 18 | I9: 9 | J9: 13 | K9: Oakland | L9: Alameda | M9: TOD | N9: Pass | O9: Yes | P9: 93 | Q9: 14000000 | R9: 6000000 | S9: 330000 | T9: 6700106 | U9: 786000 | V9: 183894 | W9: Yes | X9: Yes | Y9: 6001408800 | Z9: Yes | AA9: 96-100% | AB9: Yes | AC9: Yes | AD9: Yes | AE9: Yes | AF9: 205467 | AG9: 44425 | AH9: 0.00317321 | AI9: 59 | AJ9: 58 | AK9: 0.98 | AL9: 15 | AM9: 43 | AN9: 0.42 | AO9: 0 | AP9: 15 | AQ9: 0 | AS9: 128.5020008 | AT9: 0.04 | AU9: 59 | AV9: 30 | AW9: 30:59 | AX9: 0 | AY9: 0 | AZ9: 72:59 | BA9: 0.53 | BB9: Class I | BC9: Greater than half a mile | BD9: 12 | BE9: Crosswalks | BF9: 0 | BG9: 0 | BH9: 0 | BI9: 0 | BJ9: 5 | BK9: 5 | BL9: 0 | BM9: 1 | BN9: Yes | BO9: Yes | BP9: 5032331 | BQ9: 300000 | BR9: 0 | BS9: 586000 | BT9: RCD is partnering with Bike East Bay to provide two bike education workshops per year for at least three years at Coliseum Place. Bike East Bay is a non-profit bicycle advocacy, education and community engagement organization with forty years’ experience campaigning and promoting bicycling. Thes workshops will teach Coliseum Place residents about the rules of the road, riding safely, how to equip their bike and avoid bike theft. | BU9: Each household at Coliseum Place will receive a free transit pass for 3 years.
A10: 41208 | B10: 1950 Mission Street | C10: BRIDGE Housing Corporation | D10: Mission Housing Development Corporation | E10: City and County of San Francisco | G10: Metropolitan Transportation Commission (MTC) | H10: 17 | I10: 11 | J10: 12 | K10: San Francisco | L10: San Francisco | M10: TOD | N10: Pass | O10: Yes | P10: 90 | Q10: 15000000.25 | R10: 10000000 | S10: 0 | T10: 3750000 | U10: 750000.2482 | V10: 500000 | W10: Yes | X10: No | Y10: 6075020100 | Z10: No | AA10: N/A | AB10: Yes | AC10: Yes | AD10: No | AE10: No | AF10: 177331.71 | AG10: 176752 | AH10: 0.01178346 | AI10: 157 | AJ10: 155 | AK10: 0.99 | AL10: 40 | AM10: 41 | AN10: 0.49 | AO10: 0 | AP10: 40 | AQ10: 0 | AR10: 10630 | AS10: 186.4608076 | AT10: 0.04 | AU10: 157 | AV10: 0 | AW10: 0:1 | AX10: 0 | AY10: 0 | AZ10: 138:157 | BA10: 2.6 | BB10: Class IV & II | BC10: Greater than half a mile | BD10: 80 | BE10: Crosswalks | BF10: 0 | BG10: 0 | BH10: 0 | BI10: 0 | BJ10: 0 | BK10: 0 | BL10: 0 | BM10: 0 | BN10: Yes | BO10: No | BP10: 3750000 | BQ10: 0 | BR10: 0 | BS10: 0 | BT10: For 25 years PODER has been organizing in Latino immigrant communities based in San Francisco’s Mission and Excelsior District. At 1950 Mission Street, PODER will provide bicycles available on short-term loan. | BU10: Monthly Muni transit passes (unlimited rides) will be provided to each unit. SFMTA provides discounted passes at a rate of $38 per monthly pass to non-profits if purchased in bulk (usually $75). BRIDGE Housing has provided transit passes to residents at its other projects in the past.
A11: 41248 | B11: Long Beach Active Streets and Las Ventanas TOD Apartments | C11: AMCAL Multi Housing | D11: City of Long Beach | G11: Southern California Association of Governments (SCAG) | H11: 70 | I11: 33 | J11: 47 | K11: Long Beach | L11: Los Angeles | M11: TOD | N11: Pass | O11: Yes | P11: 79 | Q11: 13975653 | R11: 9479266 | S11: 0 | T11: 3514862 | U11: 755777 | V11: 225748 | W11: Yes | X11: Yes | Y11: 6037575402 | Z11: Yes | AA11: 91-95% | AB11: Yes | AC11: Yes | AD11: Yes | AE11: No | AF11: 21876.51 | AG11: 21608 | AH11: 0.00154614 | AI11: 102 | AJ11: 101 | AK11: 0.99 | AL11: 36 | AM11: 14 | AN11: 0.46 | AO11: 0 | AP11: 50 | AQ11: 0 | AR11: 3938 | AS11: 104.4118269 | AT11: 0.04 | AU11: 101 | AV11: 77 | AW11: 77:102 | AX11: 3 | AY11: 5 | AZ11: 1:2 | BA11: 0.55 | BB11: Class II & III | BC11: Greater than half a mile | BO11: Yes | BP11: 2339817 | BQ11: 0 | BR11: 0 | BS11: 271984 | BT11: The local bicycle group Health Active Streets will expand its existing programming to provide an on-site "micro bicycle share" program at Las Ventanas, a workshop for bicycle repair, classes, and bicycle education materials and support. | BU11: Las Ventanas will be participating in LA Metro's Business Transit Access Pass (BTAP) program, which provides passes that will allow residents to ride everything that Metro owns and operates 24/7, including the Metro Blue Line, any Metro local bus, Metro Rapid bus, and Metro rail. Metro will sell the BTAP passes as a low cost group rate to the Las Ventanas owners, who will cover that cost in full for 28 years, thereby providing the passes to residents for $0 annually.
A12: 41250 | B12: Florence Neighborhood Mobility, TOD Affordable Housing, and Urban Greening | C12: AMCAL Multi-Housing Inc. | D12: County of Los Angeles | G12: Southern California Association of Governments (SCAG) | H12: 59 | I12: 33 | J12: 40 | K12: Los Angeles | L12: Los Angeles | M12: TOD | N12: Pass | O12: Yes | P12: 86 | Q12: 10798068 | R12: 7027908 | S12: 0 | T12: 3020230 | U12: 622435 | V12: 127495 | W12: Yes | X12: Yes | Y12: 6037535002 | Z12: Yes | AA12: 96-100% | AB12: Yes | AC12: Yes | AD12: Yes | AE12: No | AF12: 21827.54 | AG12: 21754 | AH12: 0.00201457 | AI12: 109 | AJ12: 108 | AK12: 0.99 | AL12: 54 | AM12: 0 | AN12: 0.45 | AO12: 0 | AP12: 54 | AQ12: 0 | AR12: 1950 | AS12: 117.3717648 | AT12: 0.04 | AU12: 109 | AV12: 65 | AW12: 65:109 | AX12: 0 | AY12: 3 | AZ12: 70:109 | BA12: 2.6 | BB12: Class III | BC12: Greater than half a mile | BD12: 83 | BE12: Crosswalks | BF12: 0 | BG12: 0 | BH12: 0 | BI12: 0 | BJ12: 14 | BK12: 0 | BL12: 0 | BM12: 0 | BP12: 2161995 | BQ12: 0 | BR12: 33000 | BS12: 411995 | BT12: Purchase ad space on one billboard in our project area and run Go Human advertising for four weeks over the 3 year period. We will also purchase 5,000 clicks of Facebook ads, with over 250,000 impressions. This campaign is focused on respecting pedestrians and bikers on our roads. | BU12: Florence Apartments will be participating in LA Metro's Business Transit Access Pass (BTAP) program, which provides unlimited Metro passes to residents at a discounted price. AMCAL will cover that cost in full so tenants will pay $0 annually.
A13: 41283 | B13: East Los Angeles Wellness Hub and Cavalry Walking Path | C13: Meta Housing Corporation | D13: County of Los Angeles | G13: Southern California Association of Governments (SCAG) | H13: 51 | I13: 24 | J13: 40 | K13: Los Angeles | L13: Los Angeles | M13: ICP | N13: Pass | O13: Yes | P13: 87 | Q13: 8722423.3 | R13: 5575000 | S13: 0 | T13: 2277271.3 | U13: 443798 | V13: 426354 | W13: Yes | X13: Yes | Y13: 6037531301 | Z13: Yes | AA13: 96-100% | AB13: Yes | AC13: Yes | AD13: Yes | AE13: No | AF13: 13801.37 | AG13: 13338 | AH13: 0.00164207 | AI13: 113 | AJ13: 111 | AK13: 0.98 | AL13: 76 | AM13: 22 | AN13: 0.37 | AO13: 0 | AP13: 76 | AQ13: 0 | AR13: 4572 | AS13: 54.27528641 | AT13: 0.09 | AU13: 113 | AV13: 124 | AW13: 124:113 | AY13: 1 | AZ13: 57:113 | BA13: 2.4 | BB13: Class III | BC13: Greater than half a mile | BD13: 30 | BE13: Crosswalks | BF13: 0 | BG13: 0 | BH13: 0 | BI13: 0 | BJ13: 8 | BK13: 0 | BL13: 0 | BM13: 0 | BP13: 1000029.3 | BQ13: 0 | BR13: 0 | BS13: 157300 | BT13: Go Human is a community outreach and advertising campaign launched by SCAG, which aims to reduce traffic collisions and encourage more people to walk and bike in Southern California. Go Human appears on bus tails, interior bus cards, bus shelters, billboards, social media, lawn signs and radio. | BU13: The applicant will purchase one unlimited Metro pass per unit per month for thirty six months and distribute to every unit. | BV13: Operation of Bike Share stations at Atlantic Park and the intersection of Whittier Blvd and Goodrich Blvd.
A14: 41257 | B14: Elden Elms | C14: West Hollywood Community Housing Corporation | D14: City of Los Angeles | G14: Southern California Association of Governments (SCAG) | H14: 53 | I14: 24 | J14: 34 | K14: Los Angeles | L14: Los Angeles | M14: ICP | N14: Pass | O14: Yes | P14: 75 | Q14: 16662640 | R14: 7894593 | S14: 4600000 | T14: 3028471 | U14: 772422 | V14: 367154 | W14: Yes | X14: Yes | Y14: 6037213402 | Z14: Yes | AA14: 76-80% | AB14: Yes | AC14: Yes | AD14: Yes | AE14: No | AF14: 10488.91 | AG14: 10459 | AH14: 0.00062767 | AI14: 93 | AJ14: 92 | AK14: 0.99 | AL14: 20 | AM14: 48 | AN14: 0.47 | AO14: 0 | AP14: 15 | AQ14: 0 | AR14: 0 | AS14: 110.203482 | AT14: 0.09 | AU14: 93 | AV14: 102 | AW14: 34:31 | AZ14: 1:1 | BA14: 0 | BC14: Greater than half a mile | BD14: 35 | BE14: Crosswalks | BF14: 0 | BG14: 0 | BH14: 0 | BI14: 0 | BJ14: 0 | BK14: 0 | BL14: 0 | BM14: 0 | BP14: 2595975 | BQ14: 0 | BR14: 360400 | BS14: 0 | BT14: In partnership with SCAG, the Applicant will purchase ad space one one billboard in the area run Go Human advertising for four weeks total over a 3 year period. We will also purchase 5,000 facebook "clicks" that will be viewed by roughly 250,000 users. This campaign is focused on respecting pedestrians and bikers on our roads. | BU14: Applicant will purchase one free unlimited Metro pass per unit per month for thirty six months.
A15: 41266 | B15: Meadow View Place | C15: Neighborhood Partners, LLC | G15: Sacramento Area Council of Governments (SACOG) | H15: 1 | I15: 1 | J15: 4 | K15: Truckee | L15: Placer | M15: RIPA | N15: Pass | O15: Yes | P15: 85 | Q15: 16255000 | R15: 7495413 | S15: 2785000 | T15: 4806000 | U15: 1075000 | V15: 93587 | W15: Yes | X15: No | Y15: 6061022011 | Z15: No | AA15: 1-5% | AB15: No | AC15: No | AD15: No | AE15: No | AF15: 9093.45 | AG15: 8771 | AH15: 0.00053962 | AI15: 56 | AJ15: 55 | AK15: 0.98 | AL15: 12 | AM15: 23 | AN15: 0.49 | AO15: 0 | AP15: 0 | AQ15: 0 | AS15: 17.44548287 | AT15: 0.04 | AU15: 56 | AV15: 84 | AW15: 3:2 | AX15: 0 | AY15: 2 | AZ15: 5:7 | BA15: 3.33 | BB15: Class I | BC15: Greater than half a mile | BD15: 1 | BE15: Crosswalks | BF15: 4 | BG15: 0 | BH15: 4 | BI15: 0 | BJ15: 1 | BK15: 0 | BL15: 10 | BM15: 2 | BN15: Yes | BO15: Yes | BP15: 751000 | BQ15: 3580000 | BR15: 0 | BS15: 950000 | BT15: A set of five bicycles will be located at the Meadow View Place Bus Stop, which is also a trailhead for the Martis Valley Bikeway. Zagster will provide the bikes to the Operator (Truckee Tahoe Airpor District) which will rent them to riders as a part of its existing program which has Zagster bikes in multiple locations in the Truckee area. Riders can rent a bike in one location and drop it off in another, including the first hour for free. | BU15: A 50% discount on one TART year-round (12 one-month passes) bus pass will be offered annually to each household residing in the Meadow View Place AHD, consistent with AHSC Guideline Section 106(a)(4). This will be offered for 30 years, with the first three years funded by AHSC.
A16: 41296 | B16: 3268 San Pablo | C16: Satellite Affordable Housing Associates | D16: City of Oakland | E16: Alameda Contra Costa Transit District | G16: Metropolitan Transportation Commission (MTC) | H16: 15 | I16: 9 | J16: 13 | K16: Oakland | L16: Alameda | M16: ICP | N16: Pass | O16: Yes | P16: 83 | Q16: 8917500 | R16: 5500000 | S16: 0 | T16: 2272200 | U16: 1000000 | V16: 145300 | W16: Yes | X16: Yes | Y16: 6001401400 | Z16: Yes | AA16: 86-90% | AB16: Yes | AC16: Yes | AD16: Yes | AE16: No | AF16: 29419.01 | AG16: 29385 | AH16: 0.00329526 | AI16: 51 | AJ16: 50 | AK16: 0.98 | AL16: 13 | AM16: 18 | AN16: 0.49 | AO16: 50 | AP16: 0 | AQ16: 0 | AR16: 0 | AS16: 196.1538462 | AT16: 0.04 | AU16: 50 | AV16: 13 | AW16: 13:51 | AZ16: 25:51 | BA16: 2.1 | BB16: Class II | BC16: Greater than half a mile | BD16: 0 | BF16: 1 | BG16: 0 | BH16: 1 | BI16: 0 | BJ16: 0 | BK16: 0 | BL16: 50 | BM16: 0 | BN16: Yes | BO16: Yes | BP16: 637000 | BQ16: 1342000 | BR16: 0 | BS16: 896000 | BT16: 50 AC Transit passes at no cost to AHD residents for the first 3 years of operation | BU16: 50 Ford GoBike Bike Share for All memberships at not cost to AHD residents for beyond the first 3 years of operation
A17: 41429 | B17: San Diego Downtown Mobility Plan and 14/Commercial Apartments | C17: SVDP Management Inc | G17: San Diego Association of Governments (SANDAG) | H17: 78 | I17: 39 | J17: 52 | K17: San Diego | L17: San Diego | M17: TOD | N17: Pass | O17: Yes | P17: 76 | Q17: 19999999.73 | R17: 16950000 | S17: 0 | T17: 2999999.73 | U17: 0 | V17: 50000 | W17: Yes | X17: Yes | Y17: 6073005100 | Z17: Yes | AA17: 96-100% | AB17: Yes | AC17: Yes | AD17: Yes | AE17: No | AF17: 40992.74 | AG17: 39799 | AH17: 0.00198994 | AI17: 407 | AJ17: 403 | AK17: 0.99 | AL17: 105 | AM17: 298 | AN17: 0.4 | AO17: 0 | AP17: 0 | AQ17: 0 | AS17: 720.2778906 | AT17: 0.04 | AU17: 407 | AV17: 110 | AW17: 10:37 | AZ17: 204:407 | BA17: 2 | BB17: Class IV | BC17: Greater than half a mile | BD17: 0 | BF17: 0 | BG17: 0 | BH17: 0 | BI17: 0 | BJ17: 0 | BK17: 0 | BL17: 0 | BM17: 0 | BP17: 2588582 | BQ17: 0 | BR17: 0 | BS17: 0 | BT17: Programs to engage residents and target groups such as young families and seniors around transportation safety in the neighborhood. Programs would focus on providing bicycle and pedestrian safety workshops to children and adults. | BU17: Programs to educate residents about how to use and access transit. Activities include a training session on local services and how to use them, and a field trip using transit including various stops to explore local businesses and entertainment venues around the neighborhood.
A18: 41552 | B18: Block 7 Net Zero Housing and Downtown Activation Project | C18: City of Redding | D18: K2 Land and Investment, LLC | E18: The McConnell Foundation | F18: Community Revitalization and Development Corporation | G18: Shasta County Regional Transportation Planning Agency (SCRTPA) | H18: 1 | I18: 1 | J18: 1 | K18: Redding | L18: Shasta | M18: ICP | N18: Pass | O18: Yes | P18: 88 | Q18: 19959536 | R18: 7508416 | S18: 3650000 | T18: 7291120 | U18: 1010000 | V18: 500000 | W18: Yes | X18: No | Y18: 6089010100 | Z18: No | AA18: 51-55% | AB18: Yes | AC18: Yes | AD18: No | AE18: Yes | AF18: 12289 | AG18: 10263 | AH18: 0.0005142 | AI18: 79 | AJ18: 59 | AK18: 0.75 | AL18: 16 | AM18: 8 | AN18: 0.5 | AO18: 0 | AP18: 0 | AQ18: 0 | AR18: 12525 | AS18: 104.913685 | AT18: 0.04 | AU18: 93 | AV18: 24 | AW18: 24:79 | AX18: 0 | AY18: 4 | AZ18: 40:79 | BA18: 2.98 | BB18: Class IV, II & III | BC18: Greater than half a mile | BD18: 6 | BE18: Crosswalks | BF18: 0 | BG18: 0 | BH18: 0 | BI18: 0 | BJ18: 1 | BK18: 4 | BM18: 1 | BN18: Yes | BO18: Yes | BP18: 3113500 | BQ18: 45000 | BR18: 0 | BS18: 1010000 | BT18: Expansion of pedestrian & bike safety, education & encouragement programs. Themed events, marketing campaigns to prepare & inspire people for bicycle commutes in their daily lives. Biking maps/seasonal guides/summer/family biking. Public outreach efforts. | BU18: Free ($48.25 value) unlimited monthly RABA passes for each of the 59 low-income units of the AHD for the full term of their lease/rental agreement up to 3 years. 34 add'l free passes to be distributed on a first-come, first-served basis to low-income residents/workers in the Project Area annually for up to three years. | BV18: Creation of BikeShare program to serve Project Area. Includes BikeShare membership voucher for housing residents (250 residents, 50% utilization) for 3 yr. duration. Includes BikeShare program operations & annual evaluation.
A19: 41571 | B19: Arrowhead Grove Phase II and III | C19: National Community Renaissance of California | G19: Southern California Association of Governments (SCAG) | H19: 40 | I19: 23 | J19: 31 | K19: San Bernardino | L19: San Bernardino | M19: ICP | N19: Pass | O19: Yes | P19: 82 | Q19: 20000000 | R19: 17422714 | S19: 1865264 | T19: 253300 | U19: 64402 | V19: 394320 | W19: Yes | X19: Yes | Y19: 6071006401 | Z19: Yes | AA19: 91-95% | AB19: Yes | AC19: Yes | AD19: Yes | AE19: No | AF19: 11989.57 | AG19: 14867 | AH19: 0.00074333 | AI19: 184 | AJ19: 147 | AK19: 0.8 | AL19: 38 | AM19: 38 | AN19: 0.5 | AO19: 0 | AP19: 0 | AQ19: 0 | AR19: 0 | AS19: 23.29113924 | AT19: 0.04 | AU19: 147 | AV19: 192 | AW19: 24:23 | AX19: 0 | AY19: 0 | AZ19: 1:1 | BA19: 4.1 | BB19: Class III & II | BC19: Greater than half a mile | BD19: 4 | BE19: Crosswalks | BF19: 0 | BG19: 0 | BH19: 0 | BI19: 0 | BJ19: 2 | BK19: 0 | BL19: 0 | BM19: 0 | BN19: No | BP19: 253300 | BQ19: 0 | BR19: 0 | BS19: 64402 | BT19: A Safe Routes to School (SRTS) program with “Education, Encouragement, Enforcement, and Evaluation activities” tailored to the E. Neal Roberts Elementary | BU19: National Community Renaissance will provide residents with free monthly transit passes for a total of 10 years.
A20: 41576 | B20: Willowbrook 2 | C20: LINC Housing Corporation | D20: County of Los Angeles | G20: Southern California Association of Governments (SCAG) | H20: 64 | I20: 35 | J20: 44 | K20: Los Angeles | L20: Los Angeles | M20: TOD | N20: Pass | O20: Yes | P20: 74 | Q20: 12531304 | R20: 5592418 | S20: 2938566 | T20: 3148200 | U20: 652120 | V20: 200000 | W20: Yes | X20: Yes | Y20: 6037540700 | Z20: Yes | AA20: 96-100% | AB20: Yes | AC20: Yes | AD20: Yes | AE20: Yes | AF20: 19441.8 | AG20: 17351 | AH20: 0.00138465 | AI20: 100 | AJ20: 99 | AK20: 0.99 | AL20: 50 | AM20: 0 | AN20: 0.45 | AO20: 0 | AP20: 50 | AQ20: 0 | AR20: 5270 | AS20: 76.37260667 | AT20: 0.04 | AU20: 99 | AV20: 63 | AW20: 63:100 | AX20: 0 | AY20: 0 | AZ20: 16:25 | BA20: 2.94 | BB20: Class III & II | BC20: Greater than half a mile | BD20: 84 | BE20: Crosswalks | BF20: 0 | BG20: 0 | BH20: 0 | BI20: 0 | BJ20: 16 | BK20: 12 | BL20: 0 | BM20: 0 | BN20: No | BO20: No | BP20: 2043800 | BQ20: 0 | BR20: 192500 | BS20: 319880 | BT20: Resident services at the AHD will include education on how to access public transit, rules of public transit, safe public transit and pedestrian/bicycle routes to key destinations, health and green living, and the dangers of environmental factors including notification of unhealthy air quality days. | BU20: Subsidized Transit Pass Program - LINC Housing Corporation
A21: 41653 | B21: Fancher Creek Senior Phase 1 | C21: Dominus Consortium, LLC | D21: CHAPA MGP LLC | G21: Fresno Council of Governments (FresnoCOG) | H21: 31 | I21: 8 | J21: 22 | K21: Fresno | L21: Fresno | M21: ICP | N21: Pass | O21: No | P21: 46 | Q21: 10291403 | R21: 8600000 | S21: 0 | T21: 1691403 | U21: 0 | V21: 0 | W21: Yes | X21: Yes | Y21: 6019001411 | Z21: Yes | AA21: 86-90% | AB21: Yes | AC21: No | AD21: No | AE21: No | AF21: 8037.95 | AG21: 2781.43 | AH21: 0.00027027 | AI21: 90 | AJ21: 89 | AK21: 0.99 | AL21: 19 | AM21: 49 | AN21: 0.46 | AO21: 89 | AP21: 0 | AQ21: 0 | AS21: 75 | AT21: 0.04 | AU21: 90 | AV21: 90 | AW21: 1:1 | AZ21: 0:1 | BA21: 0.7 | BB21: Class II | BC21: Greater than half a mile | BD21: 6 | BE21: Crosswalks | BF21: 0 | BG21: 0 | BH21: 0 | BI21: 0 | BJ21: 0 | BK21: 0 | BL21: 0 | BM21: 0 | BN21: Yes | BP21: 1179983 | BQ21: 370900 | BR21: 0 | BS21: 0
A22: 41662 | B22: Railyards Residential Sustainable Infrastructure Project | C22: Downtown Railyard Venture, LLC | G22: Sacramento Area Council of Governments (SACOG) | H22: 7 | I22: 6 | J22: 6 | K22: Sacramento | L22: Sacramento | M22: ICP | N22: Pass | O22: No | P22: 71 | Q22: 14081387 | R22: 0 | S22: 0 | T22: 11225401 | U22: 2657194 | V22: 198792 | W22: No | X22: Yes | Y22: 6067005301 | Z22: Yes | AA22: 96-100% | AB22: Yes | AC22: Yes | AD22: Yes | AE22: No | AF22: 33457.5 | AG22: 11224 | AH22: 0.00079709 | AI22: 0 | AJ22: 0 | AK22: 0 | AL22: 0 | AM22: 0 | AN22: 0 | AO22: 0 | AP22: 0 | AQ22: 0 | AS22: 0 | AT22: 0.04 | AW22: 0:0 | AZ22: 0:0 | BA22: 3 | BB22: Class II, IV & I | BC22: Greater than half a mile | BD22: 7 | BE22: Crosswalks | BF22: 0 | BG22: 0 | BH22: 0 | BI22: 0 | BJ22: 2 | BK22: 2 | BL22: 0 | BM22: 2 | BN22: Yes | BO22: Yes | BP22: 5670542 | BQ22: 187876 | BR22: 0 | BS22: 1487026 | BT22: A 10% transit pass discount will be given to all market rate tenants of the residential project located at Lots 48a/b. A 50% transit pass discount will be given to all affordable rate tenants of the residential project. This program will be instated for 6 years. Funding is being requested for grant term (3 years).
A23: 41706 | B23: Belmont Street Apartments | C23: Caddis Properties, LLC | D23: CHAPA MGP, LLC | H23: 32 | I23: 14 | J23: 21 | K23: Delano | L23: Kern | M23: ICP | N23: Pass | O23: No | P23: 40.5 | Q23: 11014600 | R23: 9200000 | S23: 0 | T23: 1814600 | U23: 0 | V23: 0 | W23: Yes | X23: Yes | Y23: 6029004800 | Z23: Yes | AA23: 96-100% | AB23: Yes | AC23: Yes | AD23: Yes | AE23: Yes | AF23: 2653.9 | AG23: 1943 | AH23: 0.0001764 | AI23: 80 | AJ23: 79 | AK23: 0.99 | AL23: 17 | AM23: 42 | AN23: 0.47 | AO23: 0 | AP23: 0 | AQ23: 0 | AS23: 20.44650453 | AT23: 0.04 | AU23: 80 | AV23: 147 | AW23: 147:80 | AZ23: 1:2 | BA23: 0 | BC23: Greater than half a mile | BD23: 0 | BF23: 0 | BG23: 0 | BH23: 0 | BI23: 0 | BJ23: 0 | BK23: 0 | BL23: 0 | BM23: 0 | BN23: Yes | BP23: 1381600 | BQ23: 152000 | BR23: 0 | BS23: 0
A24: 41215 | B24: Grand View Village Connectivity Project | C24: VCOR L.P. | G24: San Joaquin Council of Governments (SJCOG) | H24: 13 | I24: 5 | J24: 9 | K24: Stockton | L24: San Joaquin | M24: ICP | N24: Pass | O24: No | P24: 70 | Q24: 11082558.25 | R24: 8931774 | S24: 495880 | T24: 909990.4 | U24: 594189.85 | V24: 150724 | W24: Yes | X24: Yes | Y24: 6077000100 | Z24: Yes | AA24: 51-55% | AB24: Yes | AC24: Yes | AD24: Yes | AE24: Yes | AF24: 6479.9 | AG24: 6573 | AH24: 0.00059306 | AI24: 63 | AJ24: 62 | AK24: 0.98 | AL24: 13 | AM24: 24 | AN24: 0.5 | AO24: 0 | AP24: 0 | AQ24: 0 | AR24: 11150 | AS24: 81.29032258 | AT24: 0.04 | AU24: 63 | AV24: 65 | AW24: 65:63 | AX24: 0 | AY24: 4 | AZ24: 32:63 | BA24: 2.11 | BB24: Class II & III | BC24: Greater than half a mile | BD24: 5 | BE24: Crosswalks | BF24: 0 | BG24: 0 | BH24: 0 | BI24: 0 | BJ24: 3 | BK24: 0 | BL24: 0 | BM24: 0 | BN24: No | BO24: No | BP24: 574670 | BQ24: 84000 | BR24: 39180 | BS24: 170000 | BT24: VCOR will implement, in conjunction with SJCOG, the marketing and outreach of the DIBS transit education program through various channels, over the three (3) year program period, for residents and surrounding community. VCOR will retain Sass! Public Relations for assistance.
A25: 41219 | B25: Mutual Housing 5th Street ICP | C25: Mutual Housing California | G25: Sacramento Area Council of Governments (SACOG) | H25: 4 | I25: 3 | J25: 3 | K25: Davis | L25: Yolo | M25: ICP | N25: Pass | O25: No | P25: 67 | Q25: 5539483 | R25: 4965583 | S25: 0 | T25: 558900 | U25: 0 | V25: 15000 | W25: Yes | X25: No | Y25: 6113010608 | Z25: No | AA25: 51-55% | AB25: Yes | AC25: Yes | AD25: No | AE25: No | AF25: 3046.9 | AG25: 2818 | AH25: 0.00050871 | AI25: 38 | AJ25: 37 | AK25: 0.97 | AL25: 8 | AM25: 11 | AN25: 0.5 | AO25: 0 | AP25: 0 | AQ25: 0 | AR25: 0 | AS25: 36.78606002 | AT25: 0.04 | AU25: 37 | AV25: 43 | AW25: 43:38 | AX25: 0 | AY25: 3 | AZ25: 71:38 | BA25: 0.92 | BB25: Class IV & I | BC25: More than an entire block (all 4 sides) but less than half a mile | BP25: 481700 | BQ25: 32600 | BR25: 0 | BS25: 0 | BT25: Mutual Housing & Bike Davis will partner to encourage AHD & neighboring residents to bike. Will include bike-sharing program for AHD residents & outreach and educational workshops for all residents on safe bike riding skills, rules of the road, route planning, maintenance, & theft prevention.
A26: 41249 | B26: 5th Street Complete Streets with Tiny Tim Apartments | C26: Community Development Partners | G26: Southern California Association of Governments (SCAG) | H26: 69 | I26: 34 | J26: 46 | K26: Santa Ana | L26: Orange | M26: ICP | N26: Pass | O26: No | P26: 73 | Q26: 5907430 | R26: 4000000 | S26: 0 | T26: 1464243 | U26: 285915 | V26: 157272 | W26: Yes | X26: Yes | Y26: 6059075201 | Z26: Yes | AA26: 76-80% | AB26: Yes | AC26: Yes | AD26: Yes | AE26: No | AF26: 4780.45 | AG26: 4706 | AH26: 0.0007966 | AI26: 51 | AJ26: 50 | AK26: 0.98 | AL26: 15 | AM26: 5 | AN26: 0.5 | AO26: 0 | AP26: 0 | AQ26: 0 | AS26: 55.74995163 | AT26: 0.04 | AU26: 51 | AV26: 94 | AW26: 94:51 | AX26: 0 | AY26: 6 | AZ26: 32:51 | BA26: 1 | BB26: Class IV | BC26: Greater than half a mile | BD26: 2 | BE26: Crosswalks | BF26: 0 | BG26: 0 | BH26: 0 | BI26: 0 | BJ26: 9 | BK26: 0 | BL26: 0 | BM26: 4 | BO26: No | BP26: 1142240 | BQ26: 0 | BR26: 0 | BS26: 285915 | BT26: Go Human is a community outreach and advertising campaign launched by SCAG, which aims to reduce traffic collisions and encourage more people to walk and bike in Southern California. In partnership with SCAG, Zocalo at Tiny Tim will purchase ad space and run Go Human advertising for four weeks per year, for 3 years. This campaign is focused on respecting pedestrians and bikers on our roads. | BU26: Purchase of Transit Passes from OCTA: One free unlimited monthly pass per unit per month for three years.
A27: 41251 | B27: Jordan Downs Area G | C27: BRIDGE Housing Corporation | G27: Southern California Association of Governments (SCAG) | H27: 64 | I27: 35 | J27: 44 | K27: Los Angeles | L27: Los Angeles | M27: ICP | N27: Pass | O27: No | P27: 66 | Q27: 20000000 | R27: 17800000 | S27: 0 | T27: 1921622 | U27: 0 | V27: 278378 | W27: Yes | X27: Yes | Y27: 6037242100 | Z27: Yes | AA27: 96-100% | AB27: Yes | AC27: Yes | AD27: Yes | AE27: No | AF27: 14708.17 | AG27: 14708 | AH27: 0.00073541 | AI27: 134 | AJ27: 118 | AK27: 0.88 | AL27: 33 | AM27: 55 | AN27: 0.43 | AO27: 0 | AP27: 0 | AQ27: 0 | AS27: 39.41176471 | AT27: 0.04 | AU27: 134 | AV27: 127 | AW27: 127:134 | AX27: 0 | AY27: 0 | AZ27: 1:2 | BA27: 0 | BC27: More than an entire block (all 4 sides) but less than half a mile | BD27: 0 | BF27: 0 | BG27: 0 | BH27: 0 | BI27: 0 | BJ27: 0 | BK27: 0 | BL27: 0 | BM27: 0 | BP27: 1025186 | BQ27: 0 | BR27: 0 | BS27: 0 | BT27: In partnership with SCAG, MDC Jordan Downs will purchase ad space at 1 billboard in our project area and 1 Facebook campaign to run Go Human advertising for four weeks across three years. This campaign is focused on respecting pedestrians and bikers on our roads. | BU27: Applicant will provide one unlimited monthly Metro pass per unit per month for 36 months. Applicant will provide the passes at a 51% discount, for $49 per month.
A28: 41252 | B28: Coachella Transit Hub, Bike Network, and Net Zero Affordable Housing | C28: Chelsea Investment Corporation | D28: City of Coachella | G28: Southern California Association of Governments (SCAG) | H28: 56 | I28: 28 | J28: 36 | K28: Coachella | L28: Riverside | M28: ICP | N28: Pass | O28: No | P28: 64 | Q28: 13632294 | R28: 10700000 | S28: 0 | T28: 2901000 | U28: 0 | V28: 31294 | W28: Yes | X28: Yes | Y28: 6065045707 | Z28: Yes | AA28: 76-80% | AB28: Yes | AC28: Yes | AD28: Yes | AE28: No | AF28: 4955 | AG28: 3570 | AH28: 0.00026186 | AI28: 127 | AJ28: 126 | AK28: 0.99 | AL28: 31 | AM28: 38 | AN28: 0.5 | AO28: 0 | AP28: 0 | AQ28: 0 | AS28: 52.9167679 | AT28: 0.04 | AU28: 127 | AV28: 173 | AW28: 173:127 | AX28: 0 | AY28: 0 | AZ28: 64:127 | BA28: 3.98 | BB28: Class II | BC28: Greater than half a mile | BD28: 0 | BF28: 0 | BG28: 0 | BH28: 0 | BI28: 0 | BJ28: 0 | BK28: 0 | BL28: 0 | BM28: 0 | BP28: 592000 | BQ28: 627000 | BR28: 0 | BS28: 0 | BT28: In partnership with SCAG, the Applicant will purchase ad space at ten bus shelters in our project area and run Go Human advertising for four weeks per year, for 3 years. This campaign is focused on respecting pedestrians and bikers on our roads.
A29: 41253 | B29: Brawley Rural Bike Network with Net Zero Affordable Housing | C29: Brawley Adams I CIC LP | G29: Southern California Association of Governments (SCAG) | H29: 56 | I29: 40 | J29: 51 | K29: Brawley | L29: Imperial | M29: RIPA | N29: Pass | O29: No | P29: 54.5 | Q29: 7500000 | R29: 6220000 | S29: 0 | T29: 1250000 | U29: 0 | V29: 30000 | W29: Yes | X29: Yes | Y29: 6025010400 | Z29: Yes | AA29: 86-90% | AB29: Yes | AC29: Yes | AD29: Yes | AE29: Yes | AF29: 962.4 | AG29: 906 | AH29: 0.00012082 | AI29: 72 | AJ29: 71 | AK29: 0.99 | AL29: 18 | AM29: 18 | AN29: 0.5 | AO29: 0 | AP29: 0 | AQ29: 0 | AS29: 17.94616152 | AT29: 0.04 | AU29: 72 | AV29: 137 | AW29: 137:72 | AX29: 0 | AZ29: 1:2 | BA29: 0.94 | BB29: Class II | BC29: Greater than half a mile | BD29: 1 | BE29: Crosswalks | BF29: 0 | BG29: 0 | BH29: 0 | BI29: 0 | BJ29: 0 | BK29: 0 | BL29: 0 | BM29: 0 | BP29: 971207 | BQ29: 0 | BR29: 0 | BS29: 0 | BT29: In partnership with SCAG, the Applicant will purchase ad space at four billboards while also purchasing 15,000 facebook "clicks" and two radio spots. This campaign is focused on respecting pedestrians and bikers on our roads.
A30: 41254 | B30: The Depot at Hyde Park | C30: Depot at Hyde Park Partners, LP | D30: City of Los Angeles | G30: Southern California Association of Governments (SCAG) | H30: 62 | I30: 30 | J30: 37 | K30: Los Angeles | L30: Los Angeles | M30: ICP | N30: Pass | O30: No | P30: 71 | Q30: 3834648.95 | R30: 1849000 | S30: 0 | T30: 1495292.15 | U30: 303202.8 | V30: 187154 | W30: Yes | X30: Yes | Y30: 6037234902 | Z30: Yes | AA30: 81-85% | AB30: Yes | AC30: Yes | AD30: Yes | AE30: No | AF30: 5056.76 | AG30: 5000 | AH30: 0.00130383 | AI30: 43 | AJ30: 42 | AK30: 0.98 | AL30: 19 | AM30: 8 | AN30: 0.44 | AO30: 0 | AP30: 25 | AQ30: 0 | AR30: 1200 | AS30: 87.49439462 | AT30: 0.04 | AU30: 43 | AV30: 25 | AW30: 25:43 | AZ30: 52:43 | BA30: 2.27 | BB30: Class III | BC30: Greater than half a mile | BD30: 42 | BE30: Crosswalks | BF30: 0 | BG30: 0 | BH30: 0 | BI30: 0 | BJ30: 1 | BK30: 2 | BL30: 0 | BM30: 0 | BP30: 419928.95 | BQ30: 600483.12 | BR30: 51000 | BS30: 49400 | BT30: In partnership with SCAG, the Applicant will purchase ad space one one billboard in the area run Go Human advertising for four weeks total over a 3 year period. We will also purchase 5,000 facebook "clicks" that will be viewed by roughly 250,000 users. This campaign is focused on respecting pedestrians and bikers on our roads. | BU30: Applicant will purchase one unlimited free monthly full fare Metro pass per unit per month for 36 months.
A31: 41255 | B31: Twin Rivers Apartments and 16th Street Streetscape | C31: McCormack Baron Salazar | D31: Sacramento Housing and Redevelopment Agency | E31: City of Sacramento | G31: Sacramento Area Council of Governments (SACOG) | H31: 7 | I31: 6 | J31: 6 | K31: Sacramento | L31: Sacramento | M31: ICP | N31: Pass | O31: No | P31: 70 | Q31: 17994860 | R31: 11693718 | S31: 3054282 | T31: 3000000 | U31: 0 | V31: 246860 | W31: Yes | X31: Yes | Y31: 6067005301 | Z31: Yes | AA31: 96-100% | AB31: Yes | AC31: Yes | AD31: Yes | AE31: No | AF31: 8144.59 | AG31: 7965 | AH31: 0.0004426 | AI31: 107 | AJ31: 79 | AK31: 0.74 | AL31: 42 | AM31: 0 | AN31: 0.44 | AO31: 0 | AP31: 0 | AQ31: 0 | AS31: 36.39455782 | AT31: 0.04 | AU31: 107 | AV31: 72 | AW31: 72:107 | AY31: 2 | AZ31: 1:1 | BA31: 0.6 | BB31: Class III | BC31: Greater than half a mile | BD31: 4 | BE31: Crosswalks | BF31: 0 | BG31: 0 | BH31: 0 | BI31: 0 | BJ31: 0 | BK31: 0 | BL31: 0 | BM31: 0 | BP31: 2030000 | BQ31: 0 | BR31: 0 | BS31: 0 | BT31: Vision Zero outreach - develop a traffic safety campaign based on the Vision Zero resolution passed by the City Council in 20171 | BU31: Applicant will provide one unlimited RT transit pass per unit at a 51% discount for thirty six months.
A32: 41256 | B32: Richmond Wellness Trail and Hacienda TOD Adaptive Reuse Apartments | C32: Mercy Housing California | D32: City of Richmond | E32: Community Housing Development Corporation of North Richmond | G32: Metropolitan Transportation Commission (MTC) | H32: 15 | I32: 9 | J32: 11 | K32: Richmond | L32: Contra Costa | M32: TOD | N32: Pass | O32: No | P32: 60 | Q32: 20000000 | R32: 15672900 | S32: 0 | T32: 3000000 | U32: 1000000 | V32: 327100 | W32: Yes | X32: Yes | Y32: 6013376000 | Z32: Yes | AA32: 86-90% | AB32: Yes | AC32: Yes | AD32: Yes | AE32: No | AF32: 12616.82 | AG32: 10924 | AH32: 0.00054621 | AI32: 150 | AJ32: 148 | AK32: 0.99 | AL32: 31 | AM32: 117 | AN32: 0.46 | AO32: 0 | AP32: 0 | AQ32: 0 | AS32: 50.33557047 | AT32: 0.04 | AU32: 150 | AV32: 80 | AW32: 8:15 | AZ32: 1:2 | BA32: 2.17 | BB32: Class III & IV | BC32: Greater than half a mile | BD32: 4 | BE32: Crosswalks | BF32: 0 | BG32: 0 | BH32: 0 | BI32: 0 | BJ32: 0 | BK32: 0 | BL32: 0 | BM32: 0 | BP32: 1532000 | BQ32: 0 | BR32: 435000 | BS32: 0 | BT32: Bike East Bay promotes healthy, sustainable communities by making bicycling safe, fun and accessible throughout Contra Costa and Alameda Counties. As a non-profit 501(c)3 founded in 1972, Bike East Bay provides classes, events, and grassroots organizing via their advocacy, education, and community engagement programs. | BU32: Mercy Housing California will purchase unlimited AC transit passes monthly for each unit, for 3 years. Passes include local service, Transbay service, and Transbay EasyPass.
A33: 41229 | B33: La Veranda | C33: Abode Communities | D33: Department of Housing and Community Investment | G33: Southern California Association of Governments (SCAG) | H33: 53 | I33: 24 | J33: 34 | K33: Los Angeles | L33: Los Angeles | M33: TOD | N33: Pass | O33: No | P33: 62.5 | Q33: 19995629 | R33: 9614868 | S33: 3800000 | T33: 5621303 | U33: 459458 | V33: 500000 | W33: Yes | X33: Yes | Y33: 6037204200 | Z33: Yes | AA33: 91-95% | AB33: Yes | AC33: Yes | AD33: Yes | AE33: No | AF33: 10354.28 | AG33: 10419 | AH33: 0.00052108 | AI33: 77 | AJ33: 76 | AK33: 0.99 | AL33: 16 | AM33: 60 | AN33: 0.43 | AO33: 0 | AP33: 0 | AQ33: 0 | AR33: 8000 | AS33: 39.41849806 | AT33: 0.04 | AU33: 77 | AV33: 56 | AW33: 8:11 | AY33: 3 | AZ33: 93:77 | BA33: 5.68 | BB33: Class III & II | BC33: Greater than half a mile | BD33: 51 | BE33: Crosswalks | BF33: 0 | BG33: 0 | BH33: 0 | BI33: 0 | BJ33: 0 | BK33: 0 | BL33: 0 | BM33: 0 | BP33: 3930456 | BQ33: 0 | BR33: 150000 | BS33: 0 | BT33: Operational costs for first two years of expansion of existing Metro Bike Share program to Boyle Heights with four new stations. | BU33: This program will consist of two components. The first is a community asset map and the second is bike share awareness and bike/pedestrian safety courses
A34: 41280 | B34: El Nuevo Amanecer | C34: East LA Community Corporation | D34: County of Los Angeles | G34: Southern California Association of Governments (SCAG) | H34: 51 | I34: 24 | J34: 40 | K34: Los Angeles | L34: Los Angeles | M34: TOD | N34: Pass | O34: No | P34: 72 | Q34: 8114757 | R34: 4410956 | S34: 437716 | T34: 2141285 | U34: 624800 | V34: 500000 | W34: Yes | X34: Yes | Y34: 6037531101 | Z34: Yes | AA34: 91-95% | AB34: Yes | AC34: Yes | AD34: Yes | AE34: No | AF34: 9002.66 | AG34: 9200 | AH34: 0.00113379 | AI34: 61 | AJ34: 59 | AK34: 0.97 | AL34: 31 | AM34: 28 | AN34: 0.39 | AO34: 0 | AP34: 31 | AQ34: 31 | AR34: 7109 | AS34: 76.25 | AT34: 0.04 | AU34: 59 | AV34: 83 | AW34: 83:61 | AX34: 0 | AY34: 5 | AZ34: 62:61 | BA34: 2.46 | BB34: Class III | BC34: Greater than half a mile | BD34: 59 | BE34: Crosswalks | BF34: 0 | BG34: 0 | BH34: 0 | BI34: 0 | BJ34: 9 | BK34: 9 | BL34: 0 | BM34: 3 | BO34: Yes | BP34: 1708153 | BQ34: 0 | BR34: 74500 | BS34: 316700 | BT34: ELACC will purchase discounted (by 50%) monthly Metro Transit Passes for all 59 deed restricted units of the AHD for a total of 3 years | BU34: Two years of operations and maintenance (programming) of two bike share stations at the East Los Angeles Civic Center and Atlantic Boulevard Gold Line Stations | BV34: The Active East LA Center, located in a ground floor community serving commercial space in the AHD, will increase mobility options to support car-free/car-lite living in the project area by supporting forms of healthy, active transportation and the use of public transportation. The Active East LA Center will provide bicycle education, maintenance, repair and will provide apprenticeship opportunities for local residents to develop workforce skills in bicycle repair and maintenance.
A35: 41281 | B35: Adams Terrace | C35: Abode Communities | D35: City of Los Angeles | G35: Southern California Association of Governments (SCAG) | H35: 54 | I35: 30 | J35: 47 | K35: Los Angeles | L35: Los Angeles | M35: ICP | N35: Pass | O35: No | P35: 60 | Q35: 10236697.78 | R35: 6700000 | S35: 0 | T35: 2647298.38 | U35: 547445.4 | V35: 341954 | W35: Yes | X35: Yes | Y35: 6037218702 | Z35: Yes | AA35: 86-90% | AB35: Yes | AC35: Yes | AD35: Yes | AE35: No | AF35: 3396.69 | AG35: 3397 | AH35: 0.00033181 | AI35: 86 | AJ35: 84 | AK35: 0.98 | AL35: 43 | AM35: 41 | AN35: 0.4 | AO35: 84 | AP35: 43 | AQ35: 0 | AS35: 102.995711 | AT35: 0.04 | AU35: 86 | AV35: 51 | AW35: 51:86 | AX35: 0 | AY35: 0 | AZ35: 95:86 | BA35: 1.96 | BB35: Class III | BC35: More than an entire block (all 4 sides) but less than half a mile | BD35: 41 | BE35: Crosswalks | BF35: 0 | BG35: 0 | BH35: 0 | BI35: 0 | BJ35: 4 | BK35: 3 | BL35: 0 | BM35: 0 | BP35: 349931.1 | BQ35: 1400092.4 | BR35: 71300 | BS35: 187850 | BT35: In partnership with SCAG, the Applicant will purchase ad space one one billboard in the area run Go Human advertising for four weeks total over a 3 year period. We will also purchase 5,000 facebook "clicks" that will be viewed by roughly 250,000 users. This campaign is focused on respecting pedestrians and bikers on our roads. | BU35: Transit Passes for Residents - one unlimited free monthly Metro pass per unit per month for 36 months
A36: 41318 | B36: Portola Gateway Apartments | C36: Pacific West Communities, Inc. | D36: City of Portola | G36: Non-MPO area | H36: 1 | I36: 1 | J36: 1 | K36: Portola | L36: Plumas | M36: RIPA | N36: Pass | O36: No | P36: 53 | Q36: 12371583 | R36: 9204283 | S36: 1982200 | T36: 1012300 | U36: 0 | V36: 172800 | W36: Yes | X36: No | Y36: 6063000300 | Z36: No | AA36: 81-85% | AB36: No | AC36: No | AD36: No | AE36: No | AF36: 2671.82 | AG36: 2661 | AH36: 0.00021512 | AI36: 72 | AJ36: 71 | AK36: 0.99 | AL36: 15 | AM36: 26 | AN36: 0.5 | AO36: 0 | AP36: 0 | AQ36: 0 | AR36: 0 | AS36: 27.69230769 | AT36: 0.04 | AU36: 40 | AV36: 119 | AW36: 119:72 | AX36: 0 | AY36: 0 | AZ36: 1:2 | BA36: 2.5 | BB36: Class II | BC36: Greater than half a mile | BD36: 2 | BE36: Crosswalks | BF36: 0 | BG36: 0 | BH36: 0 | BI36: 0 | BJ36: 0 | BK36: 0 | BL36: 0 | BM36: 0 | BN36: Yes | BP36: 1012300 | BQ36: 0 | BR36: 0 | BS36: 0 | BT36: Program funds will be used to pre-pay 40 local bus passes per unit per month for a 5 year period. Bus passes will be sent in bulk on a monthly basis by the Operator at no additional cost to Housing Project tenants through the on-site property manager.
A37: 41330 | B37: Hollywood Neighborhood Enhanced Network and Anita May Rosenstein Campus | C37: Thomas Safran & Associates | D37: City of Los Angeles | G37: Southern California Association of Governments (SCAG) | H37: 50 | I37: 26 | J37: 28 | K37: Los Angeles | L37: Los Angeles | M37: ICP | N37: Pass | O37: No | P37: 72 | Q37: 6672271.75 | R37: 4500000 | S37: 0 | T37: 1672433.75 | U37: 395484 | V37: 104354 | W37: Yes | X37: Yes | Y37: 6037191901 | Z37: Yes | AA37: 81-85% | AB37: Yes | AC37: Yes | AD37: Yes | AE37: No | AF37: 4039.11 | AG37: 4029 | AH37: 0.00060377 | AI37: 98 | AJ37: 97 | AK37: 0.99 | AL37: 27 | AM37: 15 | AN37: 0.49 | AO37: 97 | AP37: 0 | AQ37: 0 | AS37: 205.6696859 | AT37: 0.04 | AU37: 98 | AV37: 51 | AW37: 51:98 | AZ37: 54:49 | BA37: 3.46 | BB37: Class III & II | BC37: Greater than half a mile | BD37: 48 | BE37: Crosswalks | BF37: 0 | BG37: 0 | BH37: 0 | BI37: 0 | BJ37: 0 | BK37: 0 | BL37: 0 | BM37: 0 | BP37: 731606.07 | BQ37: 396965.76 | BR37: 0 | BS37: 240000 | BT37: In partnership with SCAG, the Applicant will purchase ad space on 3 billboards in our project area and run Go Human advertising for four weeks per year, for 3 years. This campaign is focused on respecting pedestrians and bikers on our roads. | BU37: Applicant will distribute one free monthly unlimited transit pass per unit for 36 months.
A38: 41394 | B38: Blackstone & Simpson | C38: Housing Authority of the City of Fresno, California | D38: Silvercrest, Inc | G38: Fresno Council of Governments (FresnoCOG) | H38: 31 | I38: 8 | J38: 16 | K38: Fresno | L38: Fresno | M38: ICP | N38: Pass | O38: No | P38: 75 | Q38: 13677064 | R38: 7061076 | S38: 2200000 | T38: 3560988 | U38: 705000 | V38: 150000 | W38: Yes | X38: Yes | Y38: 6019003500 | Z38: Yes | AA38: 86-90% | AB38: Yes | AC38: Yes | AD38: Yes | AE38: No | AF38: 5370.61 | AG38: 5607.25 | AH38: 0.00041025 | AI38: 45 | AJ38: 44 | AK38: 0.98 | AL38: 26 | AM38: 0 | AN38: 0.42 | AO38: 0 | AP38: 0 | AQ38: 0 | AR38: 7263 | AS38: 57.76030739 | AT38: 0.04 | AU38: 44 | AV38: 36 | AW38: 4:5 | AX38: 0 | AZ38: 23:45 | BA38: 2 | BB38: Class I | BC38: Greater than half a mile | BD38: 35 | BE38: Crosswalks | BF38: 0 | BG38: 0 | BH38: 0 | BI38: 0 | BJ38: 18 | BK38: 0 | BL38: 0 | BM38: 0 | BO38: No | BP38: 3160988 | BQ38: 0 | BR38: 0 | BS38: 640000 | BT38: Program designed to increase the use of the new BRT bus service through future rider outreach and the provision of transit passes within the target area
A39: 41401 | B39: Watts Bike Improvements and Jordan Downs Phase S2 TOD | C39: Michaels Development Company I, LP | D39: Housing Authority of the City of Los Angeles | G39: not reported | H39: 44 | I39: 35 | J39: 64 | K39: Los Angeles | L39: Los Angeles | M39: TOD | N39: Withdrawn | O39: No | P39: 0 | Q39: 17750000 | R39: 13250000 | S39: 0 | T39: 4450000 | U39: 0 | V39: 50000 | W39: Yes | X39: Yes | Y39: 6037242100 | Z39: Yes | AA39: 96-100% | AB39: Yes | AC39: Yes | AD39: Yes | AE39: No | AF39: 8621.79 | AI39: 81 | AJ39: 80 | AK39: 0.99 | AL39: 14 | AM39: 66 | AN39: 0.45 | AO39: 0 | AP39: 0 | AQ39: 0 | AS39: 42.63157895 | AT39: 0.04 | AU39: 81 | AV39: 65 | AW39: 65:81 | AZ39: 1:1 | BA39: 0.64 | BB39: Class II | BC39: none | BD39: 18 | BE39: Crosswalks | BF39: 0 | BG39: 0 | BH39: 0 | BI39: 0 | BJ39: 0 | BK39: 0 | BL39: 0 | BM39: 0 | BP39: 2440246 | BQ39: 0 | BR39: 0 | BS39: 0 | BT39: In partnership with SCAG, The Michaels Organization will purchase ad space on one billboard in our project area and run Go Human advertising for four weeks over the 3 year period. We will also purchase 5,000 clicks of Facebook ads, with over 1,400,000 impressions. This campaign is focused on respecting pedestrians and bikers on our roads. | BU39: In partnership with the East Side Riders Bike Club (ESR), the program will expand ESR's B.E.A.S.T. bicycle training classes to the Jordan Downs and north east Watts community.
A40: 41402 | B40: Wilmington Active Streets and Jordan Downs Phase S3 | C40: Michaels Development Company I, LP | D40: Housing Authority of the City of Los Angeles | G40: not reported | H40: 44 | I40: 35 | J40: 64 | K40: Los Angeles | L40: Los Angeles | M40: ICP | N40: Pass | O40: No | P40: 66 | Q40: 17700000 | R40: 15000000 | S40: 0 | T40: 2675000 | U40: 0 | V40: 25000 | W40: Yes | X40: Yes | Y40: 6037242100 | Z40: Yes | AA40: 96-100% | AB40: Yes | AC40: Yes | AD40: Yes | AE40: No | AF40: 10346.16 | AG40: 10176 | AH40: 0.0005749 | AI40: 92 | AJ40: 91 | AK40: 0.99 | AL40: 19 | AM40: 72 | AN40: 0.43 | AO40: 0 | AP40: 0 | AQ40: 0 | AS40: 81.4159292 | AT40: 0.04 | AU40: 91 | AV40: 69 | AW40: 3:4 | AZ40: 1:1 | BA40: 0.57 | BB40: Class III | BC40: Greater than half a mile | BD40: 16 | BE40: Crosswalks | BF40: 0 | BG40: 0 | BH40: 0 | BI40: 0 | BJ40: 0 | BK40: 0 | BL40: 0 | BM40: 0 | BP40: 1729000 | BQ40: 0 | BR40: 0 | BS40: 0 | BT40: ESR is an all-volunteer, grassroots bicycle club founded in 2008. ESR strives to prevent youth from joining gangs and/or taking drugs,and engages youth to enrich the community through recreational activities, focusing on bicycle riding. Bicycle Education And Education Training (B.E.A.S.T) Classes cover learning about bicycle components and the tools needed to fix a bike as well as what is needed when out on a bike ride to break down the bike for repairs.
A41: 41409 | B41: Manchester Urban Homes | C41: NHS Neighborhood Redevelopment Corporation | D41: WASET, Inc. | G41: Southern California Association of Governments (SCAG) | H41: 59 | I41: 30 | J41: 35 | K41: Los Angeles | L41: Los Angeles | M41: TOD | N41: Pass | O41: No | P41: 67 | Q41: 19474210 | R41: 12969491 | S41: 0 | T41: 5659839 | U41: 452880 | V41: 392000 | W41: Yes | X41: Yes | Y41: 6037240200 | Z41: Yes | AA41: 96-100% | AB41: Yes | AC41: Yes | AD41: Yes | AE41: Yes | AF41: 11306.18 | AG41: 11186 | AH41: 0.00057439 | AI41: 105 | AJ41: 105 | AK41: 1 | AL41: 7 | AM41: 84 | AN41: 0.5 | AO41: 0 | AP41: 0 | AQ41: 0 | AR41: 4100 | AS41: 38.54835074 | AT41: 0.04 | AU41: 108 | AV41: 69 | AW41: 69:106 | AY41: 2 | AZ41: 54:53 | BA41: 2 | BB41: Class III & II | BC41: Greater than half a mile | BD41: 8 | BE41: Crosswalks | BF41: 0 | BG41: 0 | BH41: 0 | BI41: 0 | BJ41: 3 | BK41: 0 | BL41: 0 | BM41: 0 | BP41: 3504575 | BQ41: 0 | BR41: 240900 | BS41: 136500 | BT41: Bike safety and repair classes and services, community education, community biking events, bicycle infrastructure equity, bike maintenance | BU41: Metro bus/transit passes, community engagement, provide information on Metro safety and accessibility.
A42: 41412 | B42: Sustainable San Leandro | C42: Eden Housing, Inc. | D42: City of San Leandro | E42: Alameda Contra Costa Transit District | G42: Metropolitan Transportation Commission (MTC) | H42: 18 | I42: 9 | J42: 13 | K42: San Leandro | L42: Alameda | M42: TOD | N42: Pass | O42: No | P42: 65 | Q42: 11246919 | R42: 7616297 | S42: 0 | T42: 2840486 | U42: 599346 | V42: 190790 | W42: Yes | X42: Yes | Y42: 6001432501 | Z42: Yes | AA42: 81-85% | AB42: Yes | AC42: No | AD42: No | AE42: Yes | AF42: 10322.16 | AG42: 10341 | AH42: 0.00091943 | AI42: 62 | AJ42: 57 | AK42: 0.92 | AL42: 25 | AM42: 12 | AN42: 0.43 | AO42: 0 | AP42: 0 | AQ42: 0 | AR42: 0 | AS42: 134.7826087 | AT42: 0.04 | AU42: 62 | AV42: 31 | AW42: 1:2 | AX42: 0 | AY42: 0 | AZ42: 1:2 | BA42: 2.08 | BB42: Class IV & II | BC42: Greater than half a mile | BD42: 4 | BE42: Crosswalks | BF42: 1 | BG42: 0 | BH42: 1 | BI42: 0 | BJ42: 0 | BK42: 0 | BL42: 0 | BM42: 0 | BN42: Yes | BO42: Yes | BP42: 1821486 | BQ42: 800000 | BR42: 0 | BS42: 522011 | BT42: Transit passes will be provided to residents for unlimited use of AC Transit, for thirty years, free of charge | BU42: Recurring bike clinic at the AHD that provides education and help with bike safety and bike repair
A43: 41427 | B43: Quetzal Gardens | C43: Resources for Community Development | D43: City of San Jose | G43: Metropolitan Transportation Commission (MTC) | H43: 27 | I43: 15 | J43: 19 | K43: San Jose | L43: Santa Clara | M43: TOD | N43: Pass | O43: No | P43: 73 | Q43: 12058050.03 | R43: 6900000 | S43: 606650.0344 | T43: 3274400 | U43: 957000 | V43: 320000 | W43: Yes | X43: Yes | Y43: 6085503601 | Z43: Yes | AA43: 86-90% | AB43: Yes | AC43: Yes | AD43: Yes | AE43: Yes | AF43: 12555.19 | AG43: 12939.66 | AH43: 0.00107311 | AI43: 71 | AJ43: 70 | AK43: 0.99 | AL43: 47 | AM43: 0 | AN43: 0.4 | AO43: 0 | AP43: 0 | AQ43: 0 | AR43: 7633 | AS43: 102.0565654 | AT43: 0.04 | AU43: 212 | AV43: 94 | AW43: 94:71 | AX43: 0 | AY43: 3 | AZ43: 92:71 | BA43: 2.6 | BB43: Class IV & IV | BC43: Greater than half a mile | BD43: 55 | BE43: Crosswalks Overcrossings | BF43: 1 | BG43: 0 | BH43: 1 | BI43: 0 | BJ43: 16 | BK43: 0 | BL43: 25 | BM43: 1 | BN43: Yes | BO43: Yes | BP43: 2000200 | BQ43: 1020700 | BR43: 180000 | BS43: 633500 | BT43: As part of the AHSC program the San Jose Department of Transportation will target education, outreach, and traning programs through the eixtsing Vision Zero Program within the project area. These AHSC funds will allow the Vision Zero Program to: -Provide for the production of traffic safety messages on transit facilities; -Produce and distribute education materials and safety give aways; provide a Traffic Safety Education Specialist for annual afety events in the project area; All of these program features will be targeted for the project area. Not only the residents of Quetzal Gardens will be a target audience, but all community members within the project area. | BU43: The Developer, RCD, will provide transit passes to all residents of Quetzal Gardens housing project for at least a 3 year period. This will be 212 passes per year assuming there are 212 residents at the property each year. See back-up letter for calculations.
A44: 41282 | B44: Clean Corridors Plan, Bike Infrastructure, and West Oakland TOD Apartments | C44: Oakland & The World Enterprises, Inc | D44: McCormack Baron Salazar | E44: City of Oakland | F44: Alameda Contra Costa Transit District | G44: Metropolitan Transportation Commission (MTC) | H44: 18 | I44: 9 | J44: 13 | K44: Oakland | L44: Alameda | M44: TOD | N44: Pass | O44: No | P44: 67 | Q44: 16377014 | R44: 11753544 | S44: 0 | T44: 3541100 | U44: 799600 | V44: 282770 | W44: Yes | X44: Yes | Y44: 6001401800 | Z44: Yes | AA44: 86-90% | AB44: Yes | AC44: Yes | AD44: Yes | AE44: Yes | AF44: 19488.08 | AG44: 17387 | AH44: 0.0010617 | AI44: 79 | AJ44: 78 | AK44: 0.99 | AL44: 20 | AM44: 31 | AN44: 0.46 | AO44: 0 | AP44: 0 | AQ44: 0 | AR44: 12850 | AS44: 110.56683 | AT44: 0.04 | AU44: 78 | AV44: 48 | AW44: 48:79 | AX44: 2 | AY44: 2 | AZ44: 40:79 | BA44: 0.8 | BB44: Class II | BC44: Greater than half a mile | BD44: 0 | BF44: 1 | BG44: 0 | BH44: 1 | BI44: 0 | BJ44: 0 | BK44: 0 | BL44: 0 | BM44: 0 | BN44: Yes | BP44: 1379900 | BQ44: 1342000 | BR44: 345600 | BS44: 0 | BT44: Applicant will distribute one free unlimited AC Transit pass per unit for 36 months. | BU44: Ford Go Bike will provide one free unlimited annual bike share pass per unit per year for three years. | BV44: Bike East Bay promotes healthy, sustainable communities by making bicycling safe, fun and accessible throughout Contra Costa and Alameda Counties. As a non-profit 501(c)3 founded in 1972, Bike East Bay provides classes, events, and grassroots organizing via their advocacy, education, and community engagement programs.
A45: 41284 | B45: Skid Row Mobility and Lamp Lodge Affordable Housing | C45: Meta Housing Corporation | D45: City of Los Angeles | G45: Southern California Association of Governments (SCAG) | H45: 50 | I45: 30 | J45: 34 | K45: Los Angeles | L45: Los Angeles | M45: ICP | N45: Pass | O45: No | P45: 68 | Q45: 19370489.67 | R45: 13345000 | S45: 0 | T45: 4858241.97 | U45: 1004573.7 | V45: 162674 | W45: Yes | X45: Yes | Y45: 6037206300 | Z45: Yes | AA45: 96-100% | AB45: Yes | AC45: Yes | AD45: Yes | AE45: No | AF45: 9221.58 | AG45: 9070 | AH45: 0.00046822 | AI45: 82 | AJ45: 81 | AK45: 0.99 | AL45: 18 | AM45: 63 | AN45: 0.4 | AO45: 0 | AP45: 81 | AQ45: 0 | AS45: 261.7383255 | AT45: 0.04 | AU45: 81 | AV45: 16 | AW45: 8:41 | AY45: 3 | AZ45: 91:82 | BA45: 1.44 | BB45: Class III | BC45: Greater than half a mile | BD45: 45 | BE45: Crosswalks | BF45: 0 | BG45: 0 | BH45: 0 | BI45: 0 | BJ45: 2 | BK45: 2 | BL45: 0 | BM45: 0 | BP45: 372580.01 | BQ45: 2772622.8 | BR45: 495000 | BS45: 94900 | BT45: Go Human is a community outreach and advertising campaign launched by SCAG, which aims to reduce traffic collisions and encourage more people to walk and bike in Southern California. The applicant will purchase four weeks of billboard ad space and 5,000 "clicks" on facebook over a three year period. | BU45: The applicant will purchase one unlimited Metro pass per unit per month for thirty six months and distribute to every unit.
A46: 41285 | B46: The Villages at Westview | C46: Homecomings Inc | D46: Housing Authority of the City of San Buenaventura | G46: Southern California Association of Governments (SCAG) | H46: 19 | I46: 37 | J46: 26 | K46: Ventura | L46: Ventura | M46: ICP | N46: Pass | O46: No | P46: 67.5 | Q46: 20000000 | R46: 9280426 | S46: 5414528 | T46: 5000000 | U46: 0 | V46: 305046 | W46: Yes | X46: Yes | Y46: 6111002300 | Z46: Yes | AA46: 76-80% | AB46: Yes | AC46: Yes | AD46: Yes | AE46: No | AF46: 7435.24 | AG46: 7290 | AH46: 0.0003645 | AI46: 153 | AJ46: 153 | AK46: 1 | AL46: 31 | AM46: 104 | AN46: 0.47 | AO46: 49 | AP46: 0 | AQ46: 0 | AS46: 31.26315789 | AT46: 0.04 | AU46: 153 | AV46: 137 | AW46: 137:153 | AZ46: 77:153 | BA46: 3.1 | BB46: Class III | BC46: Greater than half a mile | BD46: 0 | BF46: 4 | BG46: 0 | BH46: 0 | BI46: 4 | BJ46: 0 | BK46: 0 | BL46: 0 | BM46: 0 | BP46: 2621259 | BQ46: 174000 | BR46: 0 | BS46: 0 | BT46: In partnership with SCAG, Homecomings Inc will purchase 2 ad buys on the radio and 1 Facebook ad campaign to run Go Human advertising for four weeks over 3 years. This campaign is focused on respecting pedestrians and bikers on our roads. | BU46: Applicant will provide one full fare unlimited monthly free transit pass per unit per month for 36 months.
A47: 41240 | B47: Mission Heritage Plaza | C47: Wakeland Housing and Development Corporation | G47: Southern California Association of Governments (SCAG) | H47: 61 | I47: 31 | J47: 41 | K47: Riverside | L47: Riverside | M47: ICP | N47: Pass | O47: No | P47: 57 | Q47: 14862783 | R47: 10469833 | S47: 3585000 | T47: 281250 | U47: 305000 | V47: 221700 | W47: Yes | X47: Yes | Y47: 6065030300 | Z47: Yes | AA47: 96-100% | AB47: Yes | AC47: Yes | AD47: Yes | AE47: No | AF47: 8276.8 | AG47: 8277 | AH47: 0.00055688 | AI47: 72 | AJ47: 72 | AK47: 0.99 | AL47: 19 | AM47: 36 | AN47: 0.46 | AO47: 0 | AP47: 19 | AQ47: 0 | AR47: 0 | AS47: 49.62954188 | AT47: 0.04 | AU47: 71 | AV47: 73 | AW47: 73:72 | AX47: 2 | AY47: 3 | AZ47: 1:2 | BA47: 0 | BC47: An entire block (all 4 sides) of context sensitive walkway | BO47: Yes | BP47: 150000 | BQ47: 100000 | BR47: 201000 | BS47: 5000 | BT47: Developer will acquire 71 transit passes from the Riverside Transit Authority for a 3-year period. These passes will be provided at no cost to residents of the Mission Heritage Plaza Community | BU47: Riverside Transit Agency will provide annual educational training, for a 3- year period, to residents of the Mission Heritage Plaza commuity regarding the use of public transit and the availibity of transit subsidy programs. Program includes a "Train the Trainer" component and will train property managment staff to continue these workshops after the 3-year AHSC grant period | BV47: At annual educational training sessions discussed in PGM #2, RTA will seek to better unerstand the needs of active transportation users
A48: 41725 | B48: Galleria District | C48: CityWorks | G48: Southern California Association of Governments (SCAG) | H48: 41 | I48: 41 | J48: 42 | K48: Riverside | L48: Riverside | M48: ICP | N48: Fail | O48: No | P48: 0 | R48: 0 | S48: 0 | T48: 0 | U48: 0 | V48: 0 | W48: No | X48: Yes | Y48: 6065041408 | Z48: Yes | AA48: 86-90% | AB48: Yes | AC48: Yes | AD48: Yes | AE48: No | AI48: 600 | AJ48: 0 | AK48: 0.63 | AL48: 220 | AM48: 80 | AN48: 0.71 | AO48: 0 | AP48: 0 | AQ48: 64 | AR48: 80000 | AS48: 111.8069815 | AT48: 0.04 | AV48: 540 | AW48: 9:10 | AX48: 180 | AY48: 120 | AZ48: 0:1 | BA48: 0 | BC48: none | BD48: 0 | BF48: 0 | BG48: 0 | BH48: 0 | BI48: 0 | BJ48: 0 | BK48: 0 | BL48: 0 | BM48: 0 | BP48: 0 | BQ48: 0 | BR48: 0 | BS48: 0
A49: 40991 | B49: The Spark at Midtown | C49: LINC Housing Corporation | D49: City of Long Beach | G49: Southern California Association of Governments (SCAG) | H49: 70 | I49: 33 | J49: 47 | K49: Long Beach | L49: Los Angeles | M49: TOD | N49: Pass | O49: No | P49: 73 | Q49: 11300097 | R49: 6000097 | S49: 1184946 | T49: 3349509 | U49: 565545 | V49: 200000 | W49: Yes | X49: Yes | Y49: 6037573202 | Z49: Yes | AA49: 91-95% | AB49: Yes | AC49: Yes | AD49: Yes | AE49: Yes | AF49: 23101.56 | AG49: 19923 | AH49: 0.00176305 | AI49: 95 | AJ49: 94 | AK49: 0.99 | AL49: 47 | AM49: 0 | AN49: 0.45 | AO49: 0 | AP49: 47 | AQ49: 0 | AR49: 12388 | AS49: 107.9877874 | AT49: 0.04 | AU49: 94 | AV49: 140 | AW49: 28:19 | AX49: 0 | AY49: 58 | AZ49: 58:95 | BA49: 0 | BC49: Greater than half a mile | BD49: 20 | BE49: Crosswalks | BF49: 0 | BG49: 0 | BH49: 0 | BI49: 0 | BJ49: 0 | BK49: 0 | BL49: 10 | BM49: 0 | BN49: No | BP49: 2640859 | BQ49: 0 | BR49: 0 | BS49: 0 | BT49: Resident services at the AHD will include education on how to access public transit, rules of public transit, safe public transit and pedestrian/bicycle routes to key destinations, health and green living, and the dangers of environmental factors including notification of unhealthy air quality days. | BU49: Facilitation and distribution of subsidized Long Beach epartment of Transit public transit passes. Costs will cover subsidization and administration for three years.
A50: 40992 | B50: Manzanita Family Apartments | C50: Satellite Affordable Housing Associates | G50: Metropolitan Transportation Commission (MTC) | H50: 4 | I50: 3 | J50: 5 | K50: Napa | L50: Napa | M50: ICP | N50: Pass | O50: No | P50: 63 | Q50: 10885564 | R50: 7435564 | S50: 0 | T50: 3300000 | U50: 0 | V50: 150000 | W50: Yes | X50: No | Y50: 6055200504 | Z50: No | AA50: 21-25% | AB50: Yes | AC50: No | AD50: No | AE50: Yes | AF50: 9574.85 | AG50: 2210 | AH50: 0.00020303 | AI50: 51 | AJ50: 50 | AK50: 0.98 | AL50: 20 | AM50: 5 | AN50: 0.47 | AO50: 0 | AP50: 0 | AQ50: 0 | AR50: 0 | AS50: 36.34929725 | AT50: 0.04 | AU50: 50 | AV50: 85 | AW50: 5:3 | AX50: 0 | AY50: 0 | AZ50: 26:51 | BA50: 1.6 | BB50: Class I | BC50: Greater than half a mile | BD50: 8 | BE50: Crosswalks | BF50: 2 | BG50: 0 | BH50: 2 | BI50: 0 | BJ50: 0 | BK50: 0 | BL50: 0 | BM50: 0 | BN50: Yes | BP50: 1100000 | BQ50: 2200000 | BR50: 0 | BS50: 0 | BT50: SAHA will provide at least 51 transit passes priced at no more than half of retail cost to residents of Manzanita Family Apartments. The total commitment over the 3 year timeframe of the transit passes will be $95,400 ($53/month for each pass x 50 passes (one for each restricted unit) x 12 months x 3 years) | BU50: The Napa County Bicycle Coalition will provide bicycle training programming for residents of the Manzanita Family Apartments project and local residents that may include pedestrian and bicycle safety education programs, bicycle clinics, and implementation of “walking school bus” or “bike train” programming
A51: 41077 | B51: Virginia Holt Apartments | C51: National Community Renaissance of California | D51: City of Ontario | G51: Southern California Association of Governments (SCAG) | H51: 52 | I51: 20 | J51: 35 | K51: Ontario | L51: San Bernardino | M51: ICP | N51: Withdrawn | O51: No | P51: 0 | Q51: 19533636.1 | R51: 14729325 | S51: 0 | T51: 3268045 | U51: 1334516.1 | V51: 201750 | W51: Yes | X51: Yes | Y51: 6071001503 | Z51: Yes | AA51: 91-95% | AB51: Yes | AC51: Yes | AD51: Yes | AE51: Yes | AF51: 7914.43 | AI51: 101 | AJ51: 100 | AK51: 0.99 | AL51: 21 | AM51: 37 | AN51: 0.5 | AO51: 0 | AP51: 0 | AQ51: 0 | AS51: 26.23376623 | AT51: 0.04 | AU51: 100 | AV51: 180 | AW51: 180:101 | AZ51: 0:1 | BA51: 2.2 | BB51: Class I | BC51: Greater than half a mile | BD51: 8 | BE51: Crosswalks | BF51: 0 | BG51: 0 | BH51: 0 | BI51: 0 | BJ51: 2 | BK51: 0 | BL51: 0 | BM51: 0 | BN51: No | BO51: Yes | BP51: 2031195 | BQ51: 320253 | BR51: 430000 | BS51: 111510 | BT51: City purchases transit passes from Omnitrans to provide 100 households a full-fare monthly pass for a three-year period (36 months) upon the completion of the affordable housing development. | BU51: Omnitrans staff to provide one travel training class for residents of affordable housing development to learn how to use fixed route bus system. Training to be provided on-site at the affordable housing site.
A52: 41136 | B52: Alameda Site A Family Apartments | C52: Eden Housing, Inc. | D52: Alameda Contra Costa Transit District | G52: Metropolitan Transportation Commission (MTC) | H52: 18 | I52: 9 | J52: 13 | K52: Alameda | L52: Alameda | M52: ICP | N52: Pass | O52: No | P52: 75 | Q52: 7934360 | R52: 5500000 | S52: 0 | T52: 1800000 | U52: 400000 | V52: 234360 | W52: Yes | X52: No | Y52: 6001428700 | Z52: No | AA52: 71-75% | AB52: Yes | AC52: Yes | AD52: No | AE52: No | AF52: 9448.31 | AG52: 5630 | AH52: 0.00070956 | AI52: 70 | AJ52: 69 | AK52: 0.99 | AL52: 23 | AM52: 21 | AN52: 0.43 | AO52: 0 | AP52: 17 | AQ52: 15 | AR52: 0 | AS52: 70 | AT52: 0.04 | AU52: 70 | AV52: 70 | AW52: 1:1 | AX52: 0 | AY52: 3 | AZ52: 1:1 | BA52: 1.8 | BB52: Class I & IV | BC52: Greater than half a mile | BD52: 13 | BE52: Crosswalks | BF52: 1 | BG52: 0 | BH52: 1 | BI52: 0 | BJ52: 0 | BK52: 0 | BL52: 7 | BM52: 1 | BN52: Yes | BO52: Yes | BP52: 438000 | BQ52: 1300000 | BR52: 382640 | BS52: 0 | BT52: LimeBike is a bikeshare operator that serves the entire Alameda island and serves 19 cities throughout the United States. Through the company's discounted rate for low income households this funding application requests $10,080 in program funds per year to provide each eligible resident at Alameda Site A Family Apartments with 100 free rides per month. | BU52: Through AC Transit's Easy Pass program, 70 transit passes will be purchased (valued at $972 per unit per year) for each household, giving tenants free access to AC Transit routes throughout the Bay Area.
A53: 41561 | B53: The WIN Project | C53: The WIN Project | G53: Non-MPO area | H53: 64 | I53: 35 | J53: 44 | K53: Compton | L53: Los Angeles | M53: TOD | N53: Fail | O53: No | P53: 0 | Q53: 3791167 | R53: 3632177 | S53: 158990 | T53: 0 | U53: 0 | V53: 0 | W53: Yes | X53: Yes | Y53: 6037542401 | Z53: Yes | AA53: 96-100% | AB53: Yes | AC53: Yes | AD53: Yes | AE53: No | AF53: 0.03815689 | AI53: 26 | AJ53: 0 | AK53: 1 | AL53: 8 | AM53: 9 | AN53: 0.47 | AO53: 0 | AP53: 0 | AQ53: 0 | AR53: 0 | AS53: 82.51202211 | AT53: 0.04 | AU53: 26 | AV53: 26 | AW53: 1:1 | AX53: 5 | AY53: 2 | AZ53: 5:13 | BA53: 0 | BC53: none | BD53: 0 | BF53: 0 | BG53: 0 | BH53: 0 | BI53: 0 | BJ53: 0 | BK53: 0 | BL53: 0 | BM53: 0 | BP53: 0 | BQ53: 0 | BR53: 0 | BS53: 0
A54: 41146 | B54: Rumrill Complete Streets Project | C54: City of San Pablo | G54: Metropolitan Transportation Commission (MTC) | H54: 9 | I54: 15 | J54: 11 | K54: San Pablo | L54: Contra Costa | M54: ICP | N54: Pass | O54: No | P54: 32.5 | Q54: 1000000 | R54: 0 | S54: 0 | T54: 530500 | U54: 442500 | V54: 27000 | W54: No | X54: Yes | Y54: 6013368002 | Z54: Yes | AA54: 86-90% | AB54: Yes | AC54: Yes | AD54: Yes | AE54: No | AF54: 386.2 | AG54: 35 | AH54: 3.477e-05 | AI54: 0 | AJ54: 0 | AK54: 0 | AL54: 0 | AM54: 0 | AN54: 0 | AO54: 0 | AP54: 0 | AQ54: 0 | AS54: 0 | AT54: 0.04 | AW54: 0:0 | AZ54: 0:0 | BA54: 3.45 | BB54: Class IV & I | BC54: Greater than half a mile | BD54: 1 | BE54: Crosswalks | BF54: 0 | BG54: 0 | BH54: 0 | BI54: 0 | BJ54: 12 | BK54: 12 | BL54: 12 | BM54: 2 | BN54: Yes | BO54: No | BP54: 525520 | BQ54: 0 | BR54: 356500 | BS54: 75000 | BT54: Bike East Bay promotes healthy, sustainable communities by making bicycling safe, fun and accessible throughout Contra Costa and Alameda Counties. As a non-profit 501(c)3 founded in 1972, Bike East Bay provides classes, events, and grassroots organizing via their advocacy, education, and community engagement programs.
A55: 41163 | B55: Corazon del Valle Village | C55: City of Huron | G55: not reported | H55: 31 | I55: 12 | J55: 21 | K55: Huron | L55: Fresno | M55: RIPA | N55: Fail | O55: No | P55: 0 | Q55: 9995135.5 | R55: 7360000 | S55: 0 | T55: 2635135.5 | U55: 0 | V55: 0 | W55: Yes | X55: Yes | Y55: 6019007802 | Z55: Yes | AA55: 81-85% | AB55: Yes | AC55: Yes | AD55: Yes | AE55: Yes | AF55: 2692.89 | AI55: 67 | AJ55: 66 | AK55: 0.99 | AL55: 14 | AM55: 0 | AN55: 0.5 | AO55: 0 | AP55: 0 | AQ55: 0 | AS55: 31.40503338 | AT55: 0.04 | AU55: 67 | AV55: 67 | AW55: 1:1 | AX55: 60 | AY55: 2 | AZ55: 60:67 | BA55: 2.15 | BB55: Class I & IV | BC55: Greater than half a mile | BD55: 2 | BE55: Crosswalks | BF55: 0 | BG55: 0 | BH55: 0 | BI55: 0 | BJ55: 0 | BK55: 0 | BL55: 0 | BM55: 0 | BN55: Yes | BP55: 1389624 | BQ55: 1108011.5 | BR55: 0 | BS55: 0

Sheet Round 3 Expand Application Data
A1: FAAST | B1: PROJECT_NAME | C1: PROJECT_ADDRESS | D1: PROJECT_CITY | E1: PROJECT_ZIP_CODE | F1: PROJECT_COUNTY | G1: PRIMARY_APPLICANT | H1: PA_ADDRESS | I1: PA_CITY | J1: PA_STATE | K1: PA_ZIP | L1: CO_APPLICANT | M1: CO_ADDRESS | N1: CO_CITY | O1: CO_STATE | P1: CO_ZIP | Q1: PROPOSED_TOTAL_UNITS | R1: TOTAL_PROPOSED_ASSISTED_UNITS | S1: TYPE_OF_TAX_CREDIT | T1: AHD_YN | U1: HRI_YN | V1: PGM_YN | W1: STI_YN | X1: TRA_YN | Y1: STATE_ASSEMBLY_DISTRICT | Z1: SENATE_DISTRICT | AA1: CONGRESSIONAL_DISTRICT | AB1: PROJECT_TYPE_TOD_ICP_RIPA | AC1: AHSC_TOTAL_AMOUNT_REQUESTED | AD1: AHD_AMOUNT_REQUESTED | AE1: HRI_AMOUNT_REQUESTED | AF1: STI_AMOUNT_REQUESTED | AG1: TRA_AMOUNT_REQUESTED | AH1: PGM_AMOUNT_REQUESTED | AI1: GHG_REDUCTION_PER_APPLICANT | AJ1: ELI_UNITS | AK1: VERY_LI_UNITS | AL1: AVG_PCT_AMI_RESTRICTED_UNITS | AM1: PCT_AFFORDABLE | AN1: SENIOR_UNITS | AO1: SUPPORTIVE_HOUSING_UNITS | AP1: VETERAN_UNITS | AQ1: COMMERCIAL_SQ_FT | AR1: NET_HOUSING_DENSITY_UNITACRE | AS1: NO_TRANSIT_PASSES_PROVIDED | AT1: NO_OF_PARKING_SPACES | AU1: PARKING_RATIO_SPACES_UNITS | AV1: CAR_SHARING_SPACES | AW1: ELECTRIC_VEH_CHRG_PRKG_SPACES | AX1: BICYCLE_PRKG_SPACES_PER_UNIT | AY1: BIKE_FACILITIES_FUNDED | AZ1: BIKE_FACILITY_TYPE | BA1: IMPROVED_CROSSINGS_EACH | BB1: IMPROVED_CROSSINGS_TYPE | BC1: NEW_TRANSIT_VEHICLES_TOTAL | BD1: NEW_TRANSIT_VEHICLES_RAIL_CARS | BE1: NEW_TRANSIT_VEH_STREET_CARS | BF1: NEW_TRANSIT_VEHICLES_BUSES | BG1: NEW_TRANSIT_VEHICLES_SHUTTLES | BH1: NEW_TRANSIT_VEHICLES_VANS | BI1: BUS_SHELTERS_EACH | BJ1: BUS_STOP_BENCHES_EACH | BK1: BIKE_PARKING_AT_TRANSIT_EACH | BL1: TRANSIT_ROUTES_IMPROVED | BM1: ADDED_OR_IMPRVD_TRANSIT_SRVCS | BN1: STATION_TRANSIT_ACCESS_IMPROV | BO1: STI_COMP_STREETS_CONST_COST | BP1: STI_TRANSIT_AND_STATION_COST | BQ1: TRA_COMP_STREETS_CONST_COST | BR1: TRA_TRANSIT_AND_STATION_COST | BS1: REDUCED_VEHICLE_SPEED_VOLUME | BT1: IMPROVED_SIGHT_DIST_AND_VIS | BU1: ELIM_POTENTIAL_CONFLICT_POINTS | BV1: IMPRVD_COMPLIANCE_TRAFFIC_LAWS | BW1: OTHER_BARRIERS | BX1: GREENSCAPED_PED_BIKE_TRAILS | BY1: URBAN_STREET_CANOPY | BZ1: GREEN_ALLEYS | CA1: DROUGHT_TOLERANT_LANDSCAPE | CB1: GREEN_ROOFING | CC1: COMMUNITY_GARDENS | CD1: NATURAL_INFRASTRUCTURE | CE1: STORMWATER_INTO_OPEN_SPACES | CF1: ENHANCE_PARKS_COMMUNITY_SPACES | CG1: GREENING_PUBLIC_LANDS | CH1: GREEN_STREETS_ALLEYWAYS | CI1: NON_MOTORIZED_URBAN_TRAILS | CJ1: URBAN_HEAT_MIT_ENERGY_CONSERV | CK1: AB_1550_COMMUNITY | CL1: DAC_ELIGIBILITY_CRITERIA_MET | CM1: WITHIN_DAC | CN1: WITHIN_DAC_AND_LI_COMMUNNITY | CO1: WITHIN_LI_COMMUNITY | CP1: PROVIDES_JOBS_TO_LI_COMM | CQ1: IMPORTANT_NEEDS_COMM_HOUSEHOLD | CR1: WITHIN_AB_1550_REDUCES_VMT | CS1: PRSRVS_AT_RISK_MKT_RATE_AB1550 | CT1: INCLUDES_RECRUIT_AGR_25PCT_HRS | CU1: INCLUDES_RECRUIT_AGR_10PCT_HRS | CV1: ACTIVE_TRANSPORT_IMPROVMENTS | CW1: GREEN_BLDGS_RENEWABLE_ENERGY | CX1: HOUSING_TRANSPORTATION_COLLAB | CY1: LOCATION_EFFICIENCY_ACCESS_DES | CZ1: FUNDS_LEVERAGED | DA1: ANTI_DISPLACEMENT_STRATEGIES | DB1: LOCAL_WKFORCE_DEV_HIRING_PRAC | DC1: HOUSING_AFFORDABILITY | DD1: PROGRAMS | DE1: 15_PCT_0_BDRM | DF1: 15_PCT_1_BDRM | DG1: 15_PCT_2_BDRM | DH1: 15_PCT_3_BDRM | DI1: 15_PCT_4_BDRM | DJ1: 15_PCT_5_BDRM | DK1: 20_PCT_0_BDRM | DL1: 20_PCT_1_BDRM | DM1: 20_PCT_2_BDRM | DN1: 20_PCT_3_BDRM | DO1: 20_PCT_4_BDRM | DP1: 20_PCT_5_BDRM | DQ1: 25_PCT_0_BDRM | DR1: 25_PCT_1_BDRM | DS1: 25_PCT_2_BDRM | DT1: 25_PCT_3_BDRM | DU1: 25_PCT_4_BDRM | DV1: 25_PCT_5_BDRM | DW1: 30_PCT_0_BDRM | DX1: 30_PCT_1_BDRM | DY1: 30_PCT_2_BDRM | DZ1: 30_PCT_3_BDRM | EA1: 30_PCT_4_BDRM | EB1: 30_PCT_5_BDRM | EC1: 35_PCT_0_BDRM | ED1: 35_PCT_1_BDRM | EE1: 35_PCT_2_BDRM | EF1: 35_PCT_3_BDRM | EG1: 35_PCT_4_BDRM | EH1: 35_PCT_5_BDRM | EI1: 40_PCT_0_BDRM | EJ1: 40_PCT_1_BDRM | EK1: 40_PCT_2_BDRM | EL1: 40_PCT_3_BDRM | EM1: 40_PCT_4_BDRM | EN1: 40_PCT_5_BDRM | EO1: 45_PCT_0_BDRM | EP1: 45_PCT_1_BDRM | EQ1: 45_PCT_2_BDRM | ER1: 45_PCT_3_BDRM | ES1: 45_PCT_4_BDRM | ET1: 45_PCT_5_BDRM | EU1: 50_PCT_0_BDRM | EV1: 50_PCT_1_BDRM | EW1: 50_PCT_2_BDRM | EX1: 50_PCT_3_BDRM | EY1: 50_PCT_4_BDRM | EZ1: 50_PCT_5_BDRM | FA1: 55_PCT_0_BDRM | FB1: 55_PCT_1_BDRM | FC1: 55_PCT_2_BDRM | FD1: 55_PCT_3_BDRM | FE1: 55_PCT_4_BDRM | FF1: 55_PCT_5_BDRM | FG1: 60_PCT_0_BDRM | FH1: 60_PCT_1_BDRM | FI1: 60_PCT_2_BDRM | FJ1: 60_PCT_3_BDRM | FK1: 60_PCT_4_BDRM | FL1: 60_PCT_5_BDRM | FM1: MKT_RATE_0_BDRM | FN1: MKT_RATE_1_BDRM | FO1: MKT_RATE_2_BDRM | FP1: MKT_RATE_3_BDRM | FQ1: MKT_RATE_4_BDRM | FR1: MKT_RATE_5_BDRM | FS1: MGR_0_BDRM | FT1: MGR_1_BDRM | FU1: MGR_2_BDRM | FV1: MGR_3_BDRM | FW1: MGR_4_BDRM | FX1: MGR_5_BDRM
A2: 40963 | B2: Sequoia Commons | C2: South of Riggin Avenue and west of Road 76 | D2: Goshen | E2: 93227 | F2: Tulare | G2: Self-Help Enterprises | H2: P.O. Box 6520 | I2: Visalia | J2: CA | K2: 93290 | Q2: 66 | R2: 0 | S2: 0.04 | T2: Y | U2: N | V2: Y | W2: Y | X2: Y | Y2: 26 | Z2: 14 | AA2: 22 | AB2: RIPA | AC2: 12088276 | AD2: 8340236 | AE2: 0 | AF2: 3035000 | AG2: 608000 | AH2: 105040 | AI2: 12511.53 | AJ2: 14 | AK2: 51 | AL2: 0.43 | AM2: 0.98 | AN2: 0 | AO2: 0 | AP2: 0 | AR2: 20 | AS2: 2376 | AT2: 76 | AU2: 38:33 | AV2: 2 | AW2: 2 | AX2: 8:11 | AY2: 0.64 | AZ2: Class IVClass II | BA2: 1 | BB2: Crosswalks | BC2: 20 | BD2: 0 | BE2: 0 | BF2: 0 | BG2: 0 | BH2: 20 | BI2: 1 | BJ2: 1 | BK2: 0 | BL2: 2 | BM2: Y | BN2: Y | BO2: 2910000 | BP2: 0 | BQ2: 0 | BR2: 583000 | BS2: Y | BT2: Y | BU2: Y | BV2: Y | BW2: Y | BX2: N | BY2: Y | BZ2: N | CA2: Y | CB2: N | CC2: N | CD2: N | CE2: N | CF2: N | CG2: N | CH2: N | CI2: N | CJ2: N | CK2: Y | CL2: Y | CM2: Y | CN2: Y | CO2: Y | CP2: Y | CQ2: Host community meetings, workshops, outreach efforts, or public meetings as part of planning process to engage local residents and community groups for input on community or household needs, and provide documentation showing how the received input was considered in the selection of projects that address those needs | CR2: Y | CS2: N | CT2: N | CU2: N | CV2: 9 | CW2: 10 | CX2: 9 | CY2: 2.5 | CZ2: 3 | DA2: 5 | DB2: 2 | DC2: 5 | DD2: 3 | DE2: 0 | DF2: 0 | DG2: 0 | DH2: 0 | DI2: 0 | DJ2: 0 | DK2: 0 | DL2: 0 | DM2: 0 | DN2: 0 | DO2: 0 | DP2: 0 | DQ2: 0 | DR2: 0 | DS2: 0 | DT2: 0 | DU2: 0 | DV2: 0 | DW2: 0 | DX2: 5 | DY2: 5 | DZ2: 4 | EA2: 0 | EB2: 0 | EC2: 0 | ED2: 0 | EE2: 2 | EF2: 3 | EG2: 0 | EH2: 0 | EI2: 0 | EJ2: 0 | EK2: 0 | EL2: 0 | EM2: 0 | EN2: 0 | EO2: 0 | EP2: 4 | EQ2: 8 | ER2: 11 | ES2: 0 | ET2: 0 | EU2: 0 | EV2: 13 | EW2: 7 | EX2: 3 | EY2: 0 | EZ2: 0 | FA2: 0 | FB2: 0 | FC2: 0 | FD2: 0 | FE2: 0 | FF2: 0 | FG2: 0 | FH2: 0 | FI2: 0 | FJ2: 0 | FK2: 0 | FL2: 0 | FM2: 0 | FN2: 0 | FO2: 0 | FP2: 0 | FQ2: 0 | FR2: 0 | FS2: 0 | FT2: 0 | FU2: 0 | FV2: 1 | FW2: 0 | FX2: 0
A3: 40983 | B3: 2060 Folsom Street Affordable Housing | C3: 2060 Folsom Street | D3: San Francisco | E3: 94110 | F3: San Francisco | G3: 2060 Folsom Housing, L.P. | H3: 1525 Grant Ave. | I3: San Francisco | J3: CA | K3: 94133 | L3: Chinatown Community Development Center | M3: 1525 Grant Ave. | N3: San Francisco | O3: CA | P3: 94133 | Q3: 127 | R3: 95 | S3: 0.04 | T3: Y | U3: N | V3: Y | W3: Y | X3: Y | Y3: 17 | Z3: 11 | AA3: 12 | AB3: TOD | AC3: 14000000 | AD3: 9300000 | AE3: 0 | AF3: 3500000 | AG3: 700000 | AH3: 500000 | AI3: 18496.92 | AJ3: 29 | AK3: 11 | AL3: 0.5 | AM3: 0.99 | AN3: 0 | AO3: 29 | AP3: 0 | AQ3: 12191 | AR3: 189.5522388 | AS3: 127 | AT3: 0 | AU3: 0:1 | AV3: 0 | AW3: 0 | AX3: 120:127 | AY3: 0.8 | AZ3: Class IV | BA3: 11 | BB3: Crosswalks | BC3: 0 | BD3: 0 | BE3: 0 | BF3: 0 | BG3: 0 | BH3: 0 | BI3: 0 | BJ3: 0 | BK3: 0 | BL3: 0 | BM3: N | BO3: 3065000 | BP3: 0 | BQ3: 358377 | BR3: 0 | BX3: Y | BY3: Y | BZ3: N | CA3: N | CB3: N | CC3: N | CD3: N | CE3: N | CF3: N | CG3: N | CH3: N | CI3: N | CJ3: N | CK3: Y | CL3: N | CM3: N | CN3: N | CO3: Y | CP3: N | CQ3: Receive documentation of support from local community-based organizations and/or residents (e.g., letters, emails) and select a project with documented broad community support | CR3: Y | CS3: N | CT3: N | CU3: N | CV3: 9 | CW3: 5 | CX3: 7 | CY3: 5 | CZ3: 5 | DA3: 5 | DB3: 2 | DC3: 5 | DD3: 3 | DE3: 0 | DF3: 0 | DG3: 0 | DH3: 0 | DI3: 0 | DJ3: 0 | DK3: 0 | DL3: 0 | DM3: 0 | DN3: 0 | DO3: 0 | DP3: 0 | DQ3: 0 | DR3: 0 | DS3: 0 | DT3: 0 | DU3: 0 | DV3: 0 | DW3: 22 | DX3: 7 | DY3: 0 | DZ3: 0 | EA3: 0 | EB3: 0 | EC3: 0 | ED3: 0 | EE3: 0 | EF3: 0 | EG3: 0 | EH3: 0 | EI3: 0 | EJ3: 0 | EK3: 11 | EL3: 0 | EM3: 0 | EN3: 0 | EO3: 0 | EP3: 0 | EQ3: 0 | ER3: 0 | ES3: 0 | ET3: 0 | EU3: 0 | EV3: 0 | EW3: 0 | EX3: 0 | EY3: 0 | EZ3: 0 | FA3: 0 | FB3: 0 | FC3: 25 | FD3: 6 | FE3: 0 | FF3: 0 | FG3: 0 | FH3: 8 | FI3: 11 | FJ3: 36 | FK3: 0 | FL3: 0 | FM3: 0 | FN3: 0 | FO3: 0 | FP3: 0 | FQ3: 0 | FR3: 0 | FS3: 0 | FT3: 0 | FU3: 1 | FV3: 0 | FW3: 0 | FX3: 0
A4: 40991 | B4: The Spark at Midtown | C4: 1900-1940 Long Beach Boulevard | D4: Long Beach | E4: 90806 | F4: Los Angeles | G4: LINC Housing Corporation | H4: 555 E. Ocean Boulevard, Suite 900 | I4: Long Beach | J4: CA | K4: 90802 | L4: City of Long Beach | M4: 300 W. Ocean Boulevard, 3rd Floor | N4: Long Beach | O4: CA | P4: 90802 | Q4: 95 | R4: 94 | S4: 0.04 | T4: Y | U4: Y | V4: Y | W4: Y | X4: Y | Y4: 70 | Z4: 33 | AA4: 47 | AB4: TOD | AC4: 11300097 | AD4: 6000097 | AE4: 1184946 | AF4: 3349509 | AG4: 565545 | AH4: 200000 | AI4: 23101.56 | AJ4: 47 | AK4: 0 | AL4: 0.45 | AM4: 0.99 | AN4: 0 | AO4: 47 | AP4: 0 | AQ4: 12388 | AR4: 107.9877874 | AS4: 94 | AT4: 140 | AU4: 28:19 | AV4: 0 | AW4: 58 | AX4: 58:95 | AY4: 0 | BA4: 20 | BB4: Crosswalks | BC4: 0 | BD4: 0 | BE4: 0 | BF4: 0 | BG4: 0 | BH4: 0 | BI4: 0 | BJ4: 0 | BK4: 10 | BL4: 0 | BM4: N | BO4: 2640859 | BP4: 0 | BQ4: 0 | BR4: 0 | BS4: Y | BT4: Y | BU4: Y | BV4: Y | BW4: N | BX4: N | BY4: N | BZ4: N | CA4: N | CB4: N | CC4: N | CD4: N | CE4: N | CF4: Y | CG4: N | CH4: Y | CI4: N | CJ4: N | CK4: Y | CL4: Y | CM4: Y | CN4: Y | CO4: Y | CP4: Y | CQ4: Look at the individual factors in CalEnviroScreen 3.02 that are most impacting an identified disadvantaged or low-income community (i.e., factors that score above the 75th percentile), and select a project that reduces the impacts of one of those factors | CR4: Y | CS4: N | CT4: N | CU4: Y | CV4: 5 | CW4: 5 | CX4: 7 | CY4: 4 | CZ4: 5 | DA4: 5 | DB4: 2 | DC4: 5 | DD4: 3 | DE4: 0 | DF4: 0 | DG4: 0 | DH4: 0 | DI4: 0 | DJ4: 0 | DK4: 0 | DL4: 0 | DM4: 0 | DN4: 0 | DO4: 0 | DP4: 0 | DQ4: 0 | DR4: 0 | DS4: 0 | DT4: 0 | DU4: 0 | DV4: 0 | DW4: 0 | DX4: 47 | DY4: 0 | DZ4: 0 | EA4: 0 | EB4: 0 | EC4: 0 | ED4: 0 | EE4: 0 | EF4: 0 | EG4: 0 | EH4: 0 | EI4: 0 | EJ4: 0 | EK4: 0 | EL4: 0 | EM4: 0 | EN4: 0 | EO4: 0 | EP4: 0 | EQ4: 0 | ER4: 0 | ES4: 0 | ET4: 0 | EU4: 0 | EV4: 0 | EW4: 0 | EX4: 0 | EY4: 0 | EZ4: 0 | FA4: 0 | FB4: 0 | FC4: 0 | FD4: 0 | FE4: 0 | FF4: 0 | FG4: 0 | FH4: 0 | FI4: 23 | FJ4: 24 | FK4: 0 | FL4: 0 | FM4: 0 | FN4: 0 | FO4: 0 | FP4: 0 | FQ4: 0 | FR4: 0 | FS4: 0 | FT4: 0 | FU4: 1 | FV4: 0 | FW4: 0 | FX4: 0
A5: 40992 | B5: Manzanita Family Apartments | C5: 2951 Soscol Ave | D5: Napa | E5: 94558 | F5: Napa | G5: Satellite Affordable Housing Associates | H5: 1835 Alcatraz Avenue | I5: Berkeley | J5: CA | K5: 94703 | Q5: 51 | R5: 50 | S5: 0.04 | T5: Y | U5: N | V5: Y | W5: Y | X5: N | Y5: 4 | Z5: 3 | AA5: 5 | AB5: ICP | AC5: 10885564 | AD5: 7435564 | AE5: 0 | AF5: 3300000 | AG5: 0 | AH5: 150000 | AI5: 9574.85 | AJ5: 20 | AK5: 5 | AL5: 0.47 | AM5: 0.98 | AN5: 0 | AO5: 0 | AP5: 0 | AQ5: 0 | AR5: 36.34929725 | AS5: 50 | AT5: 85 | AU5: 5:3 | AV5: 0 | AW5: 0 | AX5: 26:51 | AY5: 1.6 | AZ5: Class I | BA5: 8 | BB5: Crosswalks | BC5: 2 | BD5: 0 | BE5: 0 | BF5: 2 | BG5: 0 | BH5: 0 | BI5: 0 | BJ5: 0 | BK5: 0 | BL5: 0 | BM5: Y | BO5: 1100000 | BP5: 2200000 | BQ5: 0 | BR5: 0 | BX5: N | BY5: N | BZ5: N | CA5: Y | CB5: N | CC5: Y | CD5: N | CE5: N | CF5: N | CG5: N | CH5: N | CI5: N | CJ5: N | CK5: Y | CL5: N | CM5: N | CN5: N | CO5: N | CP5: Y | CQ5: Host community meetings, workshops, outreach efforts, or public meetings as part of planning process to engage local residents and community groups for input on community or household needs, and provide documentation showing how the received input was considered in the selection of projects that address those needs | CR5: N | CS5: N | CT5: N | CU5: Y | CV5: 9 | CW5: 5 | CX5: 6 | CY5: 5 | CZ5: 4 | DA5: 5 | DB5: 2 | DC5: 5 | DD5: 3 | DE5: 0 | DF5: 0 | DG5: 0 | DH5: 0 | DI5: 0 | DJ5: 0 | DK5: 0 | DL5: 0 | DM5: 0 | DN5: 0 | DO5: 0 | DP5: 0 | DQ5: 0 | DR5: 0 | DS5: 0 | DT5: 0 | DU5: 0 | DV5: 0 | DW5: 0 | DX5: 7 | DY5: 7 | DZ5: 6 | EA5: 0 | EB5: 0 | EC5: 0 | ED5: 0 | EE5: 0 | EF5: 0 | EG5: 0 | EH5: 0 | EI5: 0 | EJ5: 0 | EK5: 0 | EL5: 0 | EM5: 0 | EN5: 0 | EO5: 0 | EP5: 0 | EQ5: 0 | ER5: 0 | ES5: 0 | ET5: 0 | EU5: 0 | EV5: 2 | EW5: 2 | EX5: 1 | EY5: 0 | EZ5: 0 | FA5: 0 | FB5: 0 | FC5: 0 | FD5: 0 | FE5: 0 | FF5: 0 | FG5: 0 | FH5: 16 | FI5: 4 | FJ5: 5 | FK5: 0 | FL5: 0 | FM5: 0 | FN5: 0 | FO5: 0 | FP5: 0 | FQ5: 0 | FR5: 0 | FS5: 0 | FT5: 0 | FU5: 0 | FV5: 1 | FW5: 0 | FX5: 0
A6: 41052 | B6: PATH Villas Hollywood | C6: 5621-5627 Fernwood Ave | D6: Los Angeles | E6: 90028 | F6: Los Angeles | G6: PATH Ventures | H6: 340 N Madison Ave | I6: Los Angeles | J6: CA | K6: 90004 | L6: City of Los Angeles | M6: 1200 W 7th Street | N6: Los Angeles | O6: CA | P6: 90017 | Q6: 60 | R6: 59 | S6: 0.04 | T6: Y | U6: N | V6: Y | W6: Y | X6: Y | Y6: 43 | Z6: 24 | AA6: 28 | AB6: TOD | AC6: 10855124.21 | AD6: 7381763 | AE6: 0 | AF6: 2754747.21 | AG6: 542260 | AH6: 176354 | AI6: 10754.46 | AJ6: 25 | AK6: 34 | AL6: 0.41 | AM6: 0.98 | AN6: 0 | AO6: 59 | AP6: 0 | AR6: 181.8181818 | AS6: 60 | AT6: 14 | AU6: 7:30 | AW6: 1 | AX6: 11:10 | AY6: 2.6 | AZ6: Class IIIClass II | BA6: 36 | BB6: Crosswalks | BC6: 0 | BD6: 0 | BE6: 0 | BF6: 0 | BG6: 0 | BH6: 0 | BI6: 2 | BJ6: 3 | BK6: 0 | BL6: 0 | BM6: N | BO6: 586870.37 | BP6: 1266515.8 | BQ6: 175500 | BR6: 96850 | BT6: Y | BX6: N | BY6: Y | BZ6: N | CA6: Y | CB6: N | CC6: N | CD6: N | CE6: N | CF6: N | CG6: N | CH6: N | CI6: N | CJ6: N | CK6: Y | CL6: Y | CM6: Y | CN6: Y | CO6: Y | CP6: N | CQ6: Look at the individual factors in CalEnviroScreen 3.02 that are most impacting an identified disadvantaged or low-income community (i.e., factors that score above the 75th percentile), and select a project that reduces the impacts of one of those factors | CR6: Y | CS6: N | CT6: N | CU6: N | CV6: 10 | CW6: 5 | CX6: 7 | CY6: 5 | CZ6: 5 | DA6: 5 | DB6: 1 | DC6: 5 | DD6: 3 | DE6: 0 | DF6: 0 | DG6: 0 | DH6: 0 | DI6: 0 | DJ6: 0 | DK6: 0 | DL6: 0 | DM6: 0 | DN6: 0 | DO6: 0 | DP6: 0 | DQ6: 0 | DR6: 0 | DS6: 0 | DT6: 0 | DU6: 0 | DV6: 0 | DW6: 20 | DX6: 5 | DY6: 0 | DZ6: 0 | EA6: 0 | EB6: 0 | EC6: 0 | ED6: 0 | EE6: 0 | EF6: 0 | EG6: 0 | EH6: 0 | EI6: 0 | EJ6: 5 | EK6: 0 | EL6: 0 | EM6: 0 | EN6: 0 | EO6: 0 | EP6: 0 | EQ6: 0 | ER6: 0 | ES6: 0 | ET6: 0 | EU6: 29 | EV6: 0 | EW6: 0 | EX6: 0 | EY6: 0 | EZ6: 0 | FA6: 0 | FB6: 0 | FC6: 0 | FD6: 0 | FE6: 0 | FF6: 0 | FG6: 0 | FH6: 0 | FI6: 0 | FJ6: 0 | FK6: 0 | FL6: 0 | FM6: 0 | FN6: 0 | FO6: 0 | FP6: 0 | FQ6: 0 | FR6: 0 | FS6: 0 | FT6: 0 | FU6: 1 | FV6: 0 | FW6: 0 | FX6: 0
A7: 41077 | B7: Virginia Holt Apartments | C7: 1131 E Holt Blvd. 126 Virginia Ave. 120 Virginia Ave. 116 Virginia Ave. (est.) 1125 E Holt Blvd. | D7: Ontario | E7: 91764 | F7: San Bernardino | G7: National Community Renaissance of California | H7: 9421 Haven Ave | I7: Rancho Cucamonga | J7: CA | K7: 91730 | L7: City of Ontario | M7: 303 E. B Street | N7: Ontario | O7: CA | P7: 91764 | Q7: 101 | R7: 100 | S7: 0.04 | T7: Y | U7: N | V7: Y | W7: Y | X7: Y | Y7: 52 | Z7: 20 | AA7: 35 | AB7: ICP | AC7: 19533636.1 | AD7: 14729325 | AE7: 0 | AF7: 3268045 | AG7: 1334516.1 | AH7: 201750 | AI7: 7914.43 | AJ7: 21 | AK7: 37 | AL7: 0.5 | AM7: 0.99 | AN7: 0 | AO7: 0 | AP7: 0 | AR7: 26.23376623 | AS7: 100 | AT7: 180 | AU7: 180:101 | AX7: 0:1 | AY7: 2.2 | AZ7: Class I | BA7: 8 | BB7: Crosswalks | BC7: 0 | BD7: 0 | BE7: 0 | BF7: 0 | BG7: 0 | BH7: 0 | BI7: 2 | BJ7: 0 | BK7: 0 | BL7: 0 | BM7: N | BN7: Y | BO7: 2031195 | BP7: 320253 | BQ7: 430000 | BR7: 111510 | BS7: Y | BT7: Y | BU7: N | BV7: Y | BW7: Y | BX7: Y | BY7: Y | BZ7: N | CA7: N | CB7: N | CC7: N | CD7: N | CE7: N | CF7: N | CG7: N | CH7: N | CI7: N | CJ7: N | CK7: Y | CL7: Y | CM7: Y | CN7: Y | CO7: Y | CP7: Y | CQ7: Host community meetings, workshops, outreach efforts, or public meetings as part of planning process to engage local residents and community groups for input on community or household needs, and provide documentation showing how the received input was considered in the selection of projects that address those needs | CR7: Y | CS7: N | CT7: N | CU7: N | CV7: 10 | CW7: 7 | CX7: 5 | CY7: 3 | CZ7: 2 | DA7: 4 | DB7: 2 | DC7: 5 | DD7: 3 | DE7: 0 | DF7: 0 | DG7: 0 | DH7: 0 | DI7: 0 | DJ7: 0 | DK7: 0 | DL7: 0 | DM7: 0 | DN7: 0 | DO7: 0 | DP7: 0 | DQ7: 0 | DR7: 0 | DS7: 0 | DT7: 0 | DU7: 0 | DV7: 0 | DW7: 0 | DX7: 0 | DY7: 15 | DZ7: 6 | EA7: 0 | EB7: 0 | EC7: 0 | ED7: 0 | EE7: 0 | EF7: 0 | EG7: 0 | EH7: 0 | EI7: 0 | EJ7: 0 | EK7: 0 | EL7: 0 | EM7: 0 | EN7: 0 | EO7: 0 | EP7: 0 | EQ7: 0 | ER7: 0 | ES7: 0 | ET7: 0 | EU7: 0 | EV7: 0 | EW7: 22 | EX7: 15 | EY7: 0 | EZ7: 0 | FA7: 0 | FB7: 0 | FC7: 0 | FD7: 0 | FE7: 0 | FF7: 0 | FG7: 0 | FH7: 0 | FI7: 32 | FJ7: 10 | FK7: 0 | FL7: 0 | FM7: 0 | FN7: 0 | FO7: 0 | FP7: 0 | FQ7: 0 | FR7: 0 | FS7: 0 | FT7: 0 | FU7: 0 | FV7: 1 | FW7: 0 | FX7: 0
A8: 41084 | B8: Keeler Court/Southcrest AHSC | C8: 1290-1294 Keeler Court | D8: San Diego | E8: 92113 | F8: San Diego | G8: Community HousingWorks | H8: 2815 Camino del Rio South, Suite 350 | I8: San Diego | J8: CA | K8: 92108 | Q8: 71 | R8: 70 | S8: 0.04 | T8: Y | U8: N | V8: Y | W8: Y | X8: N | Y8: 80 | Z8: 40 | AA8: 51 | AB8: ICP | AC8: 9934273 | AD8: 7188481 | AE8: 0 | AF8: 2503642 | AG8: 0 | AH8: 242150 | AI8: 5895.65 | AJ8: 15 | AK8: 35 | AL8: 0.48 | AM8: 0.99 | AN8: 0 | AO8: 0 | AP8: 0 | AR8: 44.65408805 | AS8: 71 | AT8: 86 | AU8: 86:71 | AW8: 2 | AX8: 36:71 | AY8: 6 | AZ8: Class IV | BA8: 6 | BB8: Crosswalks | BC8: 2 | BD8: 0 | BE8: 0 | BF8: 2 | BG8: 0 | BH8: 0 | BI8: 0 | BJ8: 0 | BK8: 0 | BL8: 0 | BM8: Y | BO8: 253209 | BP8: 1147988 | BQ8: 0 | BR8: 0 | BX8: Y | BY8: N | BZ8: N | CA8: Y | CB8: N | CC8: N | CD8: N | CE8: N | CF8: N | CG8: N | CH8: N | CI8: N | CJ8: N | CK8: Y | CL8: Y | CM8: Y | CN8: N | CO8: N | CP8: Y | CQ8: Look at the individual factors in CalEnviroScreen 3.02 that are most impacting an identified disadvantaged or low-income community (i.e., factors that score above the 75th percentile), and select a project that reduces the impacts of one of those factors | CR8: Y | CS8: N | CT8: N | CU8: N | CV8: 10 | CW8: 7 | CX8: 7 | CY8: 5 | CZ8: 5 | DA8: 5 | DB8: 2 | DC8: 5 | DD8: 3 | DE8: 0 | DF8: 0 | DG8: 0 | DH8: 0 | DI8: 0 | DJ8: 0 | DK8: 0 | DL8: 0 | DM8: 0 | DN8: 0 | DO8: 0 | DP8: 0 | DQ8: 0 | DR8: 0 | DS8: 0 | DT8: 0 | DU8: 0 | DV8: 0 | DW8: 0 | DX8: 4 | DY8: 6 | DZ8: 5 | EA8: 0 | EB8: 0 | EC8: 0 | ED8: 0 | EE8: 0 | EF8: 0 | EG8: 0 | EH8: 0 | EI8: 2 | EJ8: 2 | EK8: 2 | EL8: 1 | EM8: 0 | EN8: 0 | EO8: 0 | EP8: 0 | EQ8: 0 | ER8: 0 | ES8: 0 | ET8: 0 | EU8: 6 | EV8: 8 | EW8: 6 | EX8: 8 | EY8: 0 | EZ8: 0 | FA8: 0 | FB8: 0 | FC8: 0 | FD8: 0 | FE8: 0 | FF8: 0 | FG8: 2 | FH8: 6 | FI8: 4 | FJ8: 8 | FK8: 0 | FL8: 0 | FM8: 0 | FN8: 0 | FO8: 0 | FP8: 0 | FQ8: 0 | FR8: 0 | FS8: 0 | FT8: 0 | FU8: 1 | FV8: 0 | FW8: 0 | FX8: 0
A9: 41085 | B9: Stonegate Village | C9: North east corner of Walnut Avenue and North 1st Street | D9: Patterson | E9: 95363 | F9: Stanislaus | G9: Self-Help Enterprises | H9: 8445 W. Elowin Court | I9: Visalia | J9: CA | K9: 93290 | Q9: 66 | R9: 0 | S9: 0.04 | T9: Y | U9: N | V9: Y | W9: Y | X9: Y | Y9: 21 | Z9: 12 | AA9: 10 | AB9: RIPA | AC9: 12075537 | AD9: 10248722 | AE9: 0 | AF9: 1375000 | AG9: 125000 | AH9: 326815 | AI9: 12040.04 | AJ9: 14 | AK9: 51 | AL9: 0.43 | AM9: 0.98 | AN9: 0 | AO9: 0 | AP9: 0 | AQ9: 0 | AR9: 20.37037037 | AS9: 2376 | AT9: 101 | AU9: 101:66 | AV9: 2 | AW9: 2 | AX9: 8:11 | AY9: 0.55 | AZ9: Class II | BA9: 1 | BB9: Crosswalks | BC9: 20 | BD9: 0 | BE9: 0 | BF9: 0 | BG9: 0 | BH9: 20 | BI9: 0 | BJ9: 0 | BK9: 8 | BL9: 3 | BM9: Y | BN9: Y | BO9: 450000 | BP9: 850000 | BQ9: 0 | BR9: 115000 | BS9: Y | BT9: Y | BU9: Y | BV9: Y | BW9: Y | BX9: N | BY9: Y | BZ9: N | CA9: Y | CB9: N | CC9: N | CD9: N | CE9: N | CF9: N | CG9: N | CH9: N | CI9: N | CJ9: N | CK9: Y | CL9: Y | CM9: Y | CN9: Y | CO9: Y | CP9: N | CQ9: Receive documentation of support from local community-based organizations and/or residents (e.g., letters, emails) and select a project with documented broad community support | CR9: Y | CS9: N | CT9: N | CU9: N | CV9: 9 | CW9: 10 | CX9: 2 | CY9: 4 | CZ9: 2 | DA9: 5 | DB9: 2 | DC9: 5 | DD9: 3 | DE9: 0 | DF9: 0 | DG9: 0 | DH9: 0 | DI9: 0 | DJ9: 0 | DK9: 0 | DL9: 0 | DM9: 0 | DN9: 0 | DO9: 0 | DP9: 0 | DQ9: 0 | DR9: 0 | DS9: 0 | DT9: 0 | DU9: 0 | DV9: 0 | DW9: 0 | DX9: 4 | DY9: 5 | DZ9: 5 | EA9: 0 | EB9: 0 | EC9: 0 | ED9: 0 | EE9: 0 | EF9: 0 | EG9: 0 | EH9: 0 | EI9: 0 | EJ9: 0 | EK9: 0 | EL9: 0 | EM9: 0 | EN9: 0 | EO9: 0 | EP9: 11 | EQ9: 10 | ER9: 9 | ES9: 0 | ET9: 0 | EU9: 0 | EV9: 7 | EW9: 7 | EX9: 7 | EY9: 0 | EZ9: 0 | FA9: 0 | FB9: 0 | FC9: 0 | FD9: 0 | FE9: 0 | FF9: 0 | FG9: 0 | FH9: 0 | FI9: 0 | FJ9: 0 | FK9: 0 | FL9: 0 | FM9: 0 | FN9: 0 | FO9: 0 | FP9: 0 | FQ9: 0 | FR9: 0 | FS9: 0 | FT9: 0 | FU9: 0 | FV9: 1 | FW9: 0 | FX9: 0
A10: 41105 | B10: Blackstone & McKinley Transit Oriented Development (BMTOD) | C10: 1501 North Blackstone Avenue | D10: Fresno | E10: 93703 | F10: Fresno | G10: 1501 N. Blackstone Ave., L.P. | H10: 21031 Ventura Boulevard, Suite 200 | I10: Woodland Hills | J10: CA | K10: 91364 | Q10: 88 | R10: 87 | S10: 0.04 | T10: Y | U10: N | V10: Y | W10: Y | X10: Y | Y10: 31 | Z10: 14 | AA10: 16 | AB10: ICP | AC10: 16039962 | AD10: 12600000 | AE10: 0 | AF10: 2390549 | AG10: 1022413 | AH10: 27000 | AI10: 8833.52 | AJ10: 18 | AK10: 35 | AL10: 0.5 | AM10: 0.99 | AN10: 0 | AO10: 0 | AP10: 0 | AQ10: 7500 | AR10: 30.34482759 | AS10: 88 | AT10: 96 | AU10: 12:11 | AV10: 16 | AW10: 2 | AX10: 15:22 | AY10: 2.15 | BA10: 0 | BC10: 0 | BD10: 0 | BE10: 0 | BF10: 0 | BG10: 0 | BH10: 0 | BI10: 0 | BJ10: 0 | BK10: 0 | BL10: 0 | BM10: N | BN10: Y | BO10: 1207400 | BP10: 0 | BQ10: 680850 | BR10: 0 | BT10: Y | BX10: N | BY10: N | BZ10: N | CA10: Y | CB10: N | CC10: N | CD10: N | CE10: Y | CF10: N | CG10: N | CH10: N | CI10: N | CJ10: N | CK10: Y | CL10: Y | CM10: Y | CN10: Y | CO10: Y | CP10: N | CQ10: Refer to the list of common needs for disadvantaged communities in CARB’s Funding Guidelines Table 2-2 (and attached herein for reference) and select a project that addresses a listed need | CR10: Y | CS10: N | CT10: N | CU10: N | CV10: 10 | CW10: 10 | CX10: 5 | CY10: 4 | CZ10: 4 | DA10: 5 | DB10: 2 | DC10: 5 | DD10: 3 | DE10: 0 | DF10: 0 | DG10: 0 | DH10: 0 | DI10: 0 | DJ10: 0 | DK10: 0 | DL10: 0 | DM10: 0 | DN10: 0 | DO10: 0 | DP10: 0 | DQ10: 0 | DR10: 0 | DS10: 0 | DT10: 0 | DU10: 0 | DV10: 0 | DW10: 0 | DX10: 5 | DY10: 6 | DZ10: 7 | EA10: 0 | EB10: 0 | EC10: 0 | ED10: 0 | EE10: 0 | EF10: 0 | EG10: 0 | EH10: 0 | EI10: 0 | EJ10: 0 | EK10: 0 | EL10: 0 | EM10: 0 | EN10: 0 | EO10: 0 | EP10: 0 | EQ10: 0 | ER10: 0 | ES10: 0 | ET10: 0 | EU10: 0 | EV10: 10 | EW10: 12 | EX10: 13 | EY10: 0 | EZ10: 0 | FA10: 0 | FB10: 0 | FC10: 0 | FD10: 0 | FE10: 0 | FF10: 0 | FG10: 0 | FH10: 12 | FI10: 11 | FJ10: 11 | FK10: 0 | FL10: 0 | FM10: 0 | FN10: 0 | FO10: 0 | FP10: 0 | FQ10: 0 | FR10: 0 | FS10: 0 | FT10: 0 | FU10: 1 | FV10: 0 | FW10: 0 | FX10: 0
A11: 41119 | B11: Mountain View Village | C11: 11316 Main Street | D11: Lamont | E11: 93241 | F11: Kern | G11: Housing Authority of the County of Kern | H11: 601 24th Street | I11: Bakersfield | J11: CA | K11: 93301 | L11: County of Kern Public Works Department | M11: 2700 M Street, Suite 400 | N11: Bakersfield | O11: CA | P11: 93301 | Q11: 40 | R11: 0 | S11: 0.04 | T11: Y | U11: N | V11: Y | W11: Y | X11: Y | Y11: 32 | Z11: 14 | AA11: 21 | AB11: RIPA | AC11: 8226250 | AD11: 6053997 | AE11: 0 | AF11: 2065688 | AG11: 20000 | AH11: 86565 | AI11: 6907.79 | AJ11: 9 | AK11: 31 | AL11: 0.44 | AM11: 1 | AN11: 0 | AO11: 0 | AP11: 0 | AR11: 21.50537634 | AS11: 40 | AT11: 51 | AU11: 51:40 | AV11: 8 | AW11: 2 | AX11: 21:40 | AY11: 21 | AZ11: Class IClass II | BA11: 12 | BB11: Crosswalks | BC11: 0 | BD11: 0 | BE11: 0 | BF11: 0 | BG11: 0 | BH11: 0 | BI11: 1 | BJ11: 0 | BK11: 2 | BL11: 2 | BM11: Y | BN11: Y | BO11: 781392 | BP11: 17600 | BQ11: 0 | BR11: 20000 | BU11: Y | BV11: Y | BW11: Y | BX11: Y | BY11: N | BZ11: N | CA11: Y | CB11: N | CC11: N | CD11: N | CE11: N | CF11: N | CG11: N | CH11: N | CI11: N | CJ11: N | CK11: Y | CL11: Y | CM11: Y | CN11: Y | CO11: Y | CP11: N | CQ11: Host community meetings, workshops, outreach efforts, or public meetings as part of planning process to engage local residents and community groups for input on community or household needs, and provide documentation showing how the received input was considered in the selection of projects that address those needs | CR11: Y | CS11: N | CT11: N | CU11: N | CV11: 10 | CW11: 10 | CX11: 6 | CY11: 2 | CZ11: 5 | DA11: 5 | DB11: 2 | DC11: 5 | DD11: 3 | DE11: 0 | DF11: 0 | DG11: 0 | DH11: 0 | DI11: 0 | DJ11: 0 | DK11: 0 | DL11: 0 | DM11: 0 | DN11: 0 | DO11: 0 | DP11: 0 | DQ11: 0 | DR11: 0 | DS11: 0 | DT11: 0 | DU11: 0 | DV11: 0 | DW11: 0 | DX11: 0 | DY11: 9 | DZ11: 0 | EA11: 0 | EB11: 0 | EC11: 0 | ED11: 0 | EE11: 0 | EF11: 0 | EG11: 0 | EH11: 0 | EI11: 0 | EJ11: 0 | EK11: 0 | EL11: 0 | EM11: 0 | EN11: 0 | EO11: 0 | EP11: 0 | EQ11: 11 | ER11: 0 | ES11: 0 | ET11: 0 | EU11: 0 | EV11: 0 | EW11: 20 | EX11: 0 | EY11: 0 | EZ11: 0 | FA11: 0 | FB11: 0 | FC11: 0 | FD11: 0 | FE11: 0 | FF11: 0 | FG11: 0 | FH11: 0 | FI11: 0 | FJ11: 0 | FK11: 0 | FL11: 0 | FM11: 0 | FN11: 0 | FO11: 0 | FP11: 0 | FQ11: 0 | FR11: 0 | FS11: 0 | FT11: 0 | FU11: 0 | FV11: 0 | FW11: 0 | FX11: 0
A12: 41136 | B12: Alameda Site A Family Apartments | C12: Corner of West Trident Avenue and Orion Street and part of the approved master planned community at the former Alameda Point Naval Base called Site A. | D12: Alameda | E12: 94501 | F12: Alameda | G12: Eden Housing, Inc. | H12: 22645 Grand Street | I12: Hayward | J12: CA | K12: 94541 | L12: AC Transit | M12: 1100 Seminary Ave | N12: Oakland | O12: CA | P12: 94621 | Q12: 70 | R12: 69 | S12: 0.04 | T12: Y | U12: N | V12: Y | W12: Y | X12: Y | Y12: 18 | Z12: 9 | AA12: 13 | AB12: ICP | AC12: 7934360 | AD12: 5500000 | AE12: 0 | AF12: 1800000 | AG12: 400000 | AH12: 234360 | AI12: 9448.31 | AJ12: 23 | AK12: 21 | AL12: 0.43 | AM12: 0.99 | AN12: 0 | AO12: 17 | AP12: 15 | AQ12: 0 | AR12: 70 | AS12: 70 | AT12: 70 | AU12: 1:1 | AV12: 0 | AW12: 3 | AX12: 1:1 | AY12: 1.8 | AZ12: Class IClass IV | BA12: 13 | BB12: Crosswalks | BC12: 1 | BD12: 0 | BE12: 0 | BF12: 1 | BG12: 0 | BH12: 0 | BI12: 0 | BJ12: 0 | BK12: 7 | BL12: 1 | BM12: Y | BN12: Y | BO12: 438000 | BP12: 1300000 | BQ12: 382640 | BR12: 0 | BS12: Y | BT12: N | BU12: Y | BV12: Y | BW12: Y | BX12: Y | BY12: N | BZ12: N | CA12: Y | CB12: N | CC12: N | CD12: N | CE12: N | CF12: N | CG12: N | CH12: N | CI12: N | CJ12: N | CK12: Y | CL12: N | CM12: N | CN12: N | CO12: Y | CP12: N | CQ12: Refer to the list of common needs for disadvantaged communities in CARB’s Funding Guidelines Table 2-2 (and attached herein for reference) and select a project that addresses a listed need | CR12: Y | CS12: N | CT12: N | CU12: N | CV12: 9 | CW12: 5 | CX12: 5 | CY12: 4 | CZ12: 5 | DA12: 5 | DB12: 1 | DC12: 5 | DD12: 3 | DE12: 0 | DF12: 0 | DG12: 0 | DH12: 0 | DI12: 0 | DJ12: 0 | DK12: 0 | DL12: 1 | DM12: 13 | DN12: 0 | DO12: 0 | DP12: 0 | DQ12: 0 | DR12: 0 | DS12: 0 | DT12: 0 | DU12: 0 | DV12: 0 | DW12: 0 | DX12: 4 | DY12: 0 | DZ12: 5 | EA12: 0 | EB12: 0 | EC12: 0 | ED12: 0 | EE12: 0 | EF12: 0 | EG12: 0 | EH12: 0 | EI12: 0 | EJ12: 0 | EK12: 0 | EL12: 0 | EM12: 0 | EN12: 0 | EO12: 0 | EP12: 4 | EQ12: 11 | ER12: 6 | ES12: 0 | ET12: 0 | EU12: 0 | EV12: 0 | EW12: 0 | EX12: 0 | EY12: 0 | EZ12: 0 | FA12: 0 | FB12: 0 | FC12: 0 | FD12: 0 | FE12: 0 | FF12: 0 | FG12: 0 | FH12: 5 | FI12: 11 | FJ12: 9 | FK12: 0 | FL12: 0 | FM12: 0 | FN12: 0 | FO12: 0 | FP12: 0 | FQ12: 0 | FR12: 0 | FS12: 0 | FT12: 0 | FU12: 1 | FV12: 0 | FW12: 0 | FX12: 0
A13: 41146 | B13: Rumrill Complete Streets Project | C13: Rumrill Boulevard (intersection at Costa Avenue to intersection at San Pablo Avenue) | D13: San Pablo | E13: 94806 | F13: Contra Costa | G13: City of San Pablo | H13: 13831 San Pablo Ave | I13: San Pablo | J13: CA | K13: 94806 | Q13: 0 | R13: 0 | S13: 0.04 | T13: N | U13: N | V13: Y | W13: Y | X13: Y | Y13: 9 | Z13: 15 | AA13: 11 | AB13: ICP | AC13: 1000000 | AD13: 0 | AE13: 0 | AF13: 530500 | AG13: 442500 | AH13: 27000 | AI13: 386.2 | AJ13: 0 | AK13: 0 | AL13: 0 | AM13: 0 | AN13: 0 | AO13: 0 | AP13: 0 | AR13: 0 | AU13: 0:0 | AX13: 0:0 | AY13: 3.45 | AZ13: Class IVClass I | BA13: 1 | BB13: Crosswalks | BC13: 0 | BD13: 0 | BE13: 0 | BF13: 0 | BG13: 0 | BH13: 0 | BI13: 12 | BJ13: 12 | BK13: 12 | BL13: 2 | BM13: Y | BN13: N | BO13: 525520 | BP13: 0 | BQ13: 356500 | BR13: 75000 | BS13: Y | BT13: Y | BU13: Y | BV13: Y | BW13: Y | BX13: N | BY13: Y | BZ13: N | CA13: N | CB13: N | CC13: N | CD13: N | CE13: N | CF13: N | CG13: N | CH13: Y | CI13: N | CJ13: N | CK13: Y | CL13: Y | CM13: Y | CN13: Y | CO13: Y | CP13: N | CQ13: Look at the individual factors in CalEnviroScreen 3.02 that are most impacting an identified disadvantaged or low-income community (i.e., factors that score above the 75th percentile), and select a project that reduces the impacts of one of those factors | CR13: Y | CS13: N | CT13: N | CU13: N | CV13: 10 | CW13: 0 | CX13: 3 | CY13: 5 | CZ13: 5 | DA13: 2 | DB13: 1 | DC13: 0 | DD13: 2.5 | DE13: 0 | DF13: 0 | DG13: 0 | DH13: 0 | DI13: 0 | DJ13: 0 | DK13: 0 | DL13: 0 | DM13: 0 | DN13: 0 | DO13: 0 | DP13: 0 | DQ13: 0 | DR13: 0 | DS13: 0 | DT13: 0 | DU13: 0 | DV13: 0 | DW13: 0 | DX13: 0 | DY13: 0 | DZ13: 0 | EA13: 0 | EB13: 0 | EC13: 0 | ED13: 0 | EE13: 0 | EF13: 0 | EG13: 0 | EH13: 0 | EI13: 0 | EJ13: 0 | EK13: 0 | EL13: 0 | EM13: 0 | EN13: 0 | EO13: 0 | EP13: 0 | EQ13: 0 | ER13: 0 | ES13: 0 | ET13: 0 | EU13: 0 | EV13: 0 | EW13: 0 | EX13: 0 | EY13: 0 | EZ13: 0 | FA13: 0 | FB13: 0 | FC13: 0 | FD13: 0 | FE13: 0 | FF13: 0 | FG13: 0 | FH13: 0 | FI13: 0 | FJ13: 0 | FK13: 0 | FL13: 0 | FM13: 0 | FN13: 0 | FO13: 0 | FP13: 0 | FQ13: 0 | FR13: 0 | FS13: 0 | FT13: 0 | FU13: 0 | FV13: 0 | FW13: 0 | FX13: 0
A14: 41163 | B14: Corazon del Valle Village | C14: 36270 Lassen Avenue | D14: Huron | E14: 93234 | F14: Fresno | G14: City of Huron | H14: 36311 South Lassen Ave | I14: Huron | J14: CA | K14: 93234 | Q14: 67 | R14: 66 | S14: 0.04 | T14: Y | U14: N | V14: N | W14: Y | X14: N | Y14: 31 | Z14: 12 | AA14: 21 | AB14: RIPA | AC14: 9995135.5 | AD14: 7360000 | AE14: 0 | AF14: 2635135.5 | AG14: 0 | AH14: 0 | AI14: 2692.89 | AJ14: 14 | AK14: 0 | AL14: 0.5 | AM14: 0.99 | AN14: 0 | AO14: 0 | AP14: 0 | AR14: 31.40503338 | AS14: 67 | AT14: 67 | AU14: 1:1 | AV14: 60 | AW14: 2 | AX14: 60:67 | AY14: 2.15 | AZ14: Class IClass IV | BA14: 2 | BB14: Crosswalks | BC14: 0 | BD14: 0 | BE14: 0 | BF14: 0 | BG14: 0 | BH14: 0 | BI14: 0 | BJ14: 0 | BK14: 0 | BL14: 0 | BM14: Y | BO14: 1389624 | BP14: 1108011.5 | BQ14: 0 | BR14: 0 | BX14: Y | BY14: N | BZ14: N | CA14: Y | CB14: N | CC14: N | CD14: N | CE14: N | CF14: N | CG14: N | CH14: N | CI14: N | CJ14: N | CK14: Y | CL14: Y | CM14: Y | CN14: Y | CO14: Y | CP14: Y | CQ14: Host community meetings, workshops, outreach efforts, or public meetings as part of planning process to engage local residents and community groups for input on community or household needs, and provide documentation showing how the received input was considered in the selection of projects that address those needs | CR14: Y | CS14: N | CT14: N | CU14: Y | CV14: 10 | CW14: 3 | CX14: 6 | CY14: 1 | CZ14: 2 | DA14: 0 | DB14: 0 | DC14: 5 | DD14: 3 | DE14: 0 | DF14: 0 | DG14: 0 | DH14: 0 | DI14: 0 | DJ14: 0 | DK14: 0 | DL14: 0 | DM14: 0 | DN14: 0 | DO14: 0 | DP14: 0 | DQ14: 0 | DR14: 0 | DS14: 0 | DT14: 0 | DU14: 0 | DV14: 0 | DW14: 0 | DX14: 0 | DY14: 7 | DZ14: 7 | EA14: 0 | EB14: 0 | EC14: 0 | ED14: 0 | EE14: 0 | EF14: 0 | EG14: 0 | EH14: 0 | EI14: 0 | EJ14: 0 | EK14: 0 | EL14: 0 | EM14: 0 | EN14: 0 | EO14: 0 | EP14: 0 | EQ14: 0 | ER14: 0 | ES14: 0 | ET14: 0 | EU14: 0 | EV14: 0 | EW14: 0 | EX14: 0 | EY14: 0 | EZ14: 0 | FA14: 0 | FB14: 0 | FC14: 32 | FD14: 20 | FE14: 0 | FF14: 0 | FG14: 0 | FH14: 0 | FI14: 0 | FJ14: 0 | FK14: 0 | FL14: 0 | FM14: 0 | FN14: 0 | FO14: 0 | FP14: 0 | FQ14: 0 | FR14: 0 | FS14: 0 | FT14: 1 | FU14: 0 | FV14: 0 | FW14: 0 | FX14: 0
A15: 41203 | B15: Coliseum Area - International Boulevard TOD Partnership | C15: 905 72nd Avenue | D15: Oakland | E15: 94621 | F15: Alameda | G15: Resources for Community Development | H15: 2220 Oxford Street | I15: Berkeley | J15: CA | K15: 94704 | L15: City of Oakland | M15: 250 Frank Ogawa Plaza | N15: Oakland | O15: CA | P15: 94612 | Q15: 59 | R15: 59 | S15: 0.04 | T15: Y | U15: Y | V15: Y | W15: Y | X15: Y | Y15: 18 | Z15: 9 | AA15: 13 | AB15: TOD | AC15: 14000000 | AD15: 6000000 | AE15: 330000 | AF15: 6700106 | AG15: 786000 | AH15: 183894 | AI15: 205467 | AJ15: 15 | AK15: 43 | AL15: 0.42 | AM15: 0.98 | AN15: 0 | AO15: 15 | AP15: 0 | AR15: 128.5020008 | AS15: 59 | AT15: 30 | AU15: 30:59 | AV15: 0 | AW15: 0 | AX15: 72:59 | AY15: 0.53 | AZ15: Class I | BA15: 12 | BB15: Crosswalks | BC15: 0 | BD15: 0 | BE15: 0 | BF15: 0 | BG15: 0 | BH15: 0 | BI15: 5 | BJ15: 5 | BK15: 0 | BL15: 1 | BM15: Y | BN15: Y | BO15: 5032331 | BP15: 300000 | BQ15: 0 | BR15: 586000 | BS15: Y | BT15: N | BU15: Y | BW15: Y | BX15: Y | BY15: Y | BZ15: N | CA15: N | CB15: N | CC15: N | CD15: N | CE15: N | CF15: N | CG15: N | CH15: N | CI15: N | CJ15: N | CK15: Y | CL15: Y | CM15: Y | CN15: Y | CO15: Y | CP15: Y | CQ15: Look at the individual factors in CalEnviroScreen 3.02 that are most impacting an identified disadvantaged or low-income community (i.e., factors that score above the 75th percentile), and select a project that reduces the impacts of one of those factors | CR15: Y | CS15: N | CT15: N | CU15: N | CV15: 8 | CW15: 10 | CX15: 8 | CY15: 4 | CZ15: 5 | DA15: 4 | DB15: 1 | DC15: 5 | DD15: 3 | DE15: 0 | DF15: 0 | DG15: 0 | DH15: 0 | DI15: 0 | DJ15: 0 | DK15: 0 | DL15: 4 | DM15: 3 | DN15: 4 | DO15: 0 | DP15: 0 | DQ15: 0 | DR15: 0 | DS15: 0 | DT15: 0 | DU15: 0 | DV15: 0 | DW15: 0 | DX15: 4 | DY15: 0 | DZ15: 0 | EA15: 0 | EB15: 0 | EC15: 0 | ED15: 0 | EE15: 0 | EF15: 0 | EG15: 0 | EH15: 0 | EI15: 0 | EJ15: 0 | EK15: 0 | EL15: 0 | EM15: 0 | EN15: 0 | EO15: 0 | EP15: 0 | EQ15: 3 | ER15: 3 | ES15: 0 | ET15: 0 | EU15: 0 | EV15: 3 | EW15: 22 | EX15: 12 | EY15: 0 | EZ15: 0 | FA15: 0 | FB15: 0 | FC15: 0 | FD15: 0 | FE15: 0 | FF15: 0 | FG15: 0 | FH15: 0 | FI15: 0 | FJ15: 0 | FK15: 0 | FL15: 0 | FM15: 0 | FN15: 0 | FO15: 0 | FP15: 0 | FQ15: 0 | FR15: 0 | FS15: 0 | FT15: 0 | FU15: 0 | FV15: 1 | FW15: 0 | FX15: 0
A16: 41208 | B16: 1950 Mission Street | C16: 1950 Mission Street | D16: San Francisco | E16: 94103 | F16: San Francisco | G16: BRIDGE Housing Corporation | H16: 600 California Street, Suite 900 | I16: San Francisco | J16: CA | K16: 94108 | L16: Mission Housing Development Corporation | M16: 474 Valencia Street #280 | N16: San Francisco | O16: CA | P16: 94103 | Q16: 157 | R16: 155 | S16: 0.04 | T16: Y | U16: N | V16: Y | W16: Y | X16: Y | Y16: 17 | Z16: 11 | AA16: 12 | AB16: TOD | AC16: 15000000.25 | AD16: 10000000 | AE16: 0 | AF16: 3750000 | AG16: 750000.2482 | AH16: 500000 | AI16: 177331.71 | AJ16: 40 | AK16: 41 | AL16: 0.49 | AM16: 0.99 | AN16: 0 | AO16: 40 | AP16: 0 | AQ16: 10630 | AR16: 186.4608076 | AS16: 157 | AT16: 0 | AU16: 0:1 | AV16: 0 | AW16: 0 | AX16: 138:157 | AY16: 2.6 | AZ16: Class IVClass II | BA16: 80 | BB16: Crosswalks | BC16: 0 | BD16: 0 | BE16: 0 | BF16: 0 | BG16: 0 | BH16: 0 | BI16: 0 | BJ16: 0 | BK16: 0 | BL16: 0 | BM16: Y | BN16: N | BO16: 3750000 | BP16: 0 | BQ16: 0 | BR16: 0 | BX16: N | BY16: N | BZ16: Y | CA16: Y | CB16: N | CC16: N | CD16: N | CE16: N | CF16: N | CG16: N | CH16: N | CI16: N | CJ16: N | CK16: Y | CL16: N | CM16: N | CN16: N | CO16: Y | CP16: N | CQ16: Host community meetings, workshops, outreach efforts, or public meetings as part of planning process to engage local residents and community groups for input on community or household needs, and provide documentation showing how the received input was considered in the selection of projects that address those needs | CR16: Y | CS16: N | CT16: N | CU16: N | CV16: 10 | CW16: 5 | CX16: 7 | CY16: 5 | CZ16: 5 | DA16: 5 | DB16: 2 | DC16: 5 | DD16: 3 | DE16: 0 | DF16: 0 | DG16: 0 | DH16: 0 | DI16: 0 | DJ16: 0 | DK16: 0 | DL16: 0 | DM16: 0 | DN16: 0 | DO16: 0 | DP16: 0 | DQ16: 0 | DR16: 0 | DS16: 0 | DT16: 0 | DU16: 0 | DV16: 0 | DW16: 0 | DX16: 12 | DY16: 23 | DZ16: 5 | EA16: 0 | EB16: 0 | EC16: 0 | ED16: 0 | EE16: 0 | EF16: 0 | EG16: 0 | EH16: 0 | EI16: 0 | EJ16: 0 | EK16: 0 | EL16: 0 | EM16: 0 | EN16: 0 | EO16: 3 | EP16: 2 | EQ16: 4 | ER16: 2 | ES16: 0 | ET16: 0 | EU16: 7 | EV16: 7 | EW16: 14 | EX16: 2 | EY16: 0 | EZ16: 0 | FA16: 0 | FB16: 0 | FC16: 0 | FD16: 0 | FE16: 0 | FF16: 0 | FG16: 22 | FH16: 15 | FI16: 32 | FJ16: 5 | FK16: 0 | FL16: 0 | FM16: 0 | FN16: 0 | FO16: 0 | FP16: 0 | FQ16: 0 | FR16: 0 | FS16: 0 | FT16: 0 | FU16: 0 | FV16: 2 | FW16: 0 | FX16: 0
A17: 41215 | B17: Grand View Village Connectivity Project | C17: 228 N. Hunter Street, 240 N. Hunter Street, 250 N. Hunter Street, 241 North San Joaquin Street | D17: Stockton | E17: 95202 | F17: San Joaquin | G17: VCOR L.P. | H17: 315 N. San Joaquin Street | I17: Stockton | J17: CA | K17: 95202 | Q17: 63 | R17: 62 | S17: 0.04 | T17: Y | U17: Y | V17: Y | W17: Y | X17: Y | Y17: 13 | Z17: 5 | AA17: 9 | AB17: ICP | AC17: 11082558.25 | AD17: 8931774 | AE17: 495880 | AF17: 909990.4 | AG17: 594189.85 | AH17: 150724 | AI17: 6479.9 | AJ17: 13 | AK17: 24 | AL17: 0.5 | AM17: 0.98 | AN17: 0 | AO17: 0 | AP17: 0 | AQ17: 11150 | AR17: 81.29032258 | AS17: 63 | AT17: 65 | AU17: 65:63 | AV17: 0 | AW17: 4 | AX17: 32:63 | AY17: 2.11 | AZ17: Class IIClass IIClass III | BA17: 5 | BB17: Crosswalks | BC17: 0 | BD17: 0 | BE17: 0 | BF17: 0 | BG17: 0 | BH17: 0 | BI17: 3 | BJ17: 0 | BK17: 0 | BL17: 0 | BM17: N | BN17: N | BO17: 574670 | BP17: 84000 | BQ17: 39180 | BR17: 170000 | BT17: Y | BU17: Y | BV17: N | BW17: N | BX17: Y | BY17: Y | BZ17: N | CA17: N | CB17: N | CC17: N | CD17: N | CE17: N | CF17: N | CG17: N | CH17: N | CI17: N | CJ17: N | CK17: Y | CL17: Y | CM17: Y | CN17: Y | CO17: Y | CP17: Y | CQ17: Host community meetings, workshops, outreach efforts, or public meetings as part of planning process to engage local residents and community groups for input on community or household needs, and provide documentation showing how the received input was considered in the selection of projects that address those needs | CR17: Y | CS17: N | CT17: N | CU17: N | CV17: 10 | CW17: 5 | CX17: 1 | CY17: 5 | CZ17: 3 | DA17: 5 | DB17: 1 | DC17: 5 | DD17: 3 | DE17: 0 | DF17: 0 | DG17: 0 | DH17: 0 | DI17: 0 | DJ17: 0 | DK17: 0 | DL17: 0 | DM17: 0 | DN17: 0 | DO17: 0 | DP17: 0 | DQ17: 0 | DR17: 0 | DS17: 0 | DT17: 0 | DU17: 0 | DV17: 0 | DW17: 0 | DX17: 4 | DY17: 5 | DZ17: 4 | EA17: 0 | EB17: 0 | EC17: 0 | ED17: 0 | EE17: 0 | EF17: 0 | EG17: 0 | EH17: 0 | EI17: 0 | EJ17: 0 | EK17: 0 | EL17: 0 | EM17: 0 | EN17: 0 | EO17: 0 | EP17: 0 | EQ17: 0 | ER17: 0 | ES17: 0 | ET17: 0 | EU17: 0 | EV17: 5 | EW17: 11 | EX17: 8 | EY17: 0 | EZ17: 0 | FA17: 0 | FB17: 0 | FC17: 0 | FD17: 0 | FE17: 0 | FF17: 0 | FG17: 0 | FH17: 7 | FI17: 11 | FJ17: 7 | FK17: 0 | FL17: 0 | FM17: 0 | FN17: 0 | FO17: 0 | FP17: 0 | FQ17: 0 | FR17: 0 | FS17: 0 | FT17: 0 | FU17: 0 | FV17: 1 | FW17: 0 | FX17: 0
A18: 41219 | B18: Mutual Housing 5th Street ICP | C18: 2100 5th Street | D18: Davis | E18: 95618 | F18: Yolo | G18: Mutual Housing California | H18: 8001 Fruitridge Road, Suite A | I18: Sacramento | J18: CA | K18: 95820 | Q18: 38 | R18: 37 | S18: 0.04 | T18: Y | U18: N | V18: Y | W18: Y | X18: N | Y18: 4 | Z18: 3 | AA18: 3 | AB18: ICP | AC18: 5539483 | AD18: 4965583 | AE18: 0 | AF18: 558900 | AG18: 0 | AH18: 15000 | AI18: 3046.9 | AJ18: 8 | AK18: 11 | AL18: 0.5 | AM18: 0.97 | AN18: 0 | AO18: 0 | AP18: 0 | AQ18: 0 | AR18: 36.78606002 | AS18: 37 | AT18: 43 | AU18: 43:38 | AV18: 0 | AW18: 3 | AX18: 71:38 | AY18: 0.92 | AZ18: Class IVClass I | BA18: 1 | BB18: Crosswalks | BC18: 0 | BD18: 0 | BE18: 0 | BF18: 0 | BG18: 0 | BH18: 0 | BI18: 0 | BJ18: 0 | BK18: 0 | BL18: 0 | BM18: Y | BO18: 481700 | BP18: 32600 | BQ18: 0 | BR18: 0 | BX18: N | BY18: N | BZ18: N | CA18: Y | CB18: N | CC18: N | CD18: N | CE18: N | CF18: N | CG18: N | CH18: N | CI18: Y | CJ18: N | CK18: Y | CL18: N | CM18: N | CN18: N | CO18: Y | CP18: N | CQ18: Look at the individual factors in CalEnviroScreen 3.02 that are most impacting an identified disadvantaged or low-income community (i.e., factors that score above the 75th percentile), and select a project that reduces the impacts of one of those factors | CR18: Y | CS18: N | CT18: N | CU18: N | CV18: 8 | CW18: 10 | CX18: 3 | CY18: 5 | CZ18: 5 | DA18: 5 | DB18: 2 | DC18: 5 | DD18: 3 | DE18: 0 | DF18: 0 | DG18: 0 | DH18: 0 | DI18: 0 | DJ18: 0 | DK18: 0 | DL18: 0 | DM18: 0 | DN18: 0 | DO18: 0 | DP18: 0 | DQ18: 0 | DR18: 0 | DS18: 0 | DT18: 0 | DU18: 0 | DV18: 0 | DW18: 0 | DX18: 3 | DY18: 3 | DZ18: 2 | EA18: 0 | EB18: 0 | EC18: 0 | ED18: 0 | EE18: 0 | EF18: 0 | EG18: 0 | EH18: 0 | EI18: 0 | EJ18: 1 | EK18: 1 | EL18: 0 | EM18: 0 | EN18: 0 | EO18: 0 | EP18: 0 | EQ18: 0 | ER18: 0 | ES18: 0 | ET18: 0 | EU18: 0 | EV18: 4 | EW18: 3 | EX18: 2 | EY18: 0 | EZ18: 0 | FA18: 0 | FB18: 0 | FC18: 0 | FD18: 0 | FE18: 0 | FF18: 0 | FG18: 0 | FH18: 7 | FI18: 5 | FJ18: 6 | FK18: 0 | FL18: 0 | FM18: 0 | FN18: 0 | FO18: 0 | FP18: 0 | FQ18: 0 | FR18: 0 | FS18: 0 | FT18: 0 | FU18: 1 | FV18: 0 | FW18: 0 | FX18: 0
